Workbook

Sheet Inicio EGP
A23: Descargue la versión Kindle
K32: Miguel Cervantes Jiménez

Sheet Caja EGP (hidden)
B2: INTERCAMBIO DE FACTORES
B4: CAJA DE EDGEWORTH DE PRODUCCIÓN
C9: Productor C | D9: Productor D | E9: Total
B10: Dotación factor 1 | C10: 40.0 | D10: 40.0 | E10: ='Oculto EGP'!F43 -> 80.0
B11: Dotación factor 2 | C11: 45.0 | D11: 45.0 | E11: ='Oculto EGP'!F44 -> 90.0
B12: Parámetro tecnológico A | C12: 1.0 | D12: 1.0
B13: Producción | C13: ='Oculto EGP'!D45 -> 42.43 | D13: ='Oculto EGP'!E45 -> 41.44
B14: RTS | C14: ='Oculto EGP'!G43 -> 1.13 | D14: ='Oculto EGP'!G44 -> 2.63
B16: Demanda bruta factor 1 | C16: ='Oculto EGP'!D46 -> 33.3 | D16: ='Oculto EGP'!E46 -> 46.7 | E16: ='Oculto EGP'!F46 -> 80.0
B17: Demanda bruta factor 2 | C17: ='Oculto EGP'!D47 -> 56.3 | D17: ='Oculto EGP'!E47 -> 33.8 | E17: ='Oculto EGP'!F47 -> 90.0
B18: Producción | C18: ='Oculto EGP'!D48 -> 43.30 | D18: ='Oculto EGP'!E48 -> 42.34
B19: RTS | C19: ='Oculto EGP'!G46 -> 1.69 | D19: ='Oculto EGP'!G47 -> 1.69
B21: Demanda neta factor 1 | C21: ='Oculto EGP'!D49 -> (6.67) | D21: ='Oculto EGP'!D50 -> 6.67
B22: Demanda neta factor 2 | C22: ='Oculto EGP'!E49 -> 11.25 | D22: ='Oculto EGP'!E50 -> (11.25)
B23: Mejora en la Utilidad | C23: =C18-C13 -> 0.87 | D23: =D18-D13 -> 0.90
B25: g | C25: 0.5
B26: 1-g | C26: ='Oculto EGP'!D53 -> 0.5
B27: d | D27: 0.7
B28: 1-d | D28: ='Oculto EGP'!E55 -> 0.3
B30: w1/w2 | E30: ='Oculto EGP'!E58 -> 1.69
B31: w2/w1 | E31: ='Oculto EGP'!E57 -> 0.59
B33: Títulos
B34: Resultados
B35: Insertar datos
B36: Cantidad de equilibrio

Sheet Optimo Pareto EGP (hidden)
B2: INTERCAMBIO DE FACTORES
B4: ÓPTIMO DE PARETO DE PRODUCCIÓN
C9: Productor C | D9: Productor D | E9: Total
B10: Dotación factor 1 | C10: 30.0 | D10: 30.0 | E10: ='Oculto EGP'!F97 -> 60.00
B11: Dotación factor 2 | C11: 70.0 | D11: 70.0 | E11: ='Oculto EGP'!F98 -> 140.00
B12: Parámetro tecnológico A | C12: 2.0 | D12: 2.0
B13: Producción | C13: ='Oculto EGP'!D99 -> 45.83 | D13: ='Oculto EGP'!E99 -> 38.68
B14: RTS | C14: ='Oculto EGP'!G97 -> 2.33 | D14: ='Oculto EGP'!G98 -> 5.44
B16: Demanda bruta factor 1 | C16: ='Oculto EGP'!D100 -> 25.0 | D16: ='Oculto EGP'!E100 -> 35.0 | E16: ='Oculto EGP'!F100 -> 60.0
B17: Demanda bruta factor 2 | C17: ='Oculto EGP'!D101 -> 87.5 | D17: ='Oculto EGP'!E101 -> 52.5 | E17: ='Oculto EGP'!F101 -> 140.0
B18: Producción | C18: ='Oculto EGP'!D102 -> 46.77 | D18: ='Oculto EGP'!E102 -> 39.53
B19: RTS | C19: ='Oculto EGP'!G100 -> 3.50 | D19: ='Oculto EGP'!G101 -> 3.50
B21: Demanda neta factor 1 | C21: ='Oculto EGP'!D103 -> (5.00) | D21: ='Oculto EGP'!D104 -> 5.00
B22: Demanda neta factor 2 | C22: ='Oculto EGP'!E103 -> 17.50 | D22: ='Oculto EGP'!E104 -> (17.50)
B23: Mejora en la utilidad | C23: =C18-C13 -> 0.94 | D23: =D18-D13 -> 0.84
B25: g | C25: 0.5
B26: 1-g | C26: ='Oculto EGP'!D107 -> 0.5
B27: d | D27: 0.7
B28: 1-d | D28: ='Oculto EGP'!E109 -> 0.3
B30: w1/w2 | E30: ='Oculto EGP'!E112 -> 3.50
B31: w2/w1 | E31: ='Oculto EGP'!E111 -> 0.29
B35: Títulos
B36: Resultados
B37: Insertar datos
B38: Canrtidad de equilibrio

Sheet Demandas Netas EGP (hidden)
B2: INTERCAMBIO DE FACTORES
B4: DEMANDA DE FACTORES BRUTA Y NETA
C9: Productor C | D9: Productor D | E9: Total
B10: Dotación factor 1 | C10: 30.0 | D10: 30.0 | E10: ='Oculto EGP'!F151 -> 60.00
B11: Dotación factor 2 | C11: 50.0 | D11: 50.0 | E11: ='Oculto EGP'!F152 -> 100.00
B12: Parámetro tecnológico A
B13: Producción | C13: ='Oculto EGP'!D153 -> 38.73 | D13: ='Oculto EGP'!E153 -> 33.23
B14: RTS | C14: ='Oculto EGP'!G151 -> 1.67 | D14: ='Oculto EGP'!G152 -> 6.67
B16: Demanda bruta factor 1 | C16: ='Oculto EGP'!D154 -> 23.1 | D16: ='Oculto EGP'!E154 -> 36.9 | E16: ='Oculto EGP'!F154 -> 60.0
B17: Demanda bruta factor 2 | C17: ='Oculto EGP'!D155 -> 71.4 | D17: ='Oculto EGP'!E155 -> 28.6 | E17: ='Oculto EGP'!F155 -> 100.0
B18: Producción | C18: ='Oculto EGP'!D156 -> 40.60 | D18: ='Oculto EGP'!E156 -> 35.08
B19: RTS | C19: ='Oculto EGP'!G154 -> 3.10 | D19: ='Oculto EGP'!G155 -> 3.10
B21: Demanda neta factor 1 | C21: ='Oculto EGP'!D157 -> (6.92) | D21: ='Oculto EGP'!E157 -> 6.92
B22: Demanda neta factor 2 | C22: ='Oculto EGP'!D158 -> 21.43 | D22: ='Oculto EGP'!E158 -> (21.43)
B23: Mejora en la utilidad | C23: =C18-C13 -> 1.87 | D23: =D18-D13 -> 1.85
B25: g | C25: 0.5
B26: 1-g | C26: ='Oculto EGP'!D161 -> 0.5
B27: d | D27: 0.8
B28: 1-d | D28: ='Oculto EGP'!E163 -> 0.2
B30: w1/w2 | E30: ='Oculto EGP'!E166 -> 3.10
B31: w2/w1 | E31: ='Oculto EGP'!E165 -> 0.32
B35: Títulos
B36: Resultados
B37: Insertar datos
B38: Cantidad de equilibrio

Sheet FPP (hidden)
B2: FRONTERA DE POSIBILIDADES DE PRODUCCIÓN
B4: CAJA DE PRODUCCIÓN DE EDGEWORTH Y
B5: FRONTERA DE POSIBILIDADES DE PRODUCCIÓN
C8: Productor C | D8: Productor D | E8: Total
B9: Dotación factor 1 | C9: 30.0 | D9: 60.0 | E9: ='Oculto EGP'!F227 -> 90.0
B10: Dotación factor 2 | C10: 30.0 | D10: 60.0 | E10: ='Oculto EGP'!F228 -> 90.0
B11: Parámetro tecnológico A | C11: 1.0 | D11: 1.0
B12: Producción | C12: ='Oculto EGP'!D229 -> 30.00 | D12: ='Oculto EGP'!E229 -> 60.00
B13: RTS | C13: ='Oculto EGP'!G227 -> 1.00 | D13: ='Oculto EGP'!G228 -> 2.33
B15: Demanda bruta factor 1 | C15: ='Oculto EGP'!D230 -> 23.7 | D15: ='Oculto EGP'!E230 -> 66.3 | E15: ='Oculto EGP'!F230 -> 90.0
B16: Demanda bruta factor 2 | C16: ='Oculto EGP'!D231 -> 40.9 | D16: ='Oculto EGP'!E231 -> 49.1 | E16: ='Oculto EGP'!F231 -> 90.0
B17: Producción | C17: ='Oculto EGP'!D232 -> 31.13 | D17: ='Oculto EGP'!E232 -> 60.59
B18: RTS | C18: ='Oculto EGP'!G230 -> 1.73 | D18: ='Oculto EGP'!G231 -> 1.73
B20: Demanda neta factor 1 | C20: ='Oculto EGP'!D233 -> (6.32) | D20: ='Oculto EGP'!D234 -> 6.32
B21: Demanda neta factor 2 | C21: ='Oculto EGP'!E233 -> 10.91 | D21: ='Oculto EGP'!E234 -> (10.91)
B22: Mejora en Producción | C22: =C17-C12 -> 1.13 | D22: =D17-D12 -> 0.59
B24: g | C24: 0.5
B25: 1-g | C25: ='Oculto EGP'!D237 -> 0.5
B26: d | D26: 0.7
B27: 1-d | D27: ='Oculto EGP'!E239 -> 0.3
B29: w1/w2 | E29: ='Oculto EGP'!E242 -> 1.73
B30: w2/w1 | E30: ='Oculto EGP'!E241 -> 0.58
B33: Títulos
B34: Resultados
B35: Insertar datos
B36: Cantidad de equilibrio

Sheet FPP_FPP (hidden)
A1: FRONTERA DE POSIBILIDADES
A2: DE PRODUCCIÓN
B5: Parámetros función producción
B6: Empresa 1 | D6: Empresa 2
B7: a1 | C7: 0.24 | D7: a2 | E7: 0.56
B8: b1 | C8: 0.56 | D8: b2 | E8: 0.24
B9: Inserte los datos correspondientes
B11: Máxima cantidad de factor 1 | E11: 100.0
B12: Máxima cantidad de factor 2 | E12: 200.0
B15: Nivel máximo de producciòn | E15: ='Oculto EGP'!CB14 -> 62.14
B16: Empresa 1 | E16: ='Oculto EGP'!CB15 -> 46.73
B17: Empresa 2 | E17: ='Oculto EGP'!CB16 -> 15.41
B19: Cantidad utilizada de factores
B20: Empresa 1 | D20: Empresa 2
B21: Factor 1 | C21: Factor 2 | D21: Factor 1 | E21: Factor 2
B22: ='Oculto EGP'!BY21 -> 75.20 | C22: ='Oculto EGP'!BZ21 -> 150.40 | D22: ='Oculto EGP'!CA21 -> 24.80 | E22: ='Oculto EGP'!CB21 -> 49.60
B29: Títulos
B30: Resultados
B31: Insertar datos
B32: Equilibrio

Sheet Oculto EGP (hidden)
C1: CAJA DE EDGEWORTH | BY1: FRONTERA DE POSIBILIDADES DE PRODUCCIÒN
G2: =POWER((F58/(D56*(F44^D53))),1/D52) -> 20.83333333 | H2: =($F$58/($G2^($D$52)))^(1/$D$53) -> 90 | I2: =POWER((K50/(D56*(K44^D53))),1/D52) -> 5.494505495 | J2: =($K$50/($I2^($D$52)))^(1/$D$53) -> 90 | K2: =POWER((K61/(D56*(K55^D53))),1/D52) -> 13.58234295 | L2: =($K$61/($K2^($D$52)))^(1/$D$53) -> 90 | M2: =POWER((Q50/(D56*(Q44^D53))),1/D52) -> 33.75 | N2: =($Q$50/($M2^($D$52)))^(1/$D$53) -> 90 | O2: =POWER((Q61/($D$56*(Q55^D53))),1/D52) -> 54.01923077 | P2: =($Q$61/($O2^($D$52)))^(1/$D$53) -> 90 | Q2: =POWER((D45/(D56*(F44^D53))),1/D52) -> 20 | R2: =($D$45/($Q2^($D$52)))^(1/$D$53) -> 90 | AA2: ORIGINAL | AH2: MENOS 2 | AO2: MENOS 1 | AW2: MAS 1 | BD2: MAS 2 | BK2: DOTACIÓN
A3: Original | B3: Original | F3: Original | H3: Original | I3: menos 2 | J3: menos 2 | K3: menos 1 | L3: menos 1 | M3: mas 1 | N3: mas 1 | O3: masn2 | P3: masn2 | T3: DOTACIÓN | X3: OPTIMO | AB3: CAJA | AF3: ORIGINAL | AG3: ORIGINAL | AH3: NEGATIVO | AI3: NEGATIVO | AJ3: TRANSFORMADA | AM3: ORIGINAL | AN3: ORIGINAL | AO3: NEGATIVO | AP3: NEGATIVO | AQ3: TRANSFORMADA | AT3: ORIGINAL | AU3: ORIGINAL | AV3: NEGATIVO | AW3: NEGATIVO | AX3: TRANSFORMADA | BB3: ORIGINAL | BC3: ORIGINAL | BD3: NEGATIVO | BE3: NEGATIVO | BF3: TRANSFORMADA | BI3: ORIGINAL | BJ3: ORIGINAL | BK3: NEGATIVO | BL3: NEGATIVO | BM3: TRANSFORMADA | BP3: ORIGINAL | BQ3: ORIGINAL | BR3: NEGATIVO | BS3: NEGATIVO | BT3: TRANSFORMADA | CG3: FPP | CH3: EMPRESA 1 | CK3: EMPRESA 2
A4: x1 | B4: x2 | C4: Unidades | D4: ponderador | F4: x1 | G4: x1 | H4: x2 | I4: x1 | J4: x2 | K4: x1 | L4: x2 | M4: x1 | N4: x2 | O4: x1 | P4: x2 | Q4: DOTA | R4: DOTA | T4: x1linedotación | V4: x2line | X4: x1linedotación | Z4: x2line | AF4: x1 | AG4: x2 | AH4: MENOS X1 | AI4: MENOS X2 | AJ4: x1 | AK4: x2 | AM4: x1 | AN4: x2 | AO4: MENOS X1 | AP4: MENOS X2 | AQ4: x1 | AR4: x2 | AT4: x1 | AU4: x2 | AV4: MENOS X1 | AW4: MENOS X2 | AX4: x1 | AY4: x2 | BB4: x1 | BC4: x2 | BD4: MENOS X1 | BE4: MENOS X2 | BF4: x1 | BG4: x2 | BI4: x1 | BJ4: x2 | BK4: MENOS X1 | BL4: MENOS X2 | BM4: x1 | BN4: x2 | BP4: x1 | BQ4: x2 | BR4: MENOS X1 | BS4: MENOS X2 | BT4: x1 | BU4: x2 | CH4: X1 | CI4: X2 | CJ4: Y1 | CK4: X1 | CL4: X2 | CM4: Y1
A5: =$D$46*E5 -> 0.33 | B5: =($F$58/($D$56*($A5^($D$52))))^(1/$D$53) -> 5,625.00 | C5: 1 | D5: 0 | E5: 0.01 | F5: =IF($D$46*E5>$F$43,$F$43,$D$46*E5) -> 0.33 | G5: =IF(($F$58/($D$56*($F5^($D$52))))^(1/$D$53)>$F$44,$G$2,$F5) -> 20.83 | H5: =($F$58/($D$56*($G5^($D$52))))^(1/$D$53) -> 90.00 | I5: =IF(($K$50/($D$56*($F5^($D$52))))^(1/$D$53)>$F$44,$I$2,F5) -> 5.49 | J5: =($K$50/($D$56*($I5^($D$52))))^(1/$D$53) -> 90.00 | K5: =IF(($K$61/($D$56*($F5^($D$52))))^(1/$D$53)>$F$44,$K$2,F5) -> 13.58 | L5: =($K$61/($D$56*($K5^($D$52))))^(1/$D$53) -> 90.00 | M5: =IF(($Q$50/($D$56*($F5^($D$52))))^(1/$D$53)>$F$44,$M$2,F5) -> 33.75 | N5: =($Q$50/($D$56*(M5^($D$52))))^(1/$D$53) -> 90.00 | O5: =IF(($Q$61/($D$56*($F5^($D$52))))^(1/$D$53)>$F$44,$O$2,F5) -> 54.02 | P5: =($Q$61/($D$56*($O5^($D$52))))^(1/$D$53) -> 90.00 | Q5: =IF(($D$45/(D56*($F5^($D$52))))^(1/$D$53)>$F$44,$Q$2,F5) -> 20 | R5: =($D$45/($D$56*($Q5^($D$52))))^(1/$D$53) -> 90.00 | S5: =IF(B5>$F$44,1,0) -> 1 | T5: =D5*$F$43 -> 0 | U5: =$D$44 -> 45.00 | V5: =$D$43 -> 40.00 | W5: =$F$44*D5 -> 0 | X5: =$D$47 -> 56.25 | Y5: =$D$46 -> 33.33 | Z5: =$D$43 -> 40.00 | AA5: =$F$44*J5 -> 8,100.00 | AB5: =$F$43 -> 80.00 | AC5: =$F$44 -> 90.00 | AD5: 0 | AF5: =$E5*$E$46 -> 0.47 | AG5: =(($E$48)/($E$56*(AF5^($E$54))))^(1/$E$55) -> 1,566,536.23 | AH5: =AF5*-1 -> (0.47) | AI5: =AG5*-1 -> (1,566,536.23) | AJ5: =AH5+($AF$15*2)+($D$46-$E$46) -> 79.53 | AK5: =AI5+($E$47*2)+($D$47-$E$47) -> (1,566,446.23) | AM5: =$E5*$AM$48 -> 0.65 | AN5: =(($AM$50)/($E$56*(AM5^($E$54))))^(1/$E$55) -> 2,685,490.68 | AO5: =AM5*-1 -> (0.65) | AP5: =AN5*-1 -> (2,685,490.68) | AQ5: =AO5+($AM$15*2)+($AL$48-$AM$48) -> 79.35 | AR5: =AP5+($AN$15*2)+($AL$49-$AM$49) -> (2,685,400.68) | AT5: =$E5*$AM$59 -> 0.54 | AU5: =(($AM$61)/($E$56*(AT5^($E$54))))^(1/$E$55) -> 1,978,782.61 | AV5: =AT5*-1 -> (0.54) | AW5: =AU5*-1 -> (1,978,782.61) | AX5: =AV5+($AT$15*2)+($AL$59-$AM$59) -> 79.46 | AY5: =AW5+($AU$15*2)+($AL$60-$AM$60) -> (1,978,692.61) | BB5: =$E5*$BC$48 -> 0.35 | BC5: =(($BC$50)/($E$56*(BB5^($E$54))))^(1/$E$55) -> 1,044,357.49 | BD5: =BB5*-1 -> (0.35) | BE5: =BC5*-1 -> (1,044,357.49) | BF5: =BD5+($BB$15*2)+($BB$48-$BC$48) -> 79.65 | BG5: =BE5+($BC$15*2)+($BB$49-$BC$49) -> (1,044,267.49) | BI5: =$E5*$BC$59 -> 0.19 | BJ5: =(($BC$61)/($E$56*(BI5^($E$54))))^(1/$E$55) -> 487,366.83 | BK5: =BI5*-1 -> (0.19) | BL5: =BJ5*-1 -> (487,366.83) | BM5: =BK5+($BI$15*2)+($BB$59-$BC$59) -> 79.81 | BN5: =BL5+($BJ$15*2)+($BB$60-$BC$60) -> (487,276.83) | BP5: =E5*BL46 -> 0.40 | BQ5: =(($BL$48)/($E$56*(BP5^($E$54))))^(1/$E$55) -> 2,088,714.98 | BR5: =BP5*-1 -> (0.40) | BS5: =BQ5*-1 -> (2,088,714.98) | BT5: =BR5+($BP$15*2)+($BK$46-$BL$46) -> 79.60 | BU5: =BS5+($BQ$15*2)+($BK$47-$BL$47) -> (2,088,624.98) | CG5: =CJ5+CM5 -> 47.01616469 | CH5: 0 | CI5: 0 | CJ5: =(CH5^$BZ$7)*(CI5^$BZ$8) -> 0 | CK5: =$CA$10-CH5 -> 100.00 | CL5: =$CA$11-CI5 -> 200.00 | CM5: =(CK5^$CD$7)*(CL5^$CD$8) -> 47.01616469
A6: 3.33 | B6: =($F$58/($D$56*($A6^($D$52))))^(1/$D$53) -> 562.50 | C6: 2 | D6: 0.01 | E6: 0.10 | F6: 3.33 | G6: =IF(($F$58/($D$56*($F6^($D$52))))^(1/$D$53)>$F$44,$G$2,$F6) -> 20.83 | H6: =($F$58/($D$56*($G6^($D$52))))^(1/$D$53) -> 90.00 | I6: =IF(($K$50/($D$56*($F6^($D$52))))^(1/$D$53)>$F$44,$I$2,F6) -> 5.49 | J6: =($K$50/($D$56*($I6^($D$52))))^(1/$D$53) -> 90.00 | K6: =IF(($K$61/($D$56*($F6^($D$52))))^(1/$D$53)>$F$44,$K$2,F6) -> 13.58 | L6: =($K$61/($D$56*($K6^($D$52))))^(1/$D$53) -> 90.00 | M6: =IF(($Q$50/($D$56*($F6^($D$52))))^(1/$D$53)>$F$44,$M$2,F6) -> 33.75 | N6: =($Q$50/($D$56*(M6^($D$52))))^(1/$D$53) -> 90.00 | O6: =IF(($Q$61/($D$56*($F6^($D$52))))^(1/$D$53)>$F$44,$O$2,F6) -> 54.02 | P6: =($Q$61/($D$56*($O6^($D$52))))^(1/$D$53) -> 90.00 | Q6: =IF(($D$45/($F6^($D$52)))^(1/$D$53)>$F$44,$Q$2,F6) -> 20 | R6: =($D$45/($D$56*($Q6^($D$52))))^(1/$D$53) -> 90.00 | S6: 1 | T6: 0.80 | U6: 45.00 | V6: 40.00 | W6: 0.90 | X6: =$D$47 -> 56.25 | Y6: 33.33 | Z6: 40.00 | AA6: 8,100.00 | AB6: =$F$43 -> 80.00 | AC6: 90.00 | AD6: 0 | AF6: =$E6*$E$46 -> 4.67 | AG6: =(($E$48)/($E$56*(AF6^($E$54))))^(1/$E$55) -> 7,271.22 | AH6: (4.67) | AI6: =AG6*-1 -> (7,271.22) | AJ6: =AH6+($AF$15*2)+($D$46-$E$46) -> 75.33 | AK6: (7,181.22) | AM6: 6.46 | AN6: =(($AM$50)/($E$56*(AM6^($E$54))))^(1/$E$55) -> 12,464.94 | AO6: (6.46) | AP6: (12,464.94) | AQ6: 73.54 | AR6: (12,374.94) | AT6: 5.42 | AU6: =(($AM$61)/($E$56*(AT6^($E$54))))^(1/$E$55) -> 9,184.70 | AV6: (5.42) | AW6: (9,184.70) | AX6: 74.58 | AY6: (9,094.70) | BB6: 3.50 | BC6: =(($BC$50)/($E$56*(BB6^($E$54))))^(1/$E$55) -> 4,847.48 | BD6: (3.50) | BE6: (4,847.48) | BF6: 76.50 | BG6: (4,757.48) | BI6: 1.88 | BJ6: =(($BC$61)/($E$56*(BI6^($E$54))))^(1/$E$55) -> 2,262.16 | BK6: (1.88) | BL6: (2,262.16) | BM6: 78.12 | BN6: (2,172.16) | BP6: =E6*$BL$46 -> 4.00 | BQ6: =(($BL$48)/($E$56*(BP6^($E$54))))^(1/$E$55) -> 9,694.96 | BR6: (4.00) | BS6: (9,694.96) | BT6: 76.00 | BU6: (9,604.96) | BY6: Empresa 1 | CC6: Empresa 2 | CG6: 47.21220392 | CH6: =CH5+$CD$10 -> 0.1 | CI6: =CI5+$CD$11 -> 0.2 | CJ6: =(CH6^$BZ$7)*(CI6^$BZ$8) -> 0.2336559246 | CK6: =$CA$10-CH6 -> 99.90 | CL6: =$CA$11-CI6 -> 199.80 | CM6: =(CK6^$CD$7)*(CL6^$CD$8) -> 46.97854799
A7: 6.67 | B7: 281.25 | C7: 3 | D7: 0.10 | E7: 0.20 | F7: 6.67 | G7: 20.83 | H7: 90.00 | I7: 6.67 | J7: 74.18 | K7: 13.58 | L7: 90.00 | M7: 33.75 | N7: 90.00 | O7: 54.02 | P7: 90.00 | Q7: 20 | R7: 90.00 | S7: 1 | T7: 8.00 | U7: 45.00 | V7: 40.00 | W7: 9.00 | X7: 56.25 | Y7: 33.33 | Z7: 40.00 | AA7: 6,675.82 | AB7: 80.00 | AC7: 90.00 | AD7: 0 | AF7: 9.33 | AG7: 1,442.79 | AH7: (9.33) | AI7: (1,442.79) | AJ7: 70.67 | AK7: (1,352.79) | AM7: 12.92 | AN7: =(($AM$50)/($E$56*(AM7^($E$54))))^(1/$E$55) -> 2,473.36 | AO7: (12.92) | AP7: (2,473.36) | AQ7: 67.08 | AR7: (2,383.36) | AT7: 10.84 | AU7: 1,822.47 | AV7: (10.84) | AW7: (1,822.47) | AX7: 69.16 | AY7: (1,732.47) | BB7: 7.00 | BC7: 961.86 | BD7: (7.00) | BE7: (961.86) | BF7: 73.00 | BG7: (871.86) | BI7: 3.77 | BJ7: 448.87 | BK7: (3.77) | BL7: (448.87) | BM7: 76.23 | BN7: (358.87) | BP7: 8.00 | BQ7: 1,923.72 | BR7: (8.00) | BS7: (1,923.72) | BT7: 72.00 | BU7: (1,833.72) | BY7: a1 | BZ7: =FPP_FPP!C7 -> 0.24 | CC7: a2 | CD7: =FPP_FPP!E7 -> 0.56 | CG7: 47.34774236 | CH7: =CH6+$CD$10 -> 0.2 | CI7: =CI6+$CD$11 -> 0.4 | CJ7: 0.4068185936 | CK7: 99.80 | CL7: 199.60 | CM7: 46.94092377
A8: 10.00 | B8: 187.50 | C8: 4 | D8: 0.15 | E8: 0.30 | F8: 10.00 | G8: 20.83 | H8: 90.00 | I8: 10.00 | J8: 49.45 | K8: 13.58 | L8: 90.00 | M8: 33.75 | N8: 90.00 | O8: 54.02 | P8: 90.00 | Q8: 20 | R8: 90.00 | S8: 1 | T8: 12.00 | U8: 45.00 | V8: 40.00 | W8: 13.50 | X8: 56.25 | Y8: 33.33 | Z8: 40.00 | AA8: 4,450.55 | AB8: 80.00 | AC8: 90.00 | AD8: 0 | AF8: 14.00 | AG8: 560.18 | AH8: (14.00) | AI8: (560.18) | AJ8: 66.00 | AK8: (470.18) | AM8: 19.38 | AN8: 960.30 | AO8: (19.38) | AP8: (960.30) | AQ8: 60.62 | AR8: (870.30) | AT8: 16.26 | AU8: 707.59 | AV8: (16.26) | AW8: (707.59) | AX8: 63.74 | AY8: (617.59) | BB8: 10.50 | BC8: 373.45 | BD8: (10.50) | BE8: (373.45) | BF8: 69.50 | BG8: (283.45) | BI8: 5.65 | BJ8: 174.28 | BK8: (5.65) | BL8: (174.28) | BM8: 74.35 | BN8: (84.28) | BP8: 12.00 | BQ8: 746.90 | BR8: (12.00) | BS8: (746.90) | BT8: 68.00 | BU8: (656.90) | BY8: b1 | BZ8: =FPP_FPP!C8 -> 0.56 | CC8: b2 | CD8: =FPP_FPP!E8 -> 0.24 | CG8: 47.46598797 | CH8: 0.3 | CI8: 0.6 | CJ8: 0.5626959656 | CK8: 99.70 | CL8: 199.40 | CM8: 46.903292
A9: 13.33 | B9: 140.63 | C9: 5 | D9: 0.20 | E9: 0.40 | F9: 13.33 | G9: 20.83 | H9: 90.00 | I9: 13.33 | J9: 37.09 | K9: 13.58 | L9: 90.00 | M9: 33.75 | N9: 90.00 | O9: 54.02 | P9: 90.00 | Q9: 20 | R9: 90.00 | S9: 1 | T9: 16.00 | U9: 45.00 | V9: 40.00 | W9: 18.00 | X9: 56.25 | Y9: 33.33 | Z9: 40.00 | AA9: 3,337.91 | AB9: 80.00 | AC9: 90.00 | AD9: 0 | AF9: 18.67 | AG9: 286.29 | AH9: (18.67) | AI9: (286.29) | AJ9: 61.33 | AK9: (196.29) | AM9: 25.85 | AN9: 490.78 | AO9: (25.85) | AP9: (490.78) | AQ9: 54.15 | AR9: (400.78) | AT9: 21.68 | AU9: 361.62 | AV9: (21.68) | AW9: (361.62) | AX9: 58.32 | AY9: (271.62) | BB9: 14.00 | BC9: 190.86 | BD9: (14.00) | BE9: (190.86) | BF9: 66.00 | BG9: (100.86) | BI9: 7.54 | BJ9: 89.07 | BK9: (7.54) | BL9: (89.07) | BM9: 72.46 | BN9: 0.93 | BP9: 16.00 | BQ9: 381.71 | BR9: (16.00) | BS9: (381.71) | BT9: 64.00 | BU9: (291.71) | CG9: 47.573965 | CH9: 0.4 | CI9: 0.8 | CJ9: 0.7083123117 | CK9: 99.60 | CL9: 199.20 | CM9: 46.86565268
A10: 16.67 | B10: 112.50 | C10: 6 | D10: 0.25 | E10: 0.50 | F10: 16.67 | G10: 20.83 | H10: 90.00 | I10: 16.67 | J10: 29.67 | K10: 16.67 | L10: 73.34 | M10: 33.75 | N10: 90.00 | O10: 54.02 | P10: 90.00 | Q10: 20 | R10: 90.00 | S10: 1 | T10: 20.00 | U10: 45.00 | V10: 40.00 | W10: 22.50 | X10: 56.25 | Y10: 33.33 | Z10: 40.00 | AA10: 2,670.33 | AB10: 80.00 | AC10: 90.00 | AD10: 0 | AF10: 23.33 | AG10: 170.09 | AH10: (23.33) | AI10: (170.09) | AJ10: 56.67 | AK10: (80.09) | AM10: 32.31 | AN10: 291.58 | AO10: (32.31) | AP10: (291.58) | AQ10: 47.69 | AR10: (201.58) | AT10: 27.10 | AU10: 214.85 | AV10: (27.10) | AW10: (214.85) | AX10: 52.90 | AY10: (124.85) | BB10: 17.50 | BC10: 113.39 | BD10: (17.50) | BE10: (113.39) | BF10: 62.50 | BG10: (23.39) | BI10: 9.42 | BJ10: 52.92 | BK10: (9.42) | BL10: (52.92) | BM10: 70.58 | BN10: 37.08 | BP10: 20.00 | BQ10: 226.79 | BR10: (20.00) | BS10: (226.79) | BT10: 60.00 | BU10: (136.79) | BY10: Max Q Factor 1 | CA10: =FPP_FPP!E11 -> 100.0 | CC10: COTA | CD10: =CA10/1000 -> 0.1 | CG10: 47.67475112 | CH10: 0.5 | CI10: 1 | CJ10: 0.8467453124 | CK10: 99.50 | CL10: 199.00 | CM10: 46.82800581
A11: 20.00 | B11: 93.75 | C11: 7 | D11: 0.30 | E11: 0.60 | F11: 20.00 | G11: 20.83 | H11: 90.00 | I11: 20.00 | J11: 24.73 | K11: 20.00 | L11: 61.12 | M11: 33.75 | N11: 90.00 | O11: 54.02 | P11: 90.00 | Q11: 20 | R11: 90.00 | S11: 1 | T11: 24.00 | U11: 45.00 | V11: 40.00 | W11: 27.00 | X11: 56.25 | Y11: 33.33 | Z11: 40.00 | AA11: 2,225.27 | AB11: 80.00 | AC11: 90.00 | AD11: 0 | AF11: 28.00 | AG11: 111.15 | AH11: (28.00) | AI11: (111.15) | AJ11: 52.00 | AK11: (21.15) | AM11: 38.77 | AN11: 190.55 | AO11: (38.77) | AP11: (190.55) | AQ11: 41.23 | AR11: (100.55) | AT11: 32.52 | AU11: 140.40 | AV11: (32.52) | AW11: (140.40) | AX11: 47.48 | AY11: (50.40) | BB11: 21.00 | BC11: 74.10 | BD11: (21.00) | BE11: (74.10) | BF11: 59.00 | BG11: 15.90 | BI11: 11.31 | BJ11: 34.58 | BK11: (11.31) | BL11: (34.58) | BM11: 68.69 | BN11: 55.42 | BP11: 24.00 | BQ11: 148.20 | BR11: (24.00) | BS11: (148.20) | BT11: 56.00 | BU11: (58.20) | BY11: Max Q Factor 2 | CA11: =FPP_FPP!E12 -> 200.0 | CC11: COTA | CD11: =CA11/1000 -> 0.2 | CG11: 47.77006195 | CH11: 0.6 | CI11: 1.2 | CJ11: 0.9797105796 | CK11: 99.40 | CL11: 198.80 | CM11: 46.79035137
A12: 23.33 | B12: 80.36 | C12: 8 | D12: 0.35 | E12: 0.70 | F12: 23.33 | G12: 23.33 | H12: 80.36 | I12: 23.33 | J12: 21.19 | K12: 23.33 | L12: 52.39 | M12: 33.75 | N12: 90.00 | O12: 54.02 | P12: 90.00 | Q12: 23.33333333 | R12: 77.14 | S12: 0 | T12: 28.00 | U12: 45.00 | V12: 40.00 | W12: 31.50 | X12: 56.25 | Y12: 33.33 | Z12: 40.00 | AA12: 1,907.38 | AB12: 80.00 | AC12: 90.00 | AD12: 0 | AF12: 32.67 | AG12: 77.57 | AH12: (32.67) | AI12: (77.57) | AJ12: 47.33 | AK12: 12.43 | AM12: 45.23 | AN12: 132.98 | AO12: (45.23) | AP12: (132.98) | AQ12: 34.77 | AR12: (42.98) | AT12: 37.94 | AU12: 97.99 | AV12: (37.94) | AW12: (97.99) | AX12: 42.06 | AY12: (7.99) | BB12: 24.50 | BC12: 51.72 | BD12: (24.50) | BE12: (51.72) | BF12: 55.50 | BG12: 38.28 | BI12: 13.19 | BJ12: 24.13 | BK12: (13.19) | BL12: (24.13) | BM12: 66.81 | BN12: 65.87 | BP12: 28.00 | BQ12: 103.43 | BR12: (28.00) | BS12: (103.43) | BT12: 52.00 | BU12: (13.43) | CG12: 47.86098398 | CH12: 0.7 | CI12: 1.4 | CJ12: 1.108294632 | CK12: 99.30 | CL12: 198.60 | CM12: 46.75268934
A13: 26.67 | B13: 70.31 | C13: 9 | D13: 0.40 | E13: 0.80 | F13: 26.67 | G13: 26.67 | H13: 70.31 | I13: 26.67 | J13: 18.54 | K13: 26.67 | L13: 45.84 | M13: 33.75 | N13: 90.00 | O13: 54.02 | P13: 90.00 | Q13: 26.66666667 | R13: 67.50 | S13: 0 | T13: 32.00 | U13: 45.00 | V13: 40.00 | W13: 36.00 | X13: 56.25 | Y13: 33.33 | Z13: 40.00 | AA13: 1,668.96 | AB13: 80.00 | AC13: 90.00 | AD13: 0 | AF13: 37.33 | AG13: 56.81 | AH13: (37.33) | AI13: (56.81) | AJ13: 42.67 | AK13: 33.19 | AM13: 51.69 | AN13: 97.38 | AO13: (51.69) | AP13: (97.38) | AQ13: 28.31 | AR13: (7.38) | AT13: 43.35 | AU13: 71.76 | AV13: (43.35) | AW13: (71.76) | AX13: 36.65 | AY13: 18.24 | BB13: 28.00 | BC13: 37.87 | BD13: (28.00) | BE13: (37.87) | BF13: 52.00 | BG13: 52.13 | BI13: 15.08 | BJ13: 17.67 | BK13: (15.08) | BL13: (17.67) | BM13: 64.92 | BN13: 72.33 | BP13: 32.00 | BQ13: 75.74 | BR13: (32.00) | BS13: (75.74) | BT13: 48.00 | BU13: 14.26 | CG13: 47.9482631 | CH13: 0.8 | CI13: 1.6 | CJ13: 1.233243364 | CK13: 99.20 | CL13: 198.40 | CM13: 46.71501974
A14: 30.00 | B14: 62.50 | C14: 10 | D14: 0.45 | E14: 0.90 | F14: 30.00 | G14: 30.00 | H14: 62.50 | I14: 30.00 | J14: 16.48 | K14: 30.00 | L14: 40.75 | M14: 33.75 | N14: 90.00 | O14: 54.02 | P14: 90.00 | Q14: 30 | R14: 60.00 | S14: =IF(B14>$F$44,1,0) -> 0 | T14: 36.00 | U14: 45.00 | V14: 40.00 | W14: 40.50 | X14: 56.25 | Y14: 33.33 | Z14: 40.00 | AA14: 1,483.52 | AB14: 80.00 | AC14: 90.00 | AD14: 0 | AF14: 42.00 | AG14: 43.16 | AH14: (42.00) | AI14: (43.16) | AJ14: 38.00 | AK14: 46.84 | AM14: 58.15 | AN14: 73.98 | AO14: (58.15) | AP14: (73.98) | AQ14: 21.85 | AR14: 16.02 | AT14: 48.77 | AU14: 54.51 | AV14: (48.77) | AW14: (54.51) | AX14: 31.23 | AY14: 35.49 | BB14: 31.50 | BC14: 28.77 | BD14: (31.50) | BE14: (28.77) | BF14: 48.50 | BG14: 61.23 | BI14: 16.96 | BJ14: 13.43 | BK14: (16.96) | BL14: (13.43) | BM14: 63.04 | BN14: 76.57 | BP14: 36.00 | BQ14: 57.54 | BR14: (36.00) | BS14: (57.54) | BT14: 44.00 | BU14: 32.46 | BY14: Nivel Máximo de Producciòn | CB14: =CG1007 -> 62.14 | CG14: 48.03244085 | CH14: 0.9 | CI14: 1.8 | CJ14: 1.355098315 | CK14: 99.10 | CL14: 198.20 | CM14: 46.67734254
A15: 33.33 | B15: 56.25 | C15: 11 | D15: 0.50 | E15: 1.00 | F15: 33.33 | G15: 33.33 | H15: 56.25 | I15: 33.33 | J15: 14.84 | K15: 33.33 | L15: 36.67 | M15: 33.75 | N15: 90.00 | O15: 54.02 | P15: 90.00 | Q15: 33.33333333 | R15: 54.00 | T15: 40.00 | U15: 45.00 | V15: 40.00 | W15: 45.00 | X15: 56.25 | Y15: 33.33 | Z15: 40.00 | AA15: 1,335.16 | AB15: 80.00 | AC15: 90.00 | AD15: 0 | AF15: =$E15*$E$46 -> 46.67 | AG15: 33.75 | AH15: =AF15*-1 -> (46.67) | AI15: =AG15*-1 -> (33.75) | AJ15: 33.33 | AK15: =AI15+($E$47*2)+($D$47-$E$47) -> 56.25 | AM15: 64.62 | AN15: 57.86 | AO15: =AM15*-1 -> (64.62) | AP15: =AN15*-1 -> (57.86) | AQ15: 15.38 | AR15: 32.14 | AT15: 54.19 | AU15: 42.63 | AV15: =AT15*-1 -> (54.19) | AW15: =AU15*-1 -> (42.63) | AX15: 25.81 | AY15: 47.37 | BB15: 35.00 | BC15: 22.50 | BD15: =BB15*-1 -> (35.00) | BE15: =BC15*-1 -> (22.50) | BF15: 45.00 | BG15: 67.50 | BI15: 18.85 | BJ15: 10.50 | BK15: =BI15*-1 -> (18.85) | BL15: =BJ15*-1 -> (10.50) | BM15: 61.15 | BN15: 79.50 | BP15: 40.00 | BQ15: 45.00 | BR15: =BP15*-1 -> (40.00) | BS15: =BQ15*-1 -> (45.00) | BT15: 40.00 | BU15: 45.00 | BY15: Empresa 1 | CB15: =CJ1007 -> 46.73 | CG15: 48.11392695 | CH15: 1 | CI15: 2 | CJ15: 1.474269217 | CK15: 99.00 | CL15: 198.00 | CM15: 46.63965773
A16: 36.67 | B16: 51.14 | C16: 12 | D16: 0.55 | E16: 1.10 | F16: 36.67 | G16: 36.67 | H16: 51.14 | I16: 36.67 | J16: 13.49 | K16: 36.67 | L16: 33.34 | M16: 36.67 | N16: 82.84 | O16: 54.02 | P16: 90.00 | Q16: 36.66666667 | R16: 49.09 | T16: 44.00 | U16: 45.00 | V16: 40.00 | W16: 49.50 | X16: 56.25 | Y16: 33.33 | Z16: 40.00 | AA16: 1,213.79 | AB16: 80.00 | AC16: 90.00 | AD16: 0 | AF16: =$E16*$E$46 -> 51.33 | AG16: 27.02 | AH16: =AF16*-1 -> (51.33) | AI16: =AG16*-1 -> (27.02) | AJ16: 28.67 | AK16: =AI16+($E$47*2)+($D$47-$E$47) -> 62.98 | AM16: 71.08 | AN16: 46.32 | AO16: =AM16*-1 -> (71.08) | AP16: =AN16*-1 -> (46.32) | AQ16: 8.92 | AR16: 43.68 | AT16: 59.61 | AU16: 34.13 | AV16: =AT16*-1 -> (59.61) | AW16: =AU16*-1 -> (34.13) | AX16: 20.39 | AY16: 55.87 | BB16: 38.50 | BC16: 18.01 | BD16: =BB16*-1 -> (38.50) | BE16: =BC16*-1 -> (18.01) | BF16: 41.50 | BG16: 71.99 | BI16: 20.73 | BJ16: 8.41 | BK16: =BI16*-1 -> (20.73) | BL16: =BJ16*-1 -> (8.41) | BM16: 59.27 | BN16: 81.59 | BP16: 44.00 | BQ16: 36.03 | BR16: =BP16*-1 -> (44.00) | BS16: =BQ16*-1 -> (36.03) | BT16: 36.00 | BU16: 53.97 | BY16: Empresa 2 | CB16: =CM1007 -> 15.41 | CG16: 48.19304138 | CH16: 1.1 | CI16: 2.2 | CJ16: 1.591076076 | CK16: 98.90 | CL16: 197.80 | CM16: 46.60196531
A17: 40.00 | B17: 46.88 | C17: 13 | D17: 0.60 | E17: 1.20 | F17: =IF($D$46*E17>$F$43,$F$43,$D$46*E17) -> 40.00 | G17: 40.00 | H17: 46.88 | I17: 40.00 | J17: 12.36 | K17: 40.00 | L17: 30.56 | M17: 40.00 | N17: 75.94 | O17: 54.02 | P17: 90.00 | Q17: 40 | R17: 45.00 | T17: 48.00 | U17: 45.00 | V17: 40.00 | W17: 54.00 | X17: 56.25 | Y17: 33.33 | Z17: 40.00 | AA17: 1,112.64 | AB17: 80.00 | AC17: 90.00 | AD17: 0 | AF17: 56.00 | AG17: 22.06 | AH17: (56.00) | AI17: (22.06) | AJ17: 24.00 | AK17: 67.94 | AM17: 77.54 | AN17: 37.81 | AO17: (77.54) | AP17: (37.81) | AQ17: 2.46 | AR17: 52.19 | AT17: 65.03 | AU17: 27.86 | AV17: (65.03) | AW17: (27.86) | AX17: 14.97 | AY17: 62.14 | BB17: 42.00 | BC17: 14.70 | BD17: (42.00) | BE17: (14.70) | BF17: 38.00 | BG17: 75.30 | BI17: 22.62 | BJ17: 6.86 | BK17: (22.62) | BL17: (6.86) | BM17: 57.38 | BN17: 83.14 | BP17: 48.00 | BQ17: 29.41 | BR17: (48.00) | BS17: (29.41) | BT17: 32.00 | BU17: 60.59 | CG17: 48.27004046 | CH17: 1.2 | CI17: 2.4 | CJ17: 1.705775194 | CK17: 98.80 | CL17: 197.60 | CM17: 46.56426526
A18: 43.33 | B18: 43.27 | C18: 14 | D18: 0.65 | E18: 1.30 | F18: 43.33 | G18: 43.33 | H18: 43.27 | I18: 43.33 | J18: 11.41 | K18: 43.33 | L18: 28.21 | M18: 43.33 | N18: 70.10 | O18: 54.02 | P18: 90.00 | Q18: 43.33333333 | R18: 41.54 | T18: 52.00 | U18: 45.00 | V18: 40.00 | W18: 58.50 | X18: 56.25 | Y18: 33.33 | Z18: 40.00 | AA18: 1,027.05 | AB18: 80.00 | AC18: 90.00 | AD18: 0 | AF18: 60.67 | AG18: 18.30 | AH18: (60.67) | AI18: (18.30) | AJ18: 19.33 | AK18: 71.70 | AM18: 84.00 | AN18: 31.37 | AO18: (84.00) | AP18: (31.37) | AQ18: (4.00) | AR18: 58.63 | AT18: 70.45 | AU18: 23.11 | AV18: (70.45) | AW18: (23.11) | AX18: 9.55 | AY18: 66.89 | BB18: 45.50 | BC18: 12.20 | BD18: (45.50) | BE18: (12.20) | BF18: 34.50 | BG18: 77.80 | BI18: 24.50 | BJ18: 5.69 | BK18: (24.50) | BL18: (5.69) | BM18: 55.50 | BN18: 84.31 | BP18: 52.00 | BQ18: 24.40 | BR18: (52.00) | BS18: (24.40) | BT18: 28.00 | BU18: 65.60 | BY18: Cantidad utilizada de factores | CG18: 48.34513369 | CH18: 1.3 | CI18: 2.6 | CJ18: 1.818576101 | CK18: 98.70 | CL18: 197.40 | CM18: 46.52655759
A19: 46.67 | B19: 40.18 | C19: 15 | D19: 0.70 | E19: 1.40 | F19: 46.67 | G19: 46.67 | H19: 40.18 | I19: 46.67 | J19: 10.60 | K19: 46.67 | L19: 26.19 | M19: 46.67 | N19: 65.09 | O19: 54.02 | P19: 90.00 | Q19: 46.66666667 | R19: 38.57 | T19: 56.00 | U19: 45.00 | V19: 40.00 | W19: 63.00 | X19: 56.25 | Y19: 33.33 | Z19: 40.00 | AA19: 953.69 | AB19: 80.00 | AC19: 90.00 | AD19: 0 | AF19: 65.33 | AG19: 15.39 | AH19: (65.33) | AI19: (15.39) | AJ19: 14.67 | AK19: 74.61 | AM19: 90.46 | AN19: 26.39 | AO19: (90.46) | AP19: (26.39) | AQ19: (10.46) | AR19: 63.61 | AT19: 75.87 | AU19: 19.44 | AV19: (75.87) | AW19: (19.44) | AX19: 4.13 | AY19: 70.56 | BB19: 49.00 | BC19: 10.26 | BD19: (49.00) | BE19: (10.26) | BF19: 31.00 | BG19: 79.74 | BI19: 26.38 | BJ19: 4.79 | BK19: (26.38) | BL19: (4.79) | BM19: 53.62 | BN19: 85.21 | BP19: 56.00 | BQ19: 20.52 | BR19: (56.00) | BS19: (20.52) | BT19: 24.00 | BU19: 69.48 | BY19: Empresa 1 | CA19: Empresa 2 | CG19: 48.4184953 | CH19: 1.4 | CI19: 2.8 | CJ19: 1.929653032 | CK19: 98.60 | CL19: 197.20 | CM19: 46.48884227
A20: 50.00 | B20: 37.50 | C20: 16 | D20: 0.75 | E20: 1.50 | F20: 50.00 | G20: 50.00 | H20: 37.50 | I20: 50.00 | J20: 9.89 | K20: 50.00 | L20: 24.45 | M20: 50.00 | N20: 60.75 | O20: 54.02 | P20: 90.00 | Q20: 50 | R20: 36.00 | T20: 60.00 | U20: 45.00 | V20: 40.00 | W20: 67.50 | X20: 56.25 | Y20: 33.33 | Z20: 40.00 | AA20: 890.11 | AB20: 80.00 | AC20: 90.00 | AD20: 0 | AF20: 70.00 | AG20: 13.10 | AH20: (70.00) | AI20: (13.10) | AJ20: 10.00 | AK20: 76.90 | AM20: 96.92 | AN20: 22.46 | AO20: (96.92) | AP20: (22.46) | AQ20: (16.92) | AR20: 67.54 | AT20: 81.29 | AU20: 16.55 | AV20: (81.29) | AW20: (16.55) | AX20: (1.29) | AY20: 73.45 | BB20: 52.50 | BC20: 8.74 | BD20: (52.50) | BE20: (8.74) | BF20: 27.50 | BG20: 81.26 | BI20: 28.27 | BJ20: 4.08 | BK20: (28.27) | BL20: (4.08) | BM20: 51.73 | BN20: 85.92 | BP20: 60.00 | BQ20: 17.47 | BR20: (60.00) | BS20: (17.47) | BT20: 20.00 | BU20: 72.53 | BY20: Factor 1 | BZ20: Factor 2 | CA20: Factor 1 | CB20: Factor 2 | CG20: 48.49027226 | CH20: 1.5 | CI20: 3 | CJ20: 2.039152963 | CK20: 98.50 | CL20: 197.00 | CM20: 46.4511193
A21: 53.33 | B21: 35.16 | C21: 17 | D21: 0.80 | E21: 1.60 | F21: 53.33 | G21: 53.33 | H21: 35.16 | I21: 53.33 | J21: 9.27 | K21: 53.33 | L21: 22.92 | M21: 53.33 | N21: 56.95 | O21: 54.02 | P21: 90.00 | Q21: 53.33333333 | R21: 33.75 | T21: 64.00 | U21: 45.00 | V21: 40.00 | W21: 72.00 | X21: 56.25 | Y21: 33.33 | Z21: 40.00 | AA21: 834.48 | AB21: 80.00 | AC21: 90.00 | AD21: 0 | AF21: 74.67 | AG21: 11.27 | AH21: (74.67) | AI21: (11.27) | AJ21: 5.33 | AK21: 78.73 | AM21: 103.38 | AN21: 19.32 | AO21: (103.38) | AP21: (19.32) | AQ21: (23.38) | AR21: 70.68 | AT21: 86.71 | AU21: 14.24 | AV21: (86.71) | AW21: (14.24) | AX21: (6.71) | AY21: 75.76 | BB21: 56.00 | BC21: 7.51 | BD21: (56.00) | BE21: (7.51) | BF21: 24.00 | BG21: 82.49 | BI21: 30.15 | BJ21: 3.51 | BK21: (30.15) | BL21: (3.51) | BM21: 49.85 | BN21: 86.49 | BP21: 64.00 | BQ21: 15.03 | BR21: (64.00) | BS21: (15.03) | BT21: 16.00 | BU21: 74.97 | BY21: =CH1007 -> 75.20 | BZ21: =CI1007 -> 150.40 | CA21: =CK1007 -> 24.80 | CB21: =CL1007 -> 49.60 | CG21: 48.56059008 | CH21: 1.6 | CI21: 3.2 | CJ21: 2.14720141 | CK21: 98.40 | CL21: 196.80 | CM21: 46.41338867
A22: 56.67 | B22: 33.09 | C22: 18 | D22: 0.85 | E22: 1.70 | F22: 56.67 | G22: 56.67 | H22: 33.09 | I22: 56.67 | J22: 8.73 | K22: 56.67 | L22: 21.57 | M22: 56.67 | N22: 53.60 | O22: 56.67 | P22: 85.80 | Q22: 56.66666667 | R22: 31.76 | T22: 68.00 | U22: 45.00 | V22: 40.00 | W22: 76.50 | X22: 56.25 | Y22: 33.33 | Z22: 40.00 | AA22: 785.39 | AB22: 80.00 | AC22: 90.00 | AD22: 0 | AF22: 79.33 | AG22: 9.78 | AH22: (79.33) | AI22: (9.78) | AJ22: 0.67 | AK22: 80.22 | AM22: 109.85 | AN22: 16.77 | AO22: (109.85) | AP22: (16.77) | AQ22: (29.85) | AR22: 73.23 | AT22: 92.13 | AU22: 12.36 | AV22: (92.13) | AW22: (12.36) | AX22: (12.13) | AY22: 77.64 | BB22: 59.50 | BC22: 6.52 | BD22: (59.50) | BE22: (6.52) | BF22: 20.50 | BG22: 83.48 | BI22: 32.04 | BJ22: 3.04 | BK22: (32.04) | BL22: (3.04) | BM22: 47.96 | BN22: 86.96 | BP22: 68.00 | BQ22: 13.05 | BR22: (68.00) | BS22: (13.05) | BT22: 12.00 | BU22: 76.95 | CG22: 48.62955707 | CH22: 1.7 | CI22: 3.4 | CJ22: 2.253906701 | CK22: 98.30 | CL22: 196.60 | CM22: 46.37565037
A23: 60.00 | B23: 31.25 | C23: 19 | D23: 0.90 | E23: 1.80 | F23: 60.00 | G23: 60.00 | H23: 31.25 | I23: 60.00 | J23: 8.24 | K23: 60.00 | L23: 20.37 | M23: 60.00 | N23: 50.63 | O23: 60.00 | P23: 81.03 | Q23: 60 | R23: 30.00 | T23: 72.00 | U23: 45.00 | V23: 40.00 | W23: 81.00 | X23: 56.25 | Y23: 33.33 | Z23: 40.00 | AA23: 741.76 | AB23: 80.00 | AC23: 90.00 | AD23: 0 | AF23: 84.00 | AG23: 8.56 | AH23: (84.00) | AI23: (8.56) | AJ23: (4.00) | AK23: 81.44 | AM23: 116.31 | AN23: 14.68 | AO23: (116.31) | AP23: (14.68) | AQ23: (36.31) | AR23: 75.32 | AT23: 97.55 | AU23: 10.82 | AV23: (97.55) | AW23: (10.82) | AX23: (17.55) | AY23: 79.18 | BB23: 63.00 | BC23: 5.71 | BD23: (63.00) | BE23: (5.71) | BF23: 17.00 | BG23: 84.29 | BI23: 33.92 | BJ23: 2.66 | BK23: (33.92) | BL23: (2.66) | BM23: 46.08 | BN23: 87.34 | BP23: 72.00 | BQ23: 11.42 | BR23: (72.00) | BS23: (11.42) | BT23: 8.00 | BU23: 78.58 | CG23: 48.6972676 | CH23: 1.8 | CI23: 3.6 | CJ23: 2.359363202 | CK23: 98.20 | CL23: 196.40 | CM23: 46.3379044
A24: 63.33 | B24: 29.61 | C24: 20 | D24: 0.95 | E24: 1.90 | F24: 63.33 | G24: 63.33 | H24: 29.61 | I24: 63.33 | J24: 7.81 | K24: 63.33 | L24: 19.30 | M24: 63.33 | N24: 47.96 | O24: 63.33 | P24: 76.76 | Q24: 63.33333333 | R24: 28.42 | T24: 76.00 | U24: 45.00 | V24: 40.00 | W24: 85.50 | X24: 56.25 | Y24: 33.33 | Z24: 40.00 | AA24: 702.72 | AB24: 80.00 | AC24: 90.00 | AD24: 0 | AF24: 88.67 | AG24: 7.55 | AH24: (88.67) | AI24: (7.55) | AJ24: (8.67) | AK24: 82.45 | AM24: 122.77 | AN24: 12.94 | AO24: (122.77) | AP24: (12.94) | AQ24: (42.77) | AR24: 77.06 | AT24: 102.97 | AU24: 9.53 | AV24: (102.97) | AW24: (9.53) | AX24: (22.97) | AY24: 80.47 | BB24: 66.50 | BC24: 5.03 | BD24: (66.50) | BE24: (5.03) | BF24: 13.50 | BG24: 84.97 | BI24: 35.81 | BJ24: 2.35 | BK24: (35.81) | BL24: (2.35) | BM24: 44.19 | BN24: 87.65 | BP24: 76.00 | BQ24: 10.06 | BR24: (76.00) | BS24: (10.06) | BT24: 4.00 | BU24: 79.94 | CG24: 48.76380452 | CH24: 1.9 | CI24: 3.8 | CJ24: 2.463653794 | CK24: 98.10 | CL24: 196.20 | CM24: 46.30015073
A25: 66.67 | B25: 28.13 | C25: 21 | D25: 1.00 | E25: 2.00 | F25: 66.67 | G25: 66.67 | H25: 28.13 | I25: 66.67 | J25: 7.42 | K25: 66.67 | L25: 18.34 | M25: 66.67 | N25: 45.56 | O25: 66.67 | P25: 72.93 | Q25: 66.66666667 | R25: 27.00 | T25: 80.00 | U25: 45.00 | V25: 40.00 | W25: 90.00 | X25: 56.25 | Y25: 33.33 | Z25: 40.00 | AA25: 667.58 | AB25: 80.00 | AC25: 90.00 | AD25: 0 | AF25: 93.33 | AG25: 6.70 | AH25: (93.33) | AI25: (6.70) | AJ25: (13.33) | AK25: 83.30 | AM25: 129.23 | AN25: 11.48 | AO25: (129.23) | AP25: (11.48) | AQ25: (49.23) | AR25: 78.52 | AT25: 108.39 | AU25: 8.46 | AV25: (108.39) | AW25: (8.46) | AX25: (28.39) | AY25: 81.54 | BB25: 70.00 | BC25: 4.46 | BD25: (70.00) | BE25: (4.46) | BF25: 10.00 | BG25: 85.54 | BI25: 37.69 | BJ25: 2.08 | BK25: (37.69) | BL25: (2.08) | BM25: 42.31 | BN25: 87.92 | BP25: 80.00 | BQ25: 8.93 | BR25: (80.00) | BS25: (8.93) | BT25: 0 | BU25: 81.07 | CG25: 48.82924116 | CH25: 2 | CI25: 4 | CJ25: 2.566851795 | CK25: 98.00 | CL25: 196.00 | CM25: 46.26238937
A26: 70.00 | B26: 26.79 | C26: 22 | D26: 1.05 | E26: 2.10 | F26: 70.00 | G26: 70.00 | H26: 26.79 | I26: 70.00 | J26: 7.06 | K26: 70.00 | L26: 17.46 | M26: 70.00 | N26: 43.39 | O26: 70.00 | P26: 69.45 | Q26: 70 | R26: 25.71 | T26: =D26*$F$43 -> 84.00 | U26: 45.00 | V26: 40.00 | W26: =$F$44*D26 -> 94.50 | X26: 56.25 | Y26: 33.33 | Z26: 40.00 | AA26: =$F$44*J26 -> 635.79 | AB26: 80.00 | AC26: 90.00 | AD26: 0 | AF26: 98.00 | AG26: 5.98 | AH26: =AF26*-1 -> (98.00) | AI26: =AG26*-1 -> (5.98) | AJ26: (18.00) | AK26: =AI26+($E$47*2)+($D$47-$E$47) -> 84.02 | AM26: 135.69 | AN26: 10.24 | AO26: =AM26*-1 -> (135.69) | AP26: =AN26*-1 -> (10.24) | AQ26: (55.69) | AR26: 79.76 | AT26: 113.81 | AU26: 7.55 | AV26: =AT26*-1 -> (113.81) | AW26: =AU26*-1 -> (7.55) | AX26: (33.81) | AY26: 82.45 | BB26: 73.50 | BC26: 3.98 | BD26: =BB26*-1 -> (73.50) | BE26: =BC26*-1 -> (3.98) | BF26: 6.50 | BG26: 86.02 | BI26: 39.58 | BJ26: 1.86 | BK26: =BI26*-1 -> (39.58) | BL26: =BJ26*-1 -> (1.86) | BM26: 40.42 | BN26: 88.14 | BP26: 84.00 | BQ26: 7.97 | BR26: =BP26*-1 -> (84.00) | BS26: =BQ26*-1 -> (7.97) | BT26: (4.00) | BU26: 82.03 | CG26: 48.89364279 | CH26: 2.1 | CI26: 4.2 | CJ26: 2.66902249 | CK26: 97.90 | CL26: 195.80 | CM26: 46.2246203
A27: 73.33 | B27: 25.57 | C27: 23 | D27: 1.10 | E27: 2.20 | F27: 73.33 | G27: 73.33 | H27: 25.57 | I27: 73.33 | J27: 6.74 | K27: 73.33 | L27: 16.67 | M27: 73.33 | N27: 41.42 | O27: 73.33 | P27: 66.30 | Q27: 73.33333333 | R27: 24.55 | T27: 88.00 | U27: 45.00 | V27: 40.00 | W27: 99.00 | X27: 56.25 | Y27: 33.33 | Z27: 40.00 | AA27: 606.89 | AB27: 80.00 | AC27: 90.00 | AD27: 0 | AF27: 102.67 | AG27: 5.36 | AH27: (102.67) | AI27: (5.36) | AJ27: (22.67) | AK27: 84.64 | AM27: 142.15 | AN27: 9.19 | AO27: (142.15) | AP27: (9.19) | AQ27: (62.15) | AR27: 80.81 | AT27: 119.23 | AU27: 6.77 | AV27: (119.23) | AW27: (6.77) | AX27: (39.23) | AY27: 83.23 | BB27: 77.00 | BC27: 3.57 | BD27: (77.00) | BE27: (3.57) | BF27: 3.00 | BG27: 86.43 | BI27: 41.46 | BJ27: 1.67 | BK27: (41.46) | BL27: (1.67) | BM27: 38.54 | BN27: 88.33 | BP27: 88.00 | BQ27: 7.15 | BR27: (88.00) | BS27: (7.15) | BT27: (8.00) | BU27: 82.85 | CG27: 48.95706786 | CH27: 2.2 | CI27: 4.4 | CJ27: 2.770224349 | CK27: 97.80 | CL27: 195.60 | CM27: 46.18684351
A28: 76.67 | B28: 24.46 | C28: 24 | D28: 1.15 | E28: 2.30 | F28: 76.67 | G28: 76.67 | H28: 24.46 | I28: 76.67 | J28: 6.45 | K28: 76.67 | L28: 15.94 | M28: 76.67 | N28: 39.62 | O28: 76.67 | P28: 63.41 | Q28: 76.66666667 | R28: 23.48 | T28: 92.00 | U28: 45.00 | V28: 40.00 | W28: 103.50 | X28: 56.25 | Y28: 33.33 | Z28: 40.00 | AA28: 580.51 | AB28: 80.00 | AC28: 90.00 | AD28: 0 | AF28: 107.33 | AG28: 4.83 | AH28: (107.33) | AI28: (4.83) | AJ28: (27.33) | AK28: 85.17 | AM28: 148.62 | AN28: 8.29 | AO28: (148.62) | AP28: (8.29) | AQ28: (68.62) | AR28: 81.71 | AT28: 124.65 | AU28: 6.11 | AV28: (124.65) | AW28: (6.11) | AX28: (44.65) | AY28: 83.89 | BB28: 80.50 | BC28: 3.22 | BD28: (80.50) | BE28: (3.22) | BF28: (0.50) | BG28: 86.78 | BI28: 43.35 | BJ28: 1.50 | BK28: (43.35) | BL28: (1.50) | BM28: 36.65 | BN28: 88.50 | BP28: 92.00 | BQ28: 6.44 | BR28: (92.00) | BS28: (6.44) | BT28: (12.00) | BU28: 83.56 | CG28: 49.01956901 | CH28: 2.3 | CI28: 4.6 | CJ28: 2.870510015 | CK28: 97.70 | CL28: 195.40 | CM28: 46.14905899
A29: 80.00 | B29: 23.44 | C29: 25 | D29: 1.20 | E29: 2.40 | F29: =IF($D$46*E29>$F$43,$F$43,$D$46*E29) -> 80.00 | G29: 80.00 | H29: 23.44 | I29: 80.00 | J29: 6.18 | K29: 80.00 | L29: 15.28 | M29: 80.00 | N29: 37.97 | O29: 80.00 | P29: 60.77 | Q29: 80 | R29: 22.50 | T29: 96.00 | U29: 45.00 | V29: 40.00 | W29: 108.00 | X29: 56.25 | Y29: 33.33 | Z29: 40.00 | AA29: 556.32 | AB29: 80.00 | AC29: 90.00 | AD29: 0 | AF29: 112.00 | AG29: 4.38 | AH29: (112.00) | AI29: (4.38) | AJ29: (32.00) | AK29: 85.62 | AM29: 155.08 | AN29: 7.50 | AO29: (155.08) | AP29: (7.50) | AQ29: (75.08) | AR29: 82.50 | AT29: 130.06 | AU29: 5.53 | AV29: (130.06) | AW29: (5.53) | AX29: (50.06) | AY29: 84.47 | BB29: 84.00 | BC29: 2.92 | BD29: (84.00) | BE29: (2.92) | BF29: (4.00) | BG29: 87.08 | BI29: 45.23 | BJ29: 1.36 | BK29: (45.23) | BL29: (1.36) | BM29: 34.77 | BN29: 88.64 | BP29: 96.00 | BQ29: 5.84 | BR29: (96.00) | BS29: (5.84) | BT29: (16.00) | BU29: 84.16 | CG29: 49.08119386 | CH29: 2.4 | CI29: 4.8 | CJ29: 2.969927112 | CK29: 97.60 | CL29: 195.20 | CM29: 46.11126674
A30: 83.33 | B30: 22.50 | C30: 26 | D30: 1.25 | E30: 2.50 | F30: 80.00 | G30: 80.00 | H30: 23.44 | I30: 80.00 | J30: 6.18 | K30: 80.00 | L30: 15.28 | M30: 80.00 | N30: 37.97 | O30: 80.00 | P30: 60.77 | Q30: 80 | R30: 22.50 | T30: 100.00 | U30: 45.00 | V30: 40.00 | W30: 112.50 | X30: 56.25 | Y30: 33.33 | Z30: 40.00 | AA30: 556.32 | AB30: 80.00 | AC30: 90.00 | AD30: 0 | AF30: 116.67 | AG30: 3.98 | AH30: (116.67) | AI30: (3.98) | AJ30: (36.67) | AK30: 86.02 | AM30: 161.54 | AN30: 6.82 | AO30: (161.54) | AP30: (6.82) | AQ30: (81.54) | AR30: 83.18 | AT30: 135.48 | AU30: 5.03 | AV30: (135.48) | AW30: (5.03) | AX30: (55.48) | AY30: 84.97 | BB30: 87.50 | BC30: 2.65 | BD30: (87.50) | BE30: (2.65) | BF30: (7.50) | BG30: 87.35 | BI30: 47.12 | BJ30: 1.24 | BK30: (47.12) | BL30: (1.24) | BM30: 32.88 | BN30: 88.76 | BP30: 100.00 | BQ30: 5.31 | BR30: (100.00) | BS30: (5.31) | BT30: (20.00) | BU30: 84.69 | CG30: 49.14198566 | CH30: 2.5 | CI30: 5 | CJ30: 3.068518914 | CK30: 97.50 | CL30: 195.00 | CM30: 46.07346675
A31: 86.67 | B31: 21.63 | C31: 27 | D31: 1.30 | E31: 2.60 | F31: 80.00 | G31: 80.00 | H31: 23.44 | I31: 80.00 | J31: 6.18 | K31: 80.00 | L31: 15.28 | M31: 80.00 | N31: 37.97 | O31: 80.00 | P31: 60.77 | Q31: 80 | R31: 22.50 | T31: 104.00 | U31: 45.00 | V31: 40.00 | W31: 117.00 | X31: 56.25 | Y31: 33.33 | Z31: 40.00 | AA31: 556.32 | AB31: 80.00 | AC31: 90.00 | AD31: 0 | AF31: 121.33 | AG31: 3.63 | AH31: (121.33) | AI31: (3.63) | AJ31: (41.33) | AK31: 86.37 | AM31: 168.00 | AN31: 6.22 | AO31: (168.00) | AP31: (6.22) | AQ31: (88.00) | AR31: 83.78 | AT31: 140.90 | AU31: 4.59 | AV31: (140.90) | AW31: (4.59) | AX31: (60.90) | AY31: 85.41 | BB31: 91.00 | BC31: 2.42 | BD31: (91.00) | BE31: (2.42) | BF31: (11.00) | BG31: 87.58 | BI31: 49.00 | BJ31: 1.13 | BK31: (49.00) | BL31: (1.13) | BM31: 31.00 | BN31: 88.87 | BP31: 104.00 | BQ31: 4.84 | BR31: (104.00) | BS31: (4.84) | BT31: (24.00) | BU31: 85.16 | CG31: 49.2019839 | CH31: 2.6 | CI31: 5.2 | CJ31: 3.166324898 | CK31: 97.40 | CL31: 194.80 | CM31: 46.035659
A32: 90.00 | B32: 20.83 | C32: 28 | D32: 1.35 | E32: 2.70 | F32: 80.00 | G32: 80.00 | H32: 23.44 | I32: 80.00 | J32: 6.18 | K32: 80.00 | L32: 15.28 | M32: 80.00 | N32: 37.97 | O32: 80.00 | P32: 60.77 | Q32: 80 | R32: 22.50 | T32: 108.00 | U32: 45.00 | V32: 40.00 | W32: 121.50 | X32: 56.25 | Y32: 33.33 | Z32: 40.00 | AA32: 556.32 | AB32: 80.00 | AC32: 90.00 | AD32: 0 | AF32: 126.00 | AG32: 3.32 | AH32: (126.00) | AI32: (3.32) | AJ32: (46.00) | AK32: 86.68 | AM32: 174.46 | AN32: 5.70 | AO32: (174.46) | AP32: (5.70) | AQ32: (94.46) | AR32: 84.30 | AT32: 146.32 | AU32: 4.20 | AV32: (146.32) | AW32: (4.20) | AX32: (66.32) | AY32: 85.80 | BB32: 94.50 | BC32: 2.22 | BD32: (94.50) | BE32: (2.22) | BF32: (14.50) | BG32: 87.78 | BI32: 50.88 | BJ32: 1.03 | BK32: (50.88) | BL32: (1.03) | BM32: 29.12 | BN32: 88.97 | BP32: 108.00 | BQ32: 4.43 | BR32: (108.00) | BS32: (4.43) | BT32: (28.00) | BU32: 85.57 | CG32: 49.2612247 | CH32: 2.7 | CI32: 5.4 | CJ32: 3.263381212 | CK32: 97.30 | CL32: 194.60 | CM32: 45.99784349
A33: 93.33 | B33: 20.09 | C33: 29 | D33: 1.40 | E33: 2.80 | F33: 80.00 | G33: 80.00 | H33: 23.44 | I33: 80.00 | J33: 6.18 | K33: 80.00 | L33: 15.28 | M33: 80.00 | N33: 37.97 | O33: 80.00 | P33: 60.77 | Q33: 80 | R33: 22.50 | T33: 112.00 | U33: 45.00 | V33: 40.00 | W33: 126.00 | X33: 56.25 | Y33: 33.33 | Z33: 40.00 | AA33: 556.32 | AB33: 80.00 | AC33: 90.00 | AD33: 0 | AF33: 130.67 | AG33: 3.05 | AH33: (130.67) | AI33: (3.05) | AJ33: (50.67) | AK33: 86.95 | AM33: 180.92 | AN33: 5.24 | AO33: (180.92) | AP33: (5.24) | AQ33: (100.92) | AR33: 84.76 | AT33: 151.74 | AU33: 3.86 | AV33: (151.74) | AW33: (3.86) | AX33: (71.74) | AY33: 86.14 | BB33: 98.00 | BC33: 2.04 | BD33: (98.00) | BE33: (2.04) | BF33: (18.00) | BG33: 87.96 | BI33: 52.77 | BJ33: 0.95 | BK33: (52.77) | BL33: (0.95) | BM33: 27.23 | BN33: 89.05 | BP33: 112.00 | BQ33: 4.07 | BR33: (112.00) | BS33: (4.07) | BT33: (32.00) | BU33: 85.93 | CG33: 49.31974127 | CH33: 2.8 | CI33: 5.6 | CJ33: 3.359721067 | CK33: 97.20 | CL33: 194.40 | CM33: 45.9600202
A34: 96.67 | B34: 19.40 | C34: 30 | D34: 1.45 | E34: 2.90 | F34: 80.00 | G34: 80.00 | H34: 23.44 | I34: 80.00 | J34: 6.18 | K34: 80.00 | L34: 15.28 | M34: 80.00 | N34: 37.97 | O34: 80.00 | P34: 60.77 | Q34: 80 | R34: 22.50 | T34: 116.00 | U34: 45.00 | V34: 40.00 | W34: 130.50 | X34: 56.25 | Y34: 33.33 | Z34: 40.00 | AA34: 556.32 | AB34: 80.00 | AC34: 90.00 | AD34: 0 | AF34: 135.33 | AG34: 2.81 | AH34: (135.33) | AI34: (2.81) | AJ34: (55.33) | AK34: 87.19 | AM34: 187.38 | AN34: 4.82 | AO34: (187.38) | AP34: (4.82) | AQ34: (107.38) | AR34: 85.18 | AT34: 157.16 | AU34: 3.55 | AV34: (157.16) | AW34: (3.55) | AX34: (77.16) | AY34: 86.45 | BB34: 101.50 | BC34: 1.88 | BD34: (101.50) | BE34: (1.88) | BF34: (21.50) | BG34: 88.12 | BI34: 54.65 | BJ34: 0.88 | BK34: (54.65) | BL34: (0.88) | BM34: 25.35 | BN34: 89.12 | BP34: 116.00 | BQ34: 3.75 | BR34: (116.00) | BS34: (3.75) | BT34: (36.00) | BU34: 86.25 | CG34: 49.3775642 | CH34: 2.9 | CI34: 5.8 | CJ34: 3.455375073 | CK34: 97.10 | CL34: 194.20 | CM34: 45.92218913
A35: 100.00 | B35: 18.75 | C35: 31 | D35: 1.50 | E35: 3.00 | F35: 80.00 | G35: 80.00 | H35: 23.44 | I35: 80.00 | J35: 6.18 | K35: 80.00 | L35: 15.28 | M35: 80.00 | N35: 37.97 | O35: 80.00 | P35: 60.77 | Q35: 80 | R35: 22.50 | T35: 120.00 | U35: 45.00 | V35: 40.00 | W35: 135.00 | X35: 56.25 | Y35: 33.33 | Z35: 40.00 | AA35: 556.32 | AB35: 80.00 | AC35: 90.00 | AD35: 0 | AF35: 140.00 | AG35: 2.60 | AH35: (140.00) | AI35: (2.60) | AJ35: (60.00) | AK35: 87.40 | AM35: 193.85 | AN35: 4.46 | AO35: (193.85) | AP35: (4.46) | AQ35: (113.85) | AR35: 85.54 | AT35: 162.58 | AU35: 3.28 | AV35: (162.58) | AW35: (3.28) | AX35: (82.58) | AY35: 86.72 | BB35: 105.00 | BC35: 1.73 | BD35: (105.00) | BE35: (1.73) | BF35: (25.00) | BG35: 88.27 | BI35: 56.54 | BJ35: 0.81 | BK35: (56.54) | BL35: (0.81) | BM35: 23.46 | BN35: 89.19 | BP35: 120.00 | BQ35: 3.47 | BR35: (120.00) | BS35: (3.47) | BT35: (40.00) | BU35: 86.53 | CG35: 49.43472179 | CH35: 3 | CI35: 6 | CJ35: 3.550371522 | CK35: 97.00 | CL35: 194.00 | CM35: 45.88435027
A36: 103.33 | B36: 18.15 | C36: 32 | D36: 1.55 | E36: 3.10 | F36: 80.00 | G36: 80.00 | H36: 23.44 | I36: 80.00 | J36: 6.18 | K36: 80.00 | L36: 15.28 | M36: 80.00 | N36: 37.97 | O36: 80.00 | P36: 60.77 | Q36: 80 | R36: 22.50 | T36: 124.00 | U36: 45.00 | V36: 40.00 | W36: 139.50 | X36: 56.25 | Y36: 33.33 | Z36: 40.00 | AA36: 556.32 | AB36: 80.00 | AC36: 90.00 | AD36: 0 | AF36: 144.67 | AG36: 2.41 | AH36: (144.67) | AI36: (2.41) | AJ36: (64.67) | AK36: 87.59 | AM36: 200.31 | AN36: 4.13 | AO36: (200.31) | AP36: (4.13) | AQ36: (120.31) | AR36: 85.87 | AT36: 168.00 | AU36: 3.04 | AV36: (168.00) | AW36: (3.04) | AX36: (88.00) | AY36: 86.96 | BB36: 108.50 | BC36: 1.61 | BD36: (108.50) | BE36: (1.61) | BF36: (28.50) | BG36: 88.39 | BI36: 58.42 | BJ36: 0.75 | BK36: (58.42) | BL36: (0.75) | BM36: 21.58 | BN36: 89.25 | BP36: 124.00 | BQ36: 3.21 | BR36: (124.00) | BS36: (3.21) | BT36: (44.00) | BU36: 86.79 | CG36: 49.49124024 | CH36: 3.1 | CI36: 6.2 | CJ36: 3.644736639 | CK36: 96.90 | CL36: 193.80 | CM36: 45.8465036
A37: 106.67 | B37: 17.58 | C37: 33 | D37: 1.60 | E37: 3.20 | F37: 80.00 | G37: 80.00 | H37: 23.44 | I37: 80.00 | J37: 6.18 | K37: 80.00 | L37: 15.28 | M37: 80.00 | N37: 37.97 | O37: 80.00 | P37: 60.77 | Q37: 80 | R37: 22.50 | T37: 128.00 | U37: 45.00 | V37: 40.00 | W37: 144.00 | X37: 56.25 | Y37: 33.33 | Z37: 40.00 | AA37: 556.32 | AB37: 80.00 | AC37: 90.00 | AD37: 0 | AF37: 149.33 | AG37: 2.24 | AH37: (149.33) | AI37: (2.24) | AJ37: (69.33) | AK37: 87.76 | AM37: 206.77 | AN37: 3.83 | AO37: (206.77) | AP37: (3.83) | AQ37: (126.77) | AR37: 86.17 | AT37: 173.42 | AU37: 2.83 | AV37: (173.42) | AW37: (2.83) | AX37: (93.42) | AY37: 87.17 | BB37: 112.00 | BC37: 1.49 | BD37: (112.00) | BE37: (1.49) | BF37: (32.00) | BG37: 88.51 | BI37: 60.31 | BJ37: 0.70 | BK37: (60.31) | BL37: (0.70) | BM37: 19.69 | BN37: 89.30 | BP37: 128.00 | BQ37: 2.98 | BR37: (128.00) | BS37: (2.98) | BT37: (48.00) | BU37: 87.02 | CG37: 49.54714392 | CH37: 3.2 | CI37: 6.4 | CJ37: 3.738494794 | CK37: 96.80 | CL37: 193.60 | CM37: 45.80864912
A38: 110.00 | B38: 17.05 | C38: 34 | D38: 1.65 | E38: 3.30 | F38: 80.00 | G38: 80.00 | H38: 23.44 | I38: 80.00 | J38: 6.18 | K38: 80.00 | L38: 15.28 | M38: 80.00 | N38: 37.97 | O38: 80.00 | P38: 60.77 | Q38: 80 | R38: 22.50 | T38: 132.00 | U38: 45.00 | V38: 40.00 | W38: 148.50 | X38: 56.25 | Y38: 33.33 | Z38: 40.00 | AA38: 556.32 | AB38: 80.00 | AC38: 90.00 | AD38: 0 | AF38: 154.00 | AG38: 2.08 | AH38: (154.00) | AI38: (2.08) | AJ38: (74.00) | AK38: 87.92 | AM38: 213.23 | AN38: 3.57 | AO38: (213.23) | AP38: (3.57) | AQ38: (133.23) | AR38: 86.43 | AT38: 178.84 | AU38: 2.63 | AV38: (178.84) | AW38: (2.63) | AX38: (98.84) | AY38: 87.37 | BB38: 115.50 | BC38: 1.39 | BD38: (115.50) | BE38: (1.39) | BF38: (35.50) | BG38: 88.61 | BI38: 62.19 | BJ38: 0.65 | BK38: (62.19) | BL38: (0.65) | BM38: 17.81 | BN38: 89.35 | BP38: 132.00 | BQ38: 2.78 | BR38: (132.00) | BS38: (2.78) | BT38: (52.00) | BU38: 87.22 | CG38: 49.60245551 | CH38: 3.3 | CI38: 6.6 | CJ38: 3.831668683 | CK38: 96.70 | CL38: 193.40 | CM38: 45.77078682
A39: 113.33 | B39: 16.54 | C39: 35 | D39: 1.70 | E39: 3.40 | F39: 80.00 | G39: 80.00 | H39: 23.44 | I39: 80.00 | J39: 6.18 | K39: 80.00 | L39: 15.28 | M39: 80.00 | N39: 37.97 | O39: 80.00 | P39: 60.77 | Q39: 80 | R39: 22.50 | T39: 136.00 | U39: 45.00 | V39: 40.00 | W39: 153.00 | X39: 56.25 | Y39: 33.33 | Z39: 40.00 | AA39: 556.32 | AB39: 80.00 | AC39: 90.00 | AD39: 0 | AF39: 158.67 | AG39: 1.94 | AH39: (158.67) | AI39: (1.94) | AJ39: (78.67) | AK39: 88.06 | AM39: 219.69 | AN39: 3.33 | AO39: (219.69) | AP39: (3.33) | AQ39: (139.69) | AR39: 86.67 | AT39: 184.26 | AU39: 2.45 | AV39: (184.26) | AW39: (2.45) | AX39: (104.26) | AY39: 87.55 | BB39: 119.00 | BC39: 1.29 | BD39: (119.00) | BE39: (1.29) | BF39: (39.00) | BG39: 88.71 | BI39: =$E39*$BC$59 -> 64.08 | BJ39: 0.60 | BK39: (64.08) | BL39: (0.60) | BM39: 15.92 | BN39: 89.40 | BP39: 136.00 | BQ39: 2.59 | BR39: (136.00) | BS39: (2.59) | BT39: (56.00) | BU39: 87.41 | CG39: 49.65719619 | CH39: 3.4 | CI39: 6.8 | CJ39: 3.924279496 | CK39: 96.60 | CL39: 193.20 | CM39: 45.73291669
A40: 80.00 | B40: 23.44 | C40: 36 | D40: 1.75 | E40: =F43/D46 -> 2.40 | F40: 80.00 | G40: 80.00 | H40: 23.44 | I40: 80.00 | J40: 6.18 | K40: 80.00 | L40: 15.28 | M40: 80.00 | N40: 37.97 | O40: 80.00 | P40: 60.77 | Q40: 80 | R40: 22.50 | T40: 140.00 | U40: 45.00 | V40: 40.00 | W40: 157.50 | X40: 56.25 | Y40: 33.33 | Z40: 40.00 | AA40: 556.32 | AB40: 80.00 | AC40: 90.00 | AD40: 0 | AF40: 112.00 | AG40: 4.38 | AH40: (112.00) | AI40: (4.38) | AJ40: =IF((AH40+($AF$15*2)+($D$46-$E$46))>AJ39,AJ39-0.001,(AH40+($AF$15*2)+($D$46-$E$46))) -> (78.67) | AK40: =IF((AI40+($E$47*2)+($D$47-$E$47))<AK39,AK39+0.001,(AI40+($E$47*2)+($D$47-$E$47))) -> 88.06 | AM40: 155.08 | AN40: 7.50 | AO40: (155.08) | AP40: (7.50) | AQ40: =IF((AO40+($AM$15*2)+($AL$48-$AM$48))>AQ39,AQ39-0.001,(AO40+($AM$15*2)+($AL$48-$AM$48))) -> (139.69) | AR40: =IF((AP40+($AN$15*2)+($AL$49-$AM$49))<AR39,AR39+0.001,(AP40+($AN$15*2)+($AL$49-$AM$49))) -> 86.67 | AT40: 130.06 | AU40: 5.53 | AV40: (130.06) | AW40: (5.53) | AX40: =IF((AV40+($AT$15*2)+($AL$59-$AM$59))>AX39,AX39-0.001,(AV40+($AT$15*2)+($AL$59-$AM$59))) -> (104.26) | AY40: =IF((AW40+($AU$15*2)+($AL$60-$AM$60))<AY39,AY39+0.001,(AW40+($AU$15*2)+($AL$60-$AM$60))) -> 87.55 | BB40: 84.00 | BC40: 2.92 | BD40: (84.00) | BE40: (2.92) | BF40: =IF((BD40+($BB$15*2)+($BB$48-$BC$48))>BF39,BF39-0.001,(BD40+($BB$15*2)+($BB$48-$BC$48))) -> (39.00) | BG40: =IF((BE40+($BC$15*2)+($BB$49-$BC$49))<BG39,BG39+0.001,(BE40+($BC$15*2)+($BB$49-$BC$49))) -> 88.71 | BI40: =$E40*$BC$59 -> 45.23 | BJ40: 1.36 | BK40: (45.23) | BL40: (1.36) | BM40: =IF((BK40+($BI$15*2)+($BB$59-$BC$59))>BM39,BM39-0.001,(BK40+($BI$15*2)+($BB$59-$BC$59))) -> 15.92 | BN40: =IF((BL40+($BJ$15*2)+($BB$60-$BC$60))<BN39,BN39+0.001,(BL40+($BJ$15*2)+($BB$60-$BC$60))) -> 89.40 | BP40: 96.00 | BQ40: 5.84 | BR40: (96.00) | BS40: (5.84) | BT40: =IF((BR40+($BP$15*2)+($BK$46-$BL$46))>BT39,BT39-0.001,(BR40+($BP$15*2)+($BK$46-$BL$46))) -> (56.00) | BU40: =IF((BS40+($BQ$15*2)+($BK$47-$BL$47))<BU39,BU39+0.001,(BS40+($BQ$15*2)+($BK$47-$BL$47))) -> 87.41 | CG40: 49.71138577 | CH40: 3.5 | CI40: 7 | CJ40: 4.016347052 | CK40: 96.50 | CL40: 193.00 | CM40: 45.69503872
C41: original | H41: menos 2 | N41: más 1 | CG41: 49.76504282 | CH41: 3.6 | CI41: 7.2 | CJ41: 4.107889929 | CK41: 96.40 | CL41: 192.80 | CM41: 45.65715289
D42: Individuo A | E42: Individuo B | F42: Total | I42: Individuo A | J42: Individuo B | K42: Total | O42: Individuo A | P42: Individuo B | Q42: Total | CG42: 49.81818478 | CH42: 3.7 | CI42: 7.4 | CJ42: 4.198925574 | CK42: 96.30 | CL42: 192.60 | CM42: 45.61925921
C43: Dotación Bien 1 | D43: ='Caja EGP'!C10 -> 40 | E43: ='Caja EGP'!D10 -> 40 | F43: =E43+D43 -> 80 | G43: =($D$52*((D44/D43)^($D$53)))/($D$53*((D43/D44)^($D$52))) -> 1.125 | H43: Dotación Bien 1 | I43: =D43*0.5 -> 20 | J43: =K43-I43 -> 60 | K43: =F43 -> 80 | N43: Dotación Bien 1 | O43: =((F43-D43)*0.2)+D43 -> 48 | P43: =Q43-O43 -> 32 | Q43: =K43 -> 80 | AK43: MENOS 2 | BA43: MÁS 1 | CG43: 49.87082805 | CH43: 3.8 | CI43: 7.6 | CJ43: 4.289470396 | CK43: 96.20 | CL43: 192.40 | CM43: 45.58135765
C44: Dotación Bien 2 | D44: ='Caja EGP'!C11 -> 45 | E44: ='Caja EGP'!D11 -> 45 | F44: =E44+D44 -> 90 | G44: =($E$54*((E44/E43)^($E$55)))/($E$55*((E43/E44)^($E$54))) -> 2.625 | H44: Dotación Bien 2 | I44: =D44*0.5 -> 22.5 | J44: =K44-I44 -> 67.5 | K44: =F44 -> 90 | N44: Dotación Bien 2 | O44: =((F44-D44)*0.4)+D44 -> 63 | P44: =Q44-O44 -> 27 | Q44: =K44 -> 90 | AL44: Individuo A | AM44: Individuo B | AN44: Total | BB44: Individuo A | BC44: Individuo B | BD44: Total | BJ44: DOTACIÓN | CG44: 49.92298807 | CH44: 3.9 | CI44: 7.8 | CJ44: 4.379539858 | CK44: 96.10 | CL44: 192.20 | CM44: 45.54344821
C45: UTILIDAD | D45: =D56*D43^($D$52)*D44^($D$53) -> 42.42640687 | E45: =E56*E43^($E$54)*E44^($E$55) -> 41.43866428 | AK45: Dotación Bien 1 | AL45: =I43 -> 20 | AM45: 60 | AN45: 80 | BA45: Dotación Bien 1 | BB45: =O43 -> 48 | BC45: 32 | BD45: 80 | BK45: Individuo A | BL45: Individuo B | BM45: Total | CG45: 49.97467944 | CH45: 4 | CI45: 8 | CJ45: 4.469148552 | CK45: 96.00 | CL45: 192.00 | CM45: 45.50553089
C46: Demanda Bruta Bien 1 | D46: =(D52*D43)+(E57*D44*D52) -> 33.33333333 | E46: =(E54*E43)+(E54*E57*E44) -> 46.66666667 | F46: =E46+D46 -> 80 | G46: =($D$52*((D47/D46)^($D$53)))/($D$53*((D46/D47)^($D$52))) -> 1.6875 | H46: Demanda Bruta Bien 1 | I46: =($D$52*I43)+(J49*I44*$D$52) -> 15.38461538 | J46: =($E$54*J43)+($E$54*J49*J44) -> 64.61538462 | K46: =J46+I46 -> 80 | M46: =($D$52*((I47/I46)^($D$53)))/($D$53*((I46/I47)^($D$52))) -> 2.089285714 | N46: Demanda Bruta Bien 1 | O46: =($D$52*O43)+(P49*O44*$D$52) -> 45 | P46: =($E$54*P43)+($E$54*P49*P44) -> 35 | Q46: =P46+O46 -> 80 | R46: =($D$52*((O47/O46)^($D$53)))/($D$53*((O46/O47)^($D$52))) -> 1.5 | AK46: Dotación Bien 2 | AL46: 22.5 | AM46: 67.5 | AN46: 90 | BA46: Dotación Bien 2 | BB46: 63 | BC46: 27 | BD46: 90 | BJ46: Dotación Bien 1 | BK46: =D43 -> 40 | BL46: 40 | BM46: 80 | CG46: 50.02591593 | CH46: 4.1 | CI46: 8.2 | CJ46: 4.55831027 | CK46: 95.90 | CL46: 191.80 | CM46: 45.46760566
C47: Demanda Bruta Bien 2 | D47: =(D53*E58*D43)+(D53*D44) -> 56.25 | E47: =(E55*E58*E43)+(E55*E44) -> 33.75 | F47: =E47+D47 -> 90 | G47: =($E$54*((E47/E46)^($E$55)))/($E$55*((E46/E47)^($E$54))) -> 1.6875 | H47: Demanda Bruta Bien 2 | I47: =($D$53*J50*I43)+($D$53*I44) -> 32.14285714 | J47: =($E$55*J50*J43)+($E$55*J44) -> 57.85714286 | K47: =J47+I47 -> 90 | M47: =($E$54*((J47/J46)^($E$55)))/($E$55*((J46/J47)^($E$54))) -> 2.089285714 | N47: Demanda Bruta Bien 2 | O47: =($D$53*P50*O43)+($D$53*O44) -> 67.5 | P47: =($E$55*P50*P43)+($E$55*P44) -> 22.5 | Q47: =P47+O47 -> 90 | R47: =($E$54*((P47/P46)^($E$55)))/($E$55*((P46/P47)^($E$54))) -> 1.5 | AK47: UTILIDAD | AL47: =D56*AL45^($D$52)*AL46^($D$53) -> 21.21320344 | AM47: =E56*AM45^($E$54)*AM46^($E$55) -> 62.15799642 | BA47: UTILIDAD | BB47: =D56*BB45^($D$52)*BB46^($D$53) -> 54.99090834 | BC47: =E56*BC45^($E$54)*BC46^($E$55) -> 30.40983853 | BJ47: Dotación Bien 2 | BK47: 45 | BL47: 45 | BM47: 90 | CG47: 50.07671059 | CH47: 4.2 | CI47: 8.4 | CJ47: 4.647038065 | CK47: 95.80 | CL47: 191.60 | CM47: 45.42967252
C48: UTILIDAD | D48: =D56*D46^($D$52)*D47^($D$53) -> 43.30127019 | E48: =E56*E46^($E$54)*E47^($E$55) -> 42.34351239 | AK48: Demanda Bruta Bien 1 | AL48: =I46 -> 15.38461538 | AM48: 64.61538462 | AN48: 80 | BA48: Demanda Bruta Bien 1 | BB48: =O46 -> 45 | BC48: 35 | BD48: 80 | BJ48: UTILIDAD | BK48: =D56*BK46^($D$52)*BK47^($D$53) -> 42.42640687 | BL48: =E56*BL46^($E$54)*BL47^($E$55) -> 41.43866428 | CG48: 50.12707577 | CH48: 4.3 | CI48: 8.6 | CJ48: 4.735344307 | CK48: 95.70 | CL48: 191.40 | CM48: 45.39173146
C49: Demanda Neta Bien 1 | D49: =D46-D43 -> -6.666666667 | E49: =D47-D44 -> 11.25 | H49: P2/P1 | J49: =(($D$53*I43)+($E$55*J43))/(($D$52*I44)+($E$54*J44)) -> 0.4786324786 | K49: k inicial | N49: P2/P1 | P49: =(($D$53*O43)+($E$55*P43))/(($D$52*O44)+($E$54*P44)) -> 0.6666666667 | Q49: k inicial | AK49: Demanda Bruta Bien 2 | AL49: 32.14285714 | AM49: 57.85714286 | AN49: 90 | BA49: Demanda Bruta Bien 2 | BB49: 67.5 | BC49: 22.5 | BD49: 90 | CG49: 50.17702321 | CH49: 4.4 | CI49: 8.8 | CJ49: 4.823240735 | CK49: 95.60 | CL49: 191.20 | CM49: 45.35378248
C50: Demanda Neta Bien 2 | D50: =E46-E43 -> 6.666666667 | E50: =E47-E44 -> -11.25 | H50: P1/P2 | J50: =1/J49 -> 2.089285714 | K50: =D56*(I46^($D$52))*(I47^($D$53)) -> 22.2374795 | N50: P1/P2 | P50: =1/P49 -> 1.5 | Q50: =D56*(O46^($D$52))*(O47^($D$53)) -> 55.11351921 | AK50: UTILIDAD | AL50: =D56*AL48^($D$52)*AL49^($D$53) -> 22.2374795 | AM50: =E56*AM48^($E$54)*AM49^($E$55) -> 62.50895644 | BA50: UTILIDAD | BB50: =D56*BB48^($D$52)*BB49^($D$53) -> 55.11351921 | BC50: =E56*BC48^($E$54)*BC49^($E$55) -> 30.65507525 | CG50: 50.22656405 | CH50: 4.5 | CI50: 9 | CJ50: 4.910738503 | CK50: 95.50 | CL50: 191.00 | CM50: 45.31582555
AK51: P2/P1 | AM51: =J49 -> 0.4786324786 | AN51: =K49 -> k inicial | BA51: P2/P1 | BC51: =P49 -> 0.6666666667 | BD51: =Q49 -> k inicial | CG51: 50.27570889 | CH51: 4.6 | CI51: 9.2 | CJ51: 4.997848221 | CK51: 95.40 | CL51: 190.80 | CM51: 45.27786067
C52: a | D52: ='Caja EGP'!C25 -> 0.5 | H52: menos 1 | N52: más 2 | AK52: P1/P2 | AM52: =J50 -> 2.089285714 | AN52: =K50 -> 22.2374795 | BA52: P1/P2 | BC52: =P50 -> 1.5 | BD52: =Q50 -> 55.11351921 | CG52: 50.32446782 | CH52: 4.7 | CI52: 9.4 | CJ52: 5.084579989 | CK52: 95.30 | CL52: 190.60 | CM52: 45.23988783
C53: 1-a | D53: =1-D52 -> 0.5 | I53: Individuo A | J53: Individuo B | K53: Total | O53: Individuo A | P53: Individuo B | Q53: Total | CG53: 50.37285047 | CH53: 4.8 | CI53: 9.6 | CJ53: 5.17094344 | CK53: 95.20 | CL53: 190.40 | CM53: 45.20190703
C54: b | E54: ='Caja EGP'!D27 -> 0.7 | H54: Dotación Bien 1 | I54: =D43*0.8 -> 32 | J54: =K54-I54 -> 48 | K54: =K43 -> 80 | N54: Dotación Bien 1 | O54: =((F43-D43)*0.5)+D43 -> 60 | P54: =Q54-O54 -> 20 | Q54: =Q43 -> 80 | AK54: MENOS 1 | BA54: MÁS 2 | CG54: 50.420866 | CH54: 4.9 | CI54: 9.8 | CJ54: 5.256947763 | CK54: 95.10 | CL54: 190.20 | CM54: 45.16391824
C55: 1-b | E55: =1-E54 -> 0.3 | H55: Dotación Bien 2 | I55: =D44*0.8 -> 36 | J55: =K55-I55 -> 54 | K55: =K44 -> 90 | N55: Dotación Bien 2 | O55: =((F44-D44)*0.8)+D44 -> 81 | P55: =Q55-O55 -> 9 | Q55: =Q44 -> 90 | AL55: Individuo A | AM55: Individuo B | AN55: Total | BB55: Individuo A | BC55: Individuo B | BD55: Total | CG55: 50.4685232 | CH55: 5 | CI55: 10 | CJ55: 5.342601737 | CK55: 95.00 | CL55: 190.00 | CM55: 45.12592146
C56: A | D56: ='Caja EGP'!C12 -> 1 | E56: ='Caja EGP'!D12 -> 1 | AK56: Dotación Bien 1 | AL56: =I54 -> 32 | AM56: 48 | AN56: 80 | BA56: Dotación Bien 1 | BB56: =O54 -> 60 | BC56: 20 | BD56: 80 | CG56: =CJ56+CM56 -> 50.51583044 | CH56: 5.1 | CI56: 10.2 | CJ56: 5.427913755 | CK56: 94.90 | CL56: 189.80 | CM56: 45.08791668
C57: P2/P1 | E57: =((D53*D43)+(E55*E43))/((D52*D44)+(E54*E44)) -> 0.5925925926 | F57: k inicial | H57: Demanda Bruta Bien 1 | I57: =($D$52*I54)+(J60*I55*$D$52) -> 25.80645161 | J57: =($E$54*J54)+($E$54*J60*J55) -> 54.19354839 | K57: =J57+I57 -> 80 | M57: =($D$52*((I58/I57)^($D$53)))/($D$53*((I57/I58)^($D$52))) -> 1.835526316 | N57: Demanda Bruta Bien 1 | O57: =($D$52*O54)+(P60*O55*$D$52) -> 61.15384615 | P57: =($E$54*P54)+($E$54*P60*P55) -> 18.84615385 | Q57: =P57+O57 -> 80 | R57: =($D$52*((O58/O57)^($D$53)))/($D$53*((O57/O58)^($D$52))) -> 1.3 | AK57: Dotación Bien 2 | AL57: 36 | AM57: 54 | AN57: 90 | BA57: Dotación Bien 2 | BB57: 81 | BC57: 9 | BD57: 90 | CG57: =CJ57+CM57 -> 50.56279574 | CH57: 5.2 | CI57: 10.4 | CJ57: 5.512891847 | CK57: 94.80 | CL57: 189.60 | CM57: 45.04990389
C58: P1/P2 | E58: =1/E57 -> 1.6875 | F58: =D56*(D46^($D$52))*(D47^($D$53)) -> 43.30127019 | H58: Demanda Bruta Bien 2 | I58: =($D$53*J61*I54)+($D$53*I55) -> 47.36842105 | J58: =($E$55*J61*J54)+($E$55*J55) -> 42.63157895 | K58: =J58+I58 -> 90 | M58: =($E$54*((J58/J57)^($E$55)))/($E$55*((J57/J58)^($E$54))) -> 1.835526316 | N58: Demanda Bruta Bien 2 | O58: =($D$53*P61*O54)+($D$53*O55) -> 79.5 | P58: =($E$55*P61*P54)+($E$55*P55) -> 10.5 | Q58: =P58+O58 -> 90 | R58: =($E$54*((P58/P57)^($E$55)))/($E$55*((P57/P58)^($E$54))) -> 1.3 | AK58: UTILIDAD | AL58: =D56*AL56^($D$52)*AL57^($D$53) -> 33.9411255 | AM58: =E56*AM56^($E$54)*AM57^($E$55) -> 49.72639714 | BA58: UTILIDAD | BB58: =D56*BB56^($D$52)*BB57^($D$53) -> 69.71370023 | BC58: =E56*BC56^($E$54)*BC57^($E$55) -> 15.73960212 | CG58: =CJ58+CM58 -> 50.60942679 | CH58: 5.3 | CI58: 10.6 | CJ58: 5.597543706 | CK58: 94.70 | CL58: 189.40 | CM58: 45.01188309
AK59: Demanda Bruta Bien 1 | AL59: =($D$52*AL56)+(AM62*AL57*$D$52) -> 25.80645161 | AM59: =J57 -> 54.19354839 | AN59: =K57 -> 80 | BA59: Demanda Bruta Bien 1 | BB59: =O57 -> 61.15384615 | BC59: 18.84615385 | BD59: 80 | CG59: =CJ59+CM59 -> 50.65573095 | CH59: 5.4 | CI59: 10.8 | CJ59: 5.681876705 | CK59: 94.60 | CL59: 189.20 | CM59: 44.97385425
H60: P2/P1 | J60: =(($D$53*I54)+($E$55*J54))/(($D$52*I55)+($E$54*J55)) -> 0.5448028674 | K60: k inicial | N60: P2/P1 | P60: =(($D$53*O54)+($E$55*P54))/(($D$52*O55)+($E$54*P55)) -> 0.7692307692 | Q60: k inicial | AK60: Demanda Bruta Bien 2 | AL60: =($D$53*AM63*AL56)+($D$53*AL57) -> 47.36842105 | AM60: =J58 -> 42.63157895 | AN60: =K58 -> 90 | BA60: Demanda Bruta Bien 2 | BB60: 79.5 | BC60: 10.5 | BD60: 90 | CG60: =CJ60+CM60 -> 50.70171529 | CH60: 5.5 | CI60: 11 | CJ60: 5.765897918 | CK60: 94.50 | CL60: 189.00 | CM60: 44.93581737
H61: P1/P2 | J61: =1/J60 -> 1.835526316 | K61: =D56*(I57^($D$52))*(I58^($D$53)) -> 34.9629928 | N61: P1/P2 | P61: =1/P60 -> 1.3 | Q61: =D56*(O57^($D$52))*(O58^($D$53)) -> 69.72611253 | AK61: UTILIDAD | AL61: =D56*AL59^($D$52)*AL60^($D$53) -> 34.9629928 | AM61: =E56*AM59^($E$54)*AM60^($E$55) -> 50.42927644 | BA61: UTILIDAD | BB61: =D56*BB59^($D$52)*BB60^($D$53) -> 69.72611253 | BC61: =E56*BC59^($E$54)*BC60^($E$55) -> 15.81294288 | CG61: =CJ61+CM61 -> 50.74738657 | CH61: 5.6 | CI61: 11.2 | CJ61: 5.849614135 | CK61: 94.40 | CL61: 188.80 | CM61: 44.89777244
AK62: P2/P1 | AM62: =J60 -> 0.5448028674 | AN62: =K60 -> k inicial | BA62: P2/P1 | BC62: =P60 -> 0.7692307692 | BD62: =Q60 -> k inicial | CG62: 50.79275133 | CH62: 5.7 | CI62: 11.4 | CJ62: 5.933031882 | CK62: 94.30 | CL62: 188.60 | CM62: 44.85971944
D63: curva de tranasformación | E63: Inicio | F63: menos 2 | G63: menos 1 | H63: original | I63: más 1 | J63: más 2 | K63: final | AK63: P1/P2 | AM63: =J61 -> 1.835526316 | AN63: =K61 -> 34.9629928 | BA63: P1/P2 | BC63: =P61 -> 1.3 | BD63: =Q61 -> 69.72611253 | CG63: 50.83781581 | CH63: 5.8 | CI63: 11.6 | CJ63: 6.016157432 | CK63: 94.20 | CL63: 188.40 | CM63: 44.82165838
D64: x1 | E64: 0 | F64: =I46 -> 15.38461538 | G64: =I57 -> 25.80645161 | H64: =D46 -> 33.33333333 | I64: =O46 -> 45 | J64: =O57 -> 61.15384615 | K64: =F43 -> 80 | CG64: 50.88258606 | CH64: 5.9 | CI64: 11.8 | CJ64: 6.09899682 | CK64: 94.10 | CL64: 188.20 | CM64: 44.78358924
D65: x2 | E65: 0 | F65: =I47 -> 32.14285714 | G65: =I58 -> 47.36842105 | H65: =D47 -> 56.25 | I65: =O47 -> 67.5 | J65: =O58 -> 79.5 | K65: =F44 -> 90 | CG65: 50.92706785 | CH65: 6 | CI65: 12 | CJ65: 6.181555856 | CK65: 94.00 | CL65: 188.00 | CM65: 44.745512
CG66: 50.9712668 | CH66: 6.1 | CI66: 12.2 | CJ66: 6.263840141 | CK66: 93.90 | CL66: 187.80 | CM66: 44.70742666
CG67: 51.01518828 | CH67: 6.2 | CI67: 12.4 | CJ67: 6.345855069 | CK67: 93.80 | CL67: 187.60 | CM67: 44.66933321
CG68: 51.05883748 | CH68: 6.3 | CI68: 12.6 | CJ68: 6.427605847 | CK68: 93.70 | CL68: 187.40 | CM68: 44.63123163
CG69: 51.10221942 | CH69: 6.4 | CI69: 12.8 | CJ69: 6.509097498 | CK69: 93.60 | CL69: 187.20 | CM69: 44.59312192
B70: ÓPTIMO DE PARETO | CG70: 51.14533894 | CH70: 6.5 | CI70: 13 | CJ70: =(CH70^$BZ$7)*(CI70^$BZ$8) -> 6.590334874 | CK70: =$CA$10-CH70 -> 93.50 | CL70: =$CA$11-CI70 -> 187.00 | CM70: =(CK70^$CD$7)*(CL70^$CD$8) -> 44.55500407
F71: =POWER((F112/(F98^D107)),1/D106) -> 15.625 | G71: =($F$112/($F71^($D$106)))^(1/$D$107) -> 140 | AC71: DOTACIÓN | AD71: =POWER((D99/(F98^D107)),1/D106) -> 15 | AE71: =($D$99/($AD71^($D$106)))^(1/$D$107) -> 140 | CG71: 51.18820072 | CH71: =CH70+$CD$10 -> 6.6 | CI71: =CI70+$CD$11 -> 13.2 | CJ71: 6.671322661 | CK71: 93.40 | CL71: 186.80 | CM71: 44.51687806
A72: =+A94-D84 -> 1.40 | F72: Original | G72: Original | I72: DOTACIÓN | M72: OPTIMO | Q72: CAJA | U72: ORIGINAL | V72: ORIGINAL | W72: NEGATIVO | X72: NEGATIVO | Y72: TRANSFORMADA | AC72: Original | AE72: Original | AG72: ORIGINAL | AH72: ORIGINAL | AI72: NEGATIVO | AJ72: NEGATIVO | AK72: TRANSFORMADA | CG72: 51.23080928 | CH72: 6.7 | CI72: 13.4 | CJ72: 6.752065393 | CK72: 93.30 | CL72: 186.60 | CM72: 44.47874389
A73: =+A72/10 -> 0.14 | B73: Unidades | C73: ponderador | E73: x1 | F73: x1 | G73: x2 | I73: x1linedotación | K73: x2line | M73: x1linedotación | O73: x2line | U73: x1 | V73: x2 | W73: MENOS X1 | X73: MENOS X2 | Y73: x1 | Z73: x2 | AC73: x1 | AE73: x2 | AG73: x1 | AH73: x2 | AI73: MENOS X1 | AJ73: MENOS X2 | AK73: x1 | AL73: x2 | CG73: 51.27316899 | CH73: 6.8 | CI73: 13.6 | CJ73: 6.832567451 | CK73: 93.20 | CL73: 186.40 | CM73: 44.44060154
A74: =+D74 -> 0.01 | B74: 1 | C74: 0 | D74: 0.01 | E74: =$D$100*A74 -> 0.25 | F74: =IF(($F$112/($E74^($D$106)))^(1/$D$107)>$F$98,$F$71,E74) -> 15.625 | G74: =($F$112/($F74^($D$106)))^(1/$D$107) -> 140.00 | I74: =C74*$F$97 -> 0 | J74: =$D$98 -> 70.00 | K74: =$D$97 -> 30.00 | L74: =$F$98*C74 -> 0 | M74: =$D$101 -> 87.50 | N74: =$D$100 -> 25.00 | O74: =$D$97 -> 30.00 | P74: =C74*$F$98 -> 0 | Q74: =$F$97 -> 60.00 | R74: =$F$98 -> 140.00 | S74: 0 | U74: =$E$100*D74 -> 0.35 | V74: =(($H$101)/(U74^($E$108)))^(1/$E$109) -> 2,436,834.14 | W74: =U74*-1 -> (0.35) | X74: =V74*-1 -> (2,436,834.14) | Y74: =W74+($U$84*2)+($D$100-$E$100) -> 59.65 | Z74: =X74+($V$84*2)+($D$101-$E$101) -> (2,436,694.14) | AC74: =IF(($D$97*D74)>$F$97,$F$97,($D$97*A74)) -> 0.30 | AD74: =IF(((($D$97^($D$106))*($D$98^($D$107)))/(AC74^($D$106)))^(1/$D$107)>$F$98,$AD$71,AC74) -> 15.00 | AE74: =((($D$97^($D$106))*($D$98^($D$107)))/(AD74^($D$106)))^(1/$D$107) -> 140.00 | AG74: =$E$97*D74 -> 0.30 | AH74: =(($H$98)/(AG74^($E$108)))^(1/$E$109) -> 3,249,112.18 | AI74: =AG74*-1 -> (0.30) | AJ74: =AH74*-1 -> (3,249,112.18) | AK74: =IF((AI74+($AG$84*2)+($D$97-$E$97))>$F$97,$F$97,AI74+($AG$84*2)+($D$97-$E$97)) -> 59.70 | AL74: =AJ74+($AH$84*2)+($D$98-$F$98) -> (3,249,042.18) | CG74: 51.31528408 | CH74: 6.9 | CI74: 13.8 | CJ74: 6.912833077 | CK74: 93.10 | CL74: 186.20 | CM74: 44.40245101
A75: =+D75 -> 0.10 | B75: 2 | C75: 0.01 | D75: 0.10 | E75: =$D$100*A75 -> 2.50 | F75: =IF(($F$112/($E75^($D$106)))^(1/$D$107)>$F$98,$F$71,E75) -> 15.625 | G75: =($F$112/($F75^($D$106)))^(1/$D$107) -> 140.00 | I75: 0.60 | J75: 70.00 | K75: 30.00 | L75: 1.40 | M75: 87.50 | N75: 25.00 | O75: 30.00 | P75: 1.40 | Q75: 60.00 | R75: 140.00 | S75: 0 | U75: 3.50 | V75: 11,310.78 | W75: (3.50) | X75: (11,310.78) | Y75: 56.50 | Z75: (11,170.78) | AC75: =IF(($D$97*D75)>$F$97,$F$97,($D$97*D75)) -> 3.00 | AD75: =IF(((($D$97^($D$106))*($D$98^($D$107)))/(AC75^($D$106)))^(1/$D$107)>$F$98,$AD$71,AC75) -> 15.00 | AE75: =((($D$97^($D$106))*($D$98^($D$107)))/(AD75^($D$106)))^(1/$D$107) -> 140.00 | AG75: 3.00 | AH75: 15,081.04 | AI75: (3.00) | AJ75: (15,081.04) | AK75: 57.00 | AL75: =AJ75+($AH$84*2)+($D$98-$E$98) -> (14,941.04) | CG75: 51.35715865 | CH75: 7 | CI75: 14 | CJ75: 6.992866376 | CK75: 93.00 | CL75: 186.00 | CM75: 44.36429228
A76: 0.20 | B76: 3 | C76: 0.10 | D76: 0.20 | E76: 5.00 | F76: 15.625 | G76: 140.00 | I76: 6.00 | J76: 70.00 | K76: 30.00 | L76: 14.00 | M76: 87.50 | N76: 25.00 | O76: 30.00 | P76: 14.00 | Q76: 60.00 | R76: 140.00 | S76: 0 | U76: 7.00 | V76: 2,244.34 | W76: (7.00) | X76: (2,244.34) | Y76: 53.00 | Z76: (2,104.34) | AC76: 6.00 | AD76: 15.00 | AE76: 140.00 | AG76: 6.00 | AH76: 2,992.46 | AI76: (6.00) | AJ76: (2,992.46) | AK76: 54.00 | AL76: (2,852.46) | CG76: 51.39879667 | CH76: 7.1 | CI76: 14.2 | CJ76: 7.072671327 | CK76: 92.90 | CL76: 185.80 | CM76: 44.32612534
A77: 0.30 | B77: 4 | C77: 0.15 | D77: 0.30 | E77: 7.50 | F77: 15.625 | G77: 140.00 | I77: 9.00 | J77: 70.00 | K77: 30.00 | L77: 21.00 | M77: 87.50 | N77: 25.00 | O77: 30.00 | P77: 21.00 | Q77: 60.00 | R77: 140.00 | S77: 0 | U77: 10.50 | V77: 871.38 | W77: (10.50) | X77: (871.38) | Y77: 49.50 | Z77: (731.38) | AC77: 9.00 | AD77: 15.00 | AE77: 140.00 | AG77: 9.00 | AH77: 1,161.85 | AI77: (9.00) | AJ77: (1,161.85) | AK77: 51.00 | AL77: (1,021.85) | CG77: 51.44020197 | CH77: 7.2 | CI77: 14.4 | CJ77: 7.152251784 | CK77: 92.80 | CL77: 185.60 | CM77: 44.28795018
A78: 0.40 | B78: 5 | C78: 0.20 | D78: 0.40 | E78: 10.00 | F78: 15.625 | G78: 140.00 | I78: 12.00 | J78: 70.00 | K78: 30.00 | L78: 28.00 | M78: 87.50 | N78: 25.00 | O78: 30.00 | P78: 28.00 | Q78: 60.00 | R78: 140.00 | S78: 0 | U78: 14.00 | V78: 445.33 | W78: (14.00) | X78: (445.33) | Y78: 46.00 | Z78: (305.33) | AC78: 12.00 | AD78: 15.00 | AE78: 140.00 | AG78: 12.00 | AH78: 593.78 | AI78: (12.00) | AJ78: (593.78) | AK78: 48.00 | AL78: (453.78) | CG78: 51.48137828 | CH78: 7.3 | CI78: 14.6 | CJ78: 7.231611482 | CK78: 92.70 | CL78: 185.40 | CM78: 44.2497668
A79: 0.50 | B79: 6 | C79: 0.25 | D79: 0.50 | E79: 12.50 | F79: 15.625 | G79: 140.00 | I79: 15.00 | J79: 70.00 | K79: 30.00 | L79: 35.00 | M79: 87.50 | N79: 25.00 | O79: 30.00 | P79: 35.00 | Q79: 60.00 | R79: 140.00 | S79: 0 | U79: 17.50 | V79: 264.58 | W79: (17.50) | X79: (264.58) | Y79: 42.50 | Z79: (124.58) | AC79: 15.00 | AD79: 15.00 | AE79: 140.00 | AG79: 15.00 | AH79: 352.78 | AI79: (15.00) | AJ79: (352.78) | AK79: 45.00 | AL79: (212.78) | CG79: 51.52232923 | CH79: 7.4 | CI79: 14.8 | CJ79: 7.310754047 | CK79: 92.60 | CL79: 185.20 | CM79: 44.21157518
A80: 0.60 | B80: 7 | C80: 0.30 | D80: 0.60 | E80: 15.00 | F80: 15.625 | G80: 140.00 | I80: 18.00 | J80: 70.00 | K80: 30.00 | L80: 42.00 | M80: 87.50 | N80: 25.00 | O80: 30.00 | P80: 42.00 | Q80: 60.00 | R80: 140.00 | S80: 0 | U80: 21.00 | V80: 172.90 | W80: (21.00) | X80: (172.90) | Y80: 39.00 | Z80: (32.90) | AC80: 18.00 | AD80: 18.00 | AE80: 116.67 | AG80: 18.00 | AH80: 230.54 | AI80: (18.00) | AJ80: (230.54) | AK80: 42.00 | AL80: (90.54) | CG80: 51.5630583 | CH80: 7.5 | CI80: 15 | CJ80: 7.389682995 | CK80: 92.50 | CL80: 185.00 | CM80: 44.17337531
A81: 0.70 | B81: 8 | C81: 0.35 | D81: 0.70 | E81: 17.50 | F81: 17.5 | G81: 125.00 | I81: 21.00 | J81: 70.00 | K81: 30.00 | L81: 49.00 | M81: 87.50 | N81: 25.00 | O81: 30.00 | P81: 49.00 | Q81: 60.00 | R81: 140.00 | S81: 0 | U81: 24.50 | V81: 120.67 | W81: (24.50) | X81: (120.67) | Y81: 35.50 | Z81: 19.33 | AC81: 21.00 | AD81: 21.00 | AE81: 100.00 | AG81: 21.00 | AH81: 160.89 | AI81: (21.00) | AJ81: (160.89) | AK81: 39.00 | AL81: (20.89) | CG81: 51.60356891 | CH81: 7.6 | CI81: 15.2 | CJ81: 7.468401739 | CK81: 92.40 | CL81: 184.80 | CM81: 44.13516717
A82: 0.80 | B82: 9 | C82: 0.40 | D82: 0.80 | E82: 20.00 | F82: 20 | G82: 109.38 | I82: 24.00 | J82: 70.00 | K82: 30.00 | L82: 56.00 | M82: 87.50 | N82: 25.00 | O82: 30.00 | P82: 56.00 | Q82: 60.00 | R82: 140.00 | S82: 0 | U82: 28.00 | V82: 88.37 | W82: (28.00) | X82: (88.37) | Y82: 32.00 | Z82: 51.63 | AC82: 24.00 | AD82: 24.00 | AE82: 87.50 | AG82: 24.00 | AH82: 117.82 | AI82: (24.00) | AJ82: (117.82) | AK82: 36.00 | AL82: 22.18 | CG82: 51.64386436 | CH82: 7.7 | CI82: 15.4 | CJ82: 7.546913594 | CK82: 92.30 | CL82: 184.60 | CM82: 44.09695077
A83: 0.90 | B83: 10 | C83: 0.45 | D83: 0.90 | E83: 22.50 | F83: 22.5 | G83: 97.22 | I83: 27.00 | J83: 70.00 | K83: 30.00 | L83: 63.00 | M83: 87.50 | N83: 25.00 | O83: 30.00 | P83: 63.00 | Q83: 60.00 | R83: 140.00 | S83: 0 | U83: 31.50 | V83: 67.13 | W83: (31.50) | X83: (67.13) | Y83: 28.50 | Z83: 72.87 | AC83: 27.00 | AD83: 27.00 | AE83: 77.78 | AG83: 27.00 | AH83: 89.51 | AI83: (27.00) | AJ83: (89.51) | AK83: 33.00 | AL83: 50.49 | CG83: 51.68394787 | CH83: 7.8 | CI83: 15.6 | CJ83: 7.625221781 | CK83: 92.20 | CL83: 184.40 | CM83: 44.05872609
A84: =+A85-$A$73 -> 1.00 | B84: 11 | C84: 0.50 | D84: 1.00 | E84: 25.00 | F84: 25 | G84: 87.50 | I84: 30.00 | J84: 70.00 | K84: 30.00 | L84: 70.00 | M84: 87.50 | N84: 25.00 | O84: 30.00 | P84: 70.00 | Q84: 60.00 | R84: 140.00 | S84: 0 | U84: 35.00 | V84: 52.50 | W84: =U84*-1 -> (35.00) | X84: =V84*-1 -> (52.50) | Y84: 25.00 | Z84: 87.50 | AC84: 30.00 | AD84: 30.00 | AE84: 70.00 | AG84: =$E$97*D84 -> 30.00 | AH84: 70.00 | AI84: =AG84*-1 -> (30.00) | AJ84: =AH84*-1 -> (70.00) | AK84: =IF((AI84+($AG$84*2)+($D$97-$E$97))>$F$97,$F$97,AI84+($AG$84*2)+($D$97-$E$97)) -> 30.00 | AL84: 70.00 | CG84: 51.72382254 | CH84: 7.9 | CI84: 15.8 | CJ84: 7.703329428 | CK84: 92.10 | CL84: 184.20 | CM84: 44.02049311
A85: 1.14 | B85: 12 | C85: 0.55 | D85: 1.10 | E85: 28.50 | F85: 28.5 | G85: 76.75 | I85: 33.00 | J85: 70.00 | K85: 30.00 | L85: 77.00 | M85: 87.50 | N85: 25.00 | O85: 30.00 | P85: 77.00 | Q85: 60.00 | R85: 140.00 | S85: 0 | U85: 38.50 | V85: 42.03 | W85: =U85*-1 -> (38.50) | X85: =V85*-1 -> (42.03) | Y85: 21.50 | Z85: 97.97 | AC85: =IF(($D$97*D85)>$F$97,$F$97,($D$97*A85)) -> 34.20 | AD85: 34.20 | AE85: 61.40 | AG85: =$E$97*D85 -> 33.00 | AH85: 56.04 | AI85: =AG85*-1 -> (33.00) | AJ85: =AH85*-1 -> (56.04) | AK85: =IF((AI85+($AG$84*2)+($D$97-$E$97))>$F$97,$F$97,AI85+($AG$84*2)+($D$97-$E$97)) -> 27.00 | AL85: 83.96 | CG85: 51.76349141 | CH85: 8 | CI85: 16 | CJ85: 7.781239579 | CK85: 92.00 | CL85: 184.00 | CM85: 43.98225183
A86: 1.28 | B86: 13 | C86: 0.60 | D86: 1.20 | E86: 32.00 | F86: 32 | G86: 68.36 | I86: 36.00 | J86: 70.00 | K86: 30.00 | L86: 84.00 | M86: 87.50 | N86: 25.00 | O86: 30.00 | P86: 84.00 | Q86: 60.00 | R86: 140.00 | S86: 0 | U86: 42.00 | V86: 34.31 | W86: (42.00) | X86: (34.31) | Y86: 18.00 | Z86: 105.69 | AC86: 36.00 | AD86: 36.00 | AE86: 58.33 | AG86: 36.00 | AH86: 45.74 | AI86: (36.00) | AJ86: (45.74) | AK86: 24.00 | AL86: 94.26 | CG86: 51.80295742 | CH86: 8.1 | CI86: 16.2 | CJ86: 7.858955193 | CK86: 91.90 | CL86: 183.80 | CM86: 43.94400223
A87: 1.42 | B87: 14 | C87: 0.65 | D87: 1.30 | E87: 35.50 | F87: 35.5 | G87: 61.62 | I87: 39.00 | J87: 70.00 | K87: 30.00 | L87: 91.00 | M87: 87.50 | N87: 25.00 | O87: 30.00 | P87: 91.00 | Q87: 60.00 | R87: 140.00 | S87: 0 | U87: 45.50 | V87: 28.46 | W87: (45.50) | X87: (28.46) | Y87: 14.50 | Z87: 111.54 | AC87: 39.00 | AD87: 39.00 | AE87: 53.85 | AG87: 39.00 | AH87: 37.95 | AI87: (39.00) | AJ87: (37.95) | AK87: 21.00 | AL87: 102.05 | CG87: 51.84222346 | CH87: 8.2 | CI87: 16.4 | CJ87: 7.936479147 | CK87: 91.80 | CL87: 183.60 | CM87: 43.90574431
A88: 1.56 | B88: 15 | C88: 0.70 | D88: 1.40 | E88: 39.00 | F88: 39 | G88: 56.09 | I88: 42.00 | J88: 70.00 | K88: 30.00 | L88: 98.00 | M88: 87.50 | N88: 25.00 | O88: 30.00 | P88: 98.00 | Q88: 60.00 | R88: 140.00 | S88: 0 | U88: 49.00 | V88: 23.94 | W88: (49.00) | X88: (23.94) | Y88: 11.00 | Z88: 116.06 | AC88: 42.00 | AD88: 42.00 | AE88: 50.00 | AG88: 42.00 | AH88: 31.93 | AI88: (42.00) | AJ88: (31.93) | AK88: 18.00 | AL88: 108.07 | CG88: 51.8812923 | CH88: 8.3 | CI88: 16.6 | CJ88: 8.013814244 | CK88: 91.70 | CL88: 183.40 | CM88: 43.86747805
A89: 1.70 | B89: 16 | C89: 0.75 | D89: 1.50 | E89: 42.50 | F89: 42.5 | G89: 51.47 | I89: 45.00 | J89: 70.00 | K89: 30.00 | L89: 105.00 | M89: 87.50 | N89: 25.00 | O89: 30.00 | P89: 105.00 | Q89: 60.00 | R89: 140.00 | S89: 0 | U89: 52.50 | V89: 20.38 | W89: (52.50) | X89: (20.38) | Y89: 7.50 | Z89: 119.62 | AC89: 45.00 | AD89: 45.00 | AE89: 46.67 | AG89: 45.00 | AH89: 27.18 | AI89: (45.00) | AJ89: (27.18) | AK89: 15.00 | AL89: 112.82 | CG89: 51.92016666 | CH89: 8.4 | CI89: 16.8 | CJ89: 8.09096321 | CK89: 91.60 | CL89: 183.20 | CM89: 43.82920345
A90: 1.84 | B90: 17 | C90: 0.80 | D90: 1.60 | E90: 46.00 | F90: 46 | G90: 47.55 | I90: 48.00 | J90: 70.00 | K90: 30.00 | L90: 112.00 | M90: 87.50 | N90: 25.00 | O90: 30.00 | P90: 112.00 | Q90: 60.00 | R90: 140.00 | S90: 0 | U90: 56.00 | V90: 17.53 | W90: (56.00) | X90: (17.53) | Y90: 4.00 | Z90: 122.47 | AC90: 48.00 | AD90: 48.00 | AE90: 43.75 | AG90: 48.00 | AH90: 23.38 | AI90: (48.00) | AJ90: (23.38) | AK90: 12.00 | AL90: 116.62 | CG90: 51.95884919 | CH90: 8.5 | CI90: 17 | CJ90: 8.167928702 | CK90: 91.50 | CL90: 183.00 | CM90: 43.79092049
A91: 1.98 | B91: 18 | C91: 0.85 | D91: 1.70 | E91: 49.50 | F91: 49.5 | G91: 44.19 | I91: 51.00 | J91: 70.00 | K91: 30.00 | L91: 119.00 | M91: 87.50 | N91: 25.00 | O91: 30.00 | P91: 119.00 | Q91: 60.00 | R91: 140.00 | S91: 0 | U91: 59.50 | V91: 15.22 | W91: (59.50) | X91: (15.22) | Y91: 0.50 | Z91: 124.78 | AC91: 51.00 | AD91: 51.00 | AE91: 41.18 | AG91: 51.00 | AH91: 20.29 | AI91: (51.00) | AJ91: (20.29) | AK91: 9.00 | AL91: 119.71 | CG91: 51.99734247 | CH91: 8.6 | CI91: 17.2 | CJ91: 8.244713307 | CK91: 91.40 | CL91: 182.80 | CM91: 43.75262916
A92: 2.12 | B92: 19 | C92: 0.90 | D92: 1.80 | E92: 53.00 | F92: 53 | G92: 41.27 | I92: 54.00 | J92: 70.00 | K92: 30.00 | L92: 126.00 | M92: 87.50 | N92: 25.00 | O92: 30.00 | P92: 126.00 | Q92: 60.00 | R92: 140.00 | S92: 0 | U92: 63.00 | V92: 13.32 | W92: (63.00) | X92: (13.32) | Y92: (3.00) | Z92: 126.68 | AC92: 54.00 | AD92: 54.00 | AE92: 38.89 | AG92: 54.00 | AH92: 17.76 | AI92: (54.00) | AJ92: (17.76) | AK92: 6.00 | AL92: 122.24 | CG92: 52.035649 | CH92: 8.7 | CI92: 17.4 | CJ92: 8.321319547 | CK92: 91.30 | CL92: 182.60 | CM92: 43.71432945
A93: =+A94-$A$73 -> 2.26 | B93: 20 | C93: 0.95 | D93: 1.90 | E93: 56.50 | F93: 56.5 | G93: 38.72 | I93: 57.00 | J93: 70.00 | K93: 30.00 | L93: 133.00 | M93: 87.50 | N93: 25.00 | O93: 30.00 | P93: 133.00 | Q93: 60.00 | R93: 140.00 | S93: 0 | U93: 66.50 | V93: 11.74 | W93: (66.50) | X93: (11.74) | Y93: (6.50) | Z93: 128.26 | AC93: 57.00 | AD93: 57.00 | AE93: 36.84 | AG93: 57.00 | AH93: 15.66 | AI93: (57.00) | AJ93: (15.66) | AK93: 3.00 | AL93: 124.34 | CG93: 52.07377123 | CH93: 8.8 | CI93: 17.6 | CJ93: 8.397749878 | CK93: 91.20 | CL93: 182.40 | CM93: 43.67602135
A94: =+D94 -> 2.40 | B94: 21 | C94: 1.00 | D94: =F97/D100 -> 2.40 | E94: =$D$100*D94 -> 60.00 | F94: 60 | G94: 36.46 | I94: 60.00 | J94: 70.00 | K94: 30.00 | L94: 140.00 | M94: 87.50 | N94: 25.00 | O94: 30.00 | P94: 140.00 | Q94: 60.00 | R94: 140.00 | S94: 0 | U94: 84.00 | V94: 6.81 | W94: (84.00) | X94: (6.81) | AG94: 72.00 | AH94: 9.08 | AI94: (72.00) | AJ94: (9.08) | AK94: =IF((AI94+($AG$84*2)+($D$97-$E$97))>$F$97,$F$97,AI94+($AG$84*2)+($D$97-$E$97)) -> (12.00) | AL94: =AJ94+($AH$84*2)+($D$98-$E$98) -> 130.92 | CG94: 52.11171155 | CH94: 8.9 | CI94: 17.8 | CJ94: 8.474006697 | CK94: 91.10 | CL94: 182.20 | CM94: 43.63770485
C95: original | I95: original | N95: original | S95: original | CG95: 52.14947227 | CH95: 9 | CI95: 18 | CJ95: 8.550092341 | CK95: 91.00 | CL95: 182.00 | CM95: 43.59937993
D96: Individuo A | E96: Individuo B | F96: Total | J96: Individuo A | K96: Individuo B | L96: Total | O96: Individuo A | P96: Individuo B | Q96: Total | T96: Individuo A | U96: Individuo B | V96: Total | Y96: Individuo A | Z96: Individuo B | AA96: Total | CG96: 52.18705568 | CH96: 9.1 | CI96: 18.2 | CJ96: 8.626009089 | CK96: 90.90 | CL96: 181.80 | CM96: 43.56104659
C97: Dotación Bien 1 | D97: ='Optimo Pareto EGP'!C10 -> 30 | E97: ='Optimo Pareto EGP'!D10 -> 30 | F97: =E97+D97 -> 60 | G97: =(D106*((D98/D97)^(D107)))/(D107*((D97/D98)^(D106))) -> 2.333333333 | H97: =D97^(D106)*D98^(D107) -> 45.82575695 | I97: Dotación Bien 1 | J97: =D97*0.3 -> 9 | K97: =L97-J97 -> 51 | L97: =F97 -> 60 | M97: =(J106*((J98/J97)^(J107)))/(J107*((J97/J98)^(J106))) -> 2.333333333 | N97: Dotación Bien 1 | O97: =D97*0.7 -> 21 | P97: =Q97-O97 -> 39 | Q97: =L97 -> 60 | R97: =(O106*((O98/O97)^(O107)))/(O107*((O97/O98)^(O106))) -> 2.333333333 | S97: Dotación Bien 1 | T97: =D97+(E97*0.3) -> 39 | U97: =V97-T97 -> 21 | V97: =Q97 -> 60 | W97: =(T106*((T98/T97)^(T107)))/(T107*((T97/T98)^(T106))) -> 2.333333333 | X97: Dotación Bien 1 | Y97: =D97+(E97*0.7) -> 51 | Z97: =AA97-Y97 -> 9 | AA97: =V97 -> 60 | AB97: =(Y106*((Y98/Y97)^(Y107)))/(Y107*((Y97/Y98)^(Y106))) -> 2.333333333 | CG97: 52.22446399 | CH97: 9.2 | CI97: 18.4 | CJ97: 8.701759167 | CK97: 90.80 | CL97: 181.60 | CM97: 43.52270482
C98: Dotación Bien 2 | D98: ='Optimo Pareto EGP'!C11 -> 70 | E98: ='Optimo Pareto EGP'!D11 -> 70 | F98: =E98+D98 -> 140 | G98: =(E108*((E98/E97)^(E109)))/(E109*((E97/E98)^(E108))) -> 5.444444444 | H98: =E97^(E108)*E98^(E109) -> 38.68247828 | I98: Dotación Bien 2 | J98: =D98*0.3 -> 21 | K98: =L98-J98 -> 119 | L98: =F98 -> 140 | M98: =(K108*((K98/K97)^(K109)))/(K109*((K97/K98)^(K108))) -> 5.444444444 | N98: Dotación Bien 2 | O98: =D98*0.7 -> 49.00 | P98: =Q98-O98 -> 91 | Q98: =L98 -> 140 | R98: =(P108*((P98/P97)^(P109)))/(P109*((P97/P98)^(P108))) -> 5.444444444 | S98: Dotación Bien 2 | T98: =D98+(E98*0.3) -> 91 | U98: =V98-T98 -> 49 | V98: =Q98 -> 140 | W98: =(U108*((U98/U97)^(U109)))/(U109*((U97/U98)^(U108))) -> 5.444444444 | X98: Dotación Bien 2 | Y98: =D98+(E98*0.7) -> 119 | Z98: =AA98-Y98 -> 21 | AA98: =V98 -> 140 | AB98: =(Z108*((Z98/Z97)^(Z109)))/(Z109*((Z97/Z98)^(Z108))) -> 5.444444444 | CG98: 52.26169935 | CH98: 9.3 | CI98: 18.6 | CJ98: 8.777344747 | CK98: 90.70 | CL98: 181.40 | CM98: 43.4843546
D99: =D97^($D$106)*D98^($D$107) -> 45.82575695 | E99: =E97^($E$108)*E98^($E$109) -> 38.68247828 | CG99: 52.29876387 | CH99: 9.4 | CI99: 18.8 | CJ99: 8.852767947 | CK99: 90.60 | CL99: 181.20 | CM99: 43.44599592
C100: Demanda Bruta Bien 1 | D100: =(D106*D97)+(E111*D98*D106) -> 25 | E100: =(E108*E97)+(E108*E111*E98) -> 35 | F100: =E100+D100 -> 60 | G100: =(D106*((D101/D100)^(D107)))/(D107*((D100/D101)^(D106))) -> 3.5 | H100: =D100^(D106)*D101^(D107) -> 46.77071733 | I100: Demanda Bruta Bien 1 | J100: =(J106*J97)+(K111*J98*J106) -> 6.71641791 | K100: =(K108*K97)+(K108*K111*K98) -> 53.28358209 | L100: =K100+J100 -> 60 | M100: =(J106*((J101/J100)^(J107)))/(J107*((J100/J101)^(J106))) -> 4.737373737 | N100: Demanda Bruta Bien 1 | O100: =(O106*O97)+(P111*O98*O106) -> 16.66666667 | P100: =(P108*P97)+(P108*P111*P98) -> 43.33333333 | Q100: =P100+O100 -> 60 | R100: =(O106*((O101/O100)^(O107)))/(O107*((O100/O101)^(O106))) -> 3.972972973 | S100: Demanda Bruta Bien 1 | T100: =(T106*T97)+(U111*T98*T106) -> 34.21052632 | U100: =(U108*U97)+(U108*U111*U98) -> 25.78947368 | V100: =U100+T100 -> 60 | W100: =(T106*((T101/T100)^(T107)))/(T107*((T100/T101)^(T106))) -> 3.093023256 | X100: Demanda Bruta Bien 1 | Y100: =(Y106*Y97)+(Z111*Y98*Y106) -> 48.11320755 | Z100: =(Z108*Z97)+(Z108*Z111*Z98) -> 11.88679245 | AA100: =Z100+Y100 -> 60 | AB100: =(Y106*((Y101/Y100)^(Y107)))/(Y107*((Y100/Y101)^(Y106))) -> 2.631205674 | CG100: 52.33565962 | CH100: 9.5 | CI100: 19 | CJ100: 8.928030841 | CK100: 90.50 | CL100: 181.00 | CM100: 43.40762878
C101: Demanda Bruta Bien 2 | D101: =(D107*E112*D97)+(D107*D98) -> 87.5 | E101: =(E109*E112*E97)+(E109*E98) -> 52.5 | F101: =E101+D101 -> 140 | G101: =(E108*((E101/E100)^(E109)))/(E109*((E100/E101)^(E108))) -> 3.5 | H101: =E100^(E108)*E101^(E109) -> 39.52714274 | I101: Demanda Bruta Bien 2 | J101: =(J107*K112*J97)+(J107*J98) -> 31.81818182 | K101: =(K109*K112*K97)+(K109*K98) -> 108.1818182 | L101: =K101+J101 -> 140 | M101: =(K108*((K101/K100)^(K109)))/(K109*((K100/K101)^(K108))) -> 4.737373737 | N101: Demanda Bruta Bien 2 | O101: =(O107*P112*O97)+(O107*O98) -> 66.21621622 | P101: =(P109*P112*P97)+(P109*P98) -> 73.78378378 | Q101: =P101+O101 -> 140 | R101: =(P108*((P101/P100)^(P109)))/(P109*((P100/P101)^(P108))) -> 3.972972973 | S101: Demanda Bruta Bien 2 | T101: =(T107*U112*T97)+(T107*T98) -> 105.8139535 | U101: =(U109*U112*U97)+(U109*U98) -> 34.18604651 | V101: =U101+T101 -> 140 | W101: =(U108*((U101/U100)^(U109)))/(U109*((U100/U101)^(U108))) -> 3.093023256 | X101: Demanda Bruta Bien 2 | Y101: =(Y107*Z112*Y97)+(Y107*Y98) -> 126.5957447 | Z101: =(Z109*Z112*Z97)+(Z109*Z98) -> 13.40425532 | AA101: =Z101+Y101 -> 140 | AB101: =(Z108*((Z101/Z100)^(Z109)))/(Z109*((Z100/Z101)^(Z108))) -> 2.631205674 | CG101: 52.3723886 | CH101: 9.6 | CI101: 19.2 | CJ101: 9.003135449 | CK101: 90.40 | CL101: 180.80 | CM101: 43.36925315
D102: =D100^($D$106)*D101^($D$107) -> 46.77071733 | E102: =E100^($E$108)*E101^($E$109) -> 39.52714274 | CG102: 52.40895278 | CH102: 9.7 | CI102: 19.4 | CJ102: 9.078083749 | CK102: 90.30 | CL102: 180.60 | CM102: 43.33086903
C103: Demanda Neta Bien 1 | D103: =D100-D97 -> -5 | E103: =D101-D98 -> 17.5 | G103: 35 | H103: 50 | I103: Demanda Neta Bien 1 | J103: =J100-J97 -> -2.28358209 | K103: =J101-J98 -> 10.81818182 | N103: Demanda Neta Bien 1 | O103: =O100-O97 -> -4.333333333 | P103: =O101-O98 -> 17.21621622 | S103: Demanda Neta Bien 1 | T103: =T100-T97 -> -4.789473684 | U103: =T101-T98 -> 14.81395349 | X103: Demanda Neta Bien 1 | Y103: =Y100-Y97 -> -2.886792453 | Z103: =Y101-Y98 -> 7.595744681 | CG103: 52.44535409 | CH103: 9.8 | CI103: 19.6 | CJ103: 9.152877673 | CK103: 90.20 | CL103: 180.40 | CM103: 43.29247641
C104: Demanda Neta Bien 2 | D104: =E100-E97 -> 5 | E104: =E101-E98 -> -17.5 | G104: 15 | H104: 40 | I104: Demanda Neta Bien 2 | J104: =K100-K97 -> 2.28358209 | K104: =K101-K98 -> -10.81818182 | N104: Demanda Neta Bien 2 | O104: =P100-P97 -> 4.333333333 | P104: =P101-P98 -> -17.21621622 | S104: Demanda Neta Bien 2 | T104: =U100-U97 -> 4.789473684 | U104: =U101-U98 -> -14.81395349 | X104: Demanda Neta Bien 2 | Y104: =Z100-Z97 -> 2.886792453 | Z104: =Z101-Z98 -> -7.595744681 | CG104: 52.48159439 | CH104: 9.9 | CI104: 19.8 | CJ104: 9.227519109 | CK104: 90.10 | CL104: 180.20 | CM104: 43.25407528
CG105: 52.51767552 | CH105: 10 | CI105: 20 | CJ105: 9.302009904 | CK105: 90.00 | CL105: 180.00 | CM105: 43.21566562
C106: a | D106: ='Optimo Pareto EGP'!C25 -> 0.5 | I106: a | J106: =D106 -> 0.5 | N106: a | O106: =J106 -> 0.5 | S106: a | T106: =O106 -> 0.5 | X106: a | Y106: =T106 -> 0.5 | CG106: 52.55359929 | CH106: 10.1 | CI106: 20.2 | CJ106: 9.376351863 | CK106: 89.90 | CL106: 179.80 | CM106: 43.17724742
C107: 1-a | D107: =1-D106 -> 0.5 | I107: 1-a | J107: =1-J106 -> 0.5 | N107: 1-a | O107: =1-O106 -> 0.5 | S107: 1-a | T107: =1-T106 -> 0.5 | X107: 1-a | Y107: =1-Y106 -> 0.5 | CG107: 52.58936744 | CH107: 10.2 | CI107: 20.4 | CJ107: 9.450546754 | CK107: 89.80 | CL107: 179.60 | CM107: 43.13882068
C108: b | E108: ='Optimo Pareto EGP'!D27 -> 0.7 | I108: b | K108: =E108 -> 0.7 | N108: b | P108: =K108 -> 0.7 | S108: b | U108: =P108 -> 0.7 | X108: b | Z108: =U108 -> 0.7 | CG108: 52.62498168 | CH108: 10.3 | CI108: 20.6 | CJ108: 9.524596304 | CK108: 89.70 | CL108: 179.40 | CM108: 43.10038538
C109: 1-b | E109: =1-E108 -> 0.3 | I109: 1-b | K109: =1-K108 -> 0.3 | N109: 1-b | P109: =1-P108 -> 0.3 | S109: 1-b | U109: =1-U108 -> 0.3 | X109: 1-b | Z109: =1-Z108 -> 0.3 | CG109: 52.66044371 | CH109: 10.4 | CI109: 20.8 | CJ109: 9.598502205 | CK109: 89.60 | CL109: 179.20 | CM109: 43.06194151
CG110: 52.69575517 | CH110: 10.5 | CI110: 21 | CJ110: 9.672266115 | CK110: 89.50 | CL110: 179.00 | CM110: 43.02348905
C111: P2/P1 | E111: =((D107*D97)+(E109*E97))/((D106*D98)+(E108*E98)) -> 0.2857142857 | F111: k inicial | I111: P2/P1 | K111: =((J107*J97)+(K109*K97))/((J106*J98)+(K108*K98)) -> 0.21108742 | L111: k inicial | N111: P2/P1 | P111: =((O107*O97)+(P109*P97))/((O106*O98)+(P108*P98)) -> 0.2517006803 | Q111: k inicial | S111: P2/P1 | U111: =((T107*T97)+(U109*U97))/((T106*T98)+(U108*U98)) -> 0.3233082707 | V111: k inicial | X111: P2/P1 | Z111: =((Y107*Y97)+(Z109*Z97))/((Y106*Y98)+(Z108*Z98)) -> 0.3800539084 | AA111: k inicial | CG111: 52.73091766 | CH111: 10.6 | CI111: 21.2 | CJ111: 9.745889652 | CK111: 89.40 | CL111: 178.80 | CM111: 42.985028
C112: P1/P2 | E112: =1/E111 -> 3.5 | F112: =(D100^(D106))*(D101^(D107)) -> 46.77071733 | I112: P1/P2 | K112: =1/K111 -> 4.737373737 | L112: =(J100^(J106))*(J101^(J107)) -> 14.61862532 | N112: P1/P2 | P112: =1/P111 -> 3.972972973 | Q112: =(O100^(O106))*(O101^(O107)) -> 33.22052985 | S112: P1/P2 | U112: =1/U111 -> 3.093023256 | V112: =(T100^(T106))*(T101^(T107)) -> 60.16602896 | X112: P1/P2 | Z112: =1/Z111 -> 2.631205674 | AA112: =(Y100^(Y106))*(Y101^(Y107)) -> 78.04439338 | CG112: 52.76593276 | CH112: 10.7 | CI112: 21.4 | CJ112: 9.819374407 | CK112: 89.30 | CL112: 178.60 | CM112: 42.94655835
CG113: 52.80080201 | CH113: 10.8 | CI113: 21.6 | CJ113: 9.892721932 | CK113: 89.20 | CL113: 178.40 | CM113: 42.90808008
CG114: 52.83552693 | CH114: 10.9 | CI114: 21.8 | CJ114: 9.965933753 | CK114: 89.10 | CL114: 178.20 | CM114: 42.86959318
CG115: 52.870109 | CH115: 11 | CI115: 22 | CJ115: 10.03901136 | CK115: 89.00 | CL115: 178.00 | CM115: 42.83109764
CG116: 52.90454967 | CH116: 11.1 | CI116: 22.2 | CJ116: 10.11195622 | CK116: 88.90 | CL116: 177.80 | CM116: 42.79259345
D117: curva de tranasformación | E117: Inicio | F117: menos 2 | G117: menos 1 | H117: original | I117: más 1 | J117: más 2 | K117: final | CG117: 52.93885036 | CH117: 11.2 | CI117: 22.4 | CJ117: 10.18476976 | CK117: 88.80 | CL117: 177.60 | CM117: 42.75408059
D118: x1 | E118: 0 | F118: =J100 -> 6.71641791 | G118: =O100 -> 16.66666667 | H118: =D100 -> 25 | I118: =T100 -> 34.21052632 | J118: =Y100 -> 48.11320755 | K118: =F97 -> 60 | CG118: 52.97301246 | CH118: 11.3 | CI118: 22.6 | CJ118: 10.25745339 | CK118: 88.70 | CL118: 177.40 | CM118: 42.71555907
D119: x2 | E119: 0 | F119: =J101 -> 31.81818182 | G119: =O101 -> 66.21621622 | H119: =D101 -> 87.5 | I119: =T101 -> 105.8139535 | J119: =Y101 -> 126.5957447 | K119: =F98 -> 140 | CG119: 53.00703734 | CH119: 11.4 | CI119: 22.8 | CJ119: 10.33000849 | CK119: 88.60 | CL119: 177.20 | CM119: 42.67702885
CG120: 53.04092635 | CH120: 11.5 | CI120: 23 | CJ120: 10.40243642 | CK120: 88.50 | CL120: 177.00 | CM120: 42.63848993
CG121: 53.07468079 | CH121: 11.6 | CI121: 23.2 | CJ121: 10.47473848 | CK121: 88.40 | CL121: 176.80 | CM121: 42.59994231
CG122: 53.10830196 | CH122: 11.7 | CI122: 23.4 | CJ122: 10.546916 | CK122: 88.30 | CL122: 176.60 | CM122: 42.56138596
CG123: 53.14179112 | CH123: 11.8 | CI123: 23.6 | CJ123: 10.61897023 | CK123: 88.20 | CL123: 176.40 | CM123: 42.52282088
C124: DEMANDAS NETAS | CG124: 53.1751495 | CH124: 11.9 | CI124: 23.8 | CJ124: 10.69090245 | CK124: 88.10 | CL124: 176.20 | CM124: 42.48424705
G125: =POWER((F166/(F152^D161)),1/D160) -> 16.48351648 | H125: =($F$166/($G125^($D$160)))^(1/$D$161) -> 100 | CG125: =CJ125+CM125 -> 53.20837834 | CH125: 12 | CI125: 24 | CJ125: 10.76271387 | CK125: 88.00 | CL125: 176.00 | CM125: 42.44566447
F126: Original | G126: Original | H126: Original | J126: DOTACIÓN | N126: OPTIMO | R126: CAJA | V126: ORIGINAL | W126: ORIGINAL | X126: NEGATIVO | Y126: NEGATIVO | Z126: TRANSFORMADA | CG126: 53.24147881 | CH126: 12.1 | CI126: 24.2 | CJ126: 10.8344057 | CK126: 87.90 | CL126: 175.80 | CM126: 42.40707312
C127: Unidades | D127: ponderador | F127: x1 | G127: x1 | H127: x2 | J127: x1linedotación | L127: x2line | N127: x1linedotación | P127: x2line | V127: x1 | W127: x2 | X127: MENOS X1 | Y127: MENOS X2 | Z127: x1 | AA127: x2 | CG127: 53.27445211 | CH127: 12.2 | CI127: 24.4 | CJ127: 10.90597913 | CK127: 87.80 | CL127: 175.60 | CM127: 42.36847298
C128: 1 | D128: 0 | E128: 0.01 | F128: =IF(($D$154*E128)>$F$151,$F$151,$D$154*E128) -> 0.23 | G128: =IF(($F$166/($F128^($D$160)))^(1/$D$161)>$F$152,$G$125,F128) -> 16.48 | H128: =($F$166/($G128^($D$160)))^(1/$D$161) -> 100.00 | J128: =D128*$F$151 -> 0 | K128: =$D$152 -> 50.00 | L128: =$D$151 -> 30.00 | M128: =$F$152*D128 -> 0 | N128: =$D$155 -> 71.43 | O128: =$D$154 -> 23.08 | P128: =$D$151 -> 30.00 | Q128: =D128*$F$152 -> 0 | R128: =$F$151 -> 60.00 | S128: =$F$152 -> 100.00 | T128: 0 | V128: =$E$154*E128 -> 0.37 | W128: =(($G$162)/((V128^($E$162))))^(1/$E$163) -> 2,857,142,857.14 | X128: =V128*-1 -> (0.37) | Y128: =W128*-1 -> (2,857,142,857.14) | Z128: =X128+($V$138*2)+($D$154-$E$154) -> 59.63 | AA128: =Y128+($W$138*2)+($D$155-$E$155) -> (2,857,142,757.14) | CG128: 53.30729937 | CH128: 12.3 | CI128: 24.6 | CJ128: 10.97743532 | CK128: 87.70 | CL128: 175.40 | CM128: 42.32986405
C129: 2 | D129: 0.01 | E129: 0.10 | F129: =IF(($D$154*E129)>$F$151,$F$151,$D$154*E129) -> 2.31 | G129: =IF(($F$166/($F129^($D$160)))^(1/$D$161)>$F$152,$G$125,F129) -> 16.48 | H129: =($F$166/($G129^($D$160)))^(1/$D$161) -> 100.00 | J129: =D129*$F$151 -> 0.60 | K129: =$D$152 -> 50.00 | L129: =$D$151 -> 30.00 | M129: =$F$152*D129 -> 1.00 | N129: =$D$155 -> 71.43 | O129: =$D$154 -> 23.08 | P129: =$D$151 -> 30.00 | Q129: =D129*$F$152 -> 1.00 | R129: =$F$151 -> 60.00 | S129: =$F$152 -> 100.00 | T129: 0 | V129: 3.69 | W129: 285,714.29 | X129: =V129*-1 -> (3.69) | Y129: =W129*-1 -> (285,714.29) | Z129: 56.31 | AA129: (285,614.29) | CG129: 53.34002172 | CH129: 12.4 | CI129: 24.8 | CJ129: 11.04877541 | CK129: 87.60 | CL129: 175.20 | CM129: 42.29124631
C130: 3 | D130: 0.10 | E130: 0.20 | F130: 4.62 | G130: 16.48 | H130: 100.00 | J130: 6.00 | K130: 50.00 | L130: 30.00 | M130: 10.00 | N130: 71.43 | O130: 23.08 | P130: 30.00 | Q130: 10.00 | R130: 60.00 | S130: 100.00 | T130: 0 | V130: 7.38 | W130: 17,857.14 | X130: (7.38) | Y130: (17,857.14) | Z130: 52.62 | AA130: (17,757.14) | CG130: 53.37262029 | CH130: 12.5 | CI130: 25 | CJ130: 11.12000053 | CK130: 87.50 | CL130: 175.00 | CM130: 42.25261976
C131: 4 | D131: 0.15 | E131: 0.30 | F131: 6.92 | G131: 16.48 | H131: 100.00 | J131: 9.00 | K131: 50.00 | L131: 30.00 | M131: 15.00 | N131: 71.43 | O131: 23.08 | P131: 30.00 | Q131: 15.00 | R131: 60.00 | S131: 100.00 | T131: 0 | V131: 11.08 | W131: 3,527.34 | X131: (11.08) | Y131: (3,527.34) | Z131: 48.92 | AA131: (3,427.34) | CG131: 53.40509616 | CH131: 12.6 | CI131: 25.2 | CJ131: 11.19111178 | CK131: 87.40 | CL131: 174.80 | CM131: 42.21398438
C132: 5 | D132: 0.20 | E132: 0.40 | F132: 9.23 | G132: 16.48 | H132: 100.00 | J132: 12.00 | K132: 50.00 | L132: 30.00 | M132: 20.00 | N132: 71.43 | O132: 23.08 | P132: 30.00 | Q132: 20.00 | R132: 60.00 | S132: 100.00 | T132: 0 | V132: 14.77 | W132: 1,116.07 | X132: (14.77) | Y132: (1,116.07) | Z132: 45.23 | AA132: (1,016.07) | CG132: 53.4374504 | CH132: 12.7 | CI132: 25.4 | CJ132: 11.26211024 | CK132: 87.30 | CL132: 174.60 | CM132: 42.17534015
C133: 6 | D133: 0.25 | E133: 0.50 | F133: 11.54 | G133: 16.48 | H133: 100.00 | J133: 15.00 | K133: 50.00 | L133: 30.00 | M133: 25.00 | N133: 71.43 | O133: 23.08 | P133: 30.00 | Q133: 25.00 | R133: 60.00 | S133: 100.00 | T133: 0 | V133: 18.46 | W133: 457.14 | X133: (18.46) | Y133: (457.14) | Z133: 41.54 | AA133: (357.14) | CG133: 53.46968406 | CH133: 12.8 | CI133: 25.6 | CJ133: 11.33299699 | CK133: 87.20 | CL133: 174.40 | CM133: 42.13668707
C134: 7 | D134: 0.30 | E134: 0.60 | F134: 13.85 | G134: 16.48 | H134: 100.00 | J134: 18.00 | K134: 50.00 | L134: 30.00 | M134: 30.00 | N134: 71.43 | O134: 23.08 | P134: 30.00 | Q134: 30.00 | R134: 60.00 | S134: 100.00 | T134: 0 | V134: 22.15 | W134: 220.46 | X134: (22.15) | Y134: (220.46) | Z134: 37.85 | AA134: (120.46) | CG134: 53.50179818 | CH134: 12.9 | CI134: 25.8 | CJ134: =(CH134^$BZ$7)*(CI134^$BZ$8) -> 11.40377305 | CK134: =$CA$10-CH134 -> 87.10 | CL134: =$CA$11-CI134 -> 174.20 | CM134: =(CK134^$CD$7)*(CL134^$CD$8) -> 42.09802512
C135: 8 | D135: 0.35 | E135: 0.70 | F135: 16.15 | G135: 16.48 | H135: 100.00 | J135: 21.00 | K135: 50.00 | L135: 30.00 | M135: 35.00 | N135: 71.43 | O135: 23.08 | P135: 30.00 | Q135: 35.00 | R135: 60.00 | S135: 100.00 | T135: 0 | V135: 25.85 | W135: 119.00 | X135: (25.85) | Y135: (119.00) | Z135: 34.15 | AA135: (19.00) | CG135: 53.53379377 | CH135: =CH134+$CD$10 -> 13 | CI135: =CI134+$CD$11 -> 26 | CJ135: 11.47443947 | CK135: 87.00 | CL135: 174.00 | CM135: 42.0593543
C136: 9 | D136: 0.40 | E136: 0.80 | F136: 18.46 | G136: 18.46 | H136: 89.29 | J136: 24.00 | K136: 50.00 | L136: 30.00 | M136: 40.00 | N136: 71.43 | O136: 23.08 | P136: 30.00 | Q136: 40.00 | R136: 60.00 | S136: 100.00 | T136: 0 | V136: 29.54 | W136: 69.75 | X136: (29.54) | Y136: (69.75) | Z136: 30.46 | AA136: 30.25 | CG136: 53.56567184 | CH136: 13.1 | CI136: 26.2 | CJ136: 11.54499726 | CK136: 86.90 | CL136: 173.80 | CM136: 42.02067458
C137: 10 | D137: 0.45 | E137: 0.90 | F137: 20.77 | G137: 20.77 | H137: 79.37 | J137: 27.00 | K137: 50.00 | L137: 30.00 | M137: 45.00 | N137: 71.43 | O137: 23.08 | P137: 30.00 | Q137: 45.00 | R137: 60.00 | S137: 100.00 | T137: 0 | V137: 33.23 | W137: 43.55 | X137: (33.23) | Y137: (43.55) | Z137: 26.77 | AA137: 56.45 | CG137: 53.59743337 | CH137: 13.2 | CI137: 26.4 | CJ137: 11.6154474 | CK137: 86.80 | CL137: 173.60 | CM137: 41.98198596
C138: 11 | D138: 0.50 | E138: 1.00 | F138: 23.08 | G138: 23.08 | H138: 71.43 | J138: 30.00 | K138: 50.00 | L138: 30.00 | M138: 50.00 | N138: 71.43 | O138: 23.08 | P138: 30.00 | Q138: 50.00 | R138: 60.00 | S138: 100.00 | T138: 0 | V138: =$E$154*E138 -> 36.92 | W138: =(($G$162)/((V138^($E$162))))^(1/$E$163) -> 28.57 | X138: (36.92) | Y138: (28.57) | Z138: 23.08 | AA138: 71.43 | CG138: 53.62907931 | CH138: 13.3 | CI138: 26.6 | CJ138: 11.68579088 | CK138: 86.70 | CL138: 173.40 | CM138: 41.94328843
C139: 12 | D139: 0.55 | E139: 1.10 | F139: 25.38 | G139: 25.38 | H139: 64.94 | J139: 33.00 | K139: 50.00 | L139: 30.00 | M139: 55.00 | N139: 71.43 | O139: 23.08 | P139: 30.00 | Q139: 55.00 | R139: 60.00 | S139: 100.00 | T139: 0 | V139: =$E$154*E139 -> 40.62 | W139: =(($G$162)/((V139^($E$162))))^(1/$E$163) -> 19.51 | X139: (40.62) | Y139: (19.51) | Z139: 19.38 | AA139: 80.49 | CG139: 53.66061063 | CH139: 13.4 | CI139: 26.8 | CJ139: 11.75602866 | CK139: 86.60 | CL139: 173.20 | CM139: 41.90458197
C140: 13 | D140: 0.60 | E140: 1.20 | F140: 27.69 | G140: 27.69 | H140: 59.52 | J140: 36.00 | K140: 50.00 | L140: 30.00 | M140: 60.00 | N140: 71.43 | O140: 23.08 | P140: 30.00 | Q140: 60.00 | R140: 60.00 | S140: 100.00 | T140: 0 | V140: 44.31 | W140: 13.78 | X140: (44.31) | Y140: (13.78) | Z140: 15.69 | AA140: 86.22 | CG140: 53.69202825 | CH140: 13.5 | CI140: 27 | CJ140: 11.82616169 | CK140: 86.50 | CL140: 173.00 | CM140: 41.86586657
C141: 14 | D141: 0.65 | E141: 1.30 | F141: 30.00 | G141: 30.00 | H141: 54.95 | J141: 39.00 | K141: 50.00 | L141: 30.00 | M141: 65.00 | N141: 71.43 | O141: 23.08 | P141: 30.00 | Q141: 65.00 | R141: 60.00 | S141: 100.00 | T141: 0 | V141: 48.00 | W141: 10.00 | X141: (48.00) | Y141: (10.00) | Z141: 12.00 | AA141: 90.00 | CG141: 53.7233331 | CH141: 13.6 | CI141: 27.2 | CJ141: 11.89619089 | CK141: 86.40 | CL141: 172.80 | CM141: 41.82714221
C142: 15 | D142: 0.70 | E142: 1.40 | F142: 32.31 | G142: 32.31 | H142: 51.02 | J142: 42.00 | K142: 50.00 | L142: 30.00 | M142: 70.00 | N142: 71.43 | O142: 23.08 | P142: 30.00 | Q142: 70.00 | R142: 60.00 | S142: 100.00 | T142: 0 | V142: 51.69 | W142: 7.44 | X142: (51.69) | Y142: (7.44) | Z142: 8.31 | AA142: 92.56 | CG142: 53.75452607 | CH142: 13.7 | CI142: 27.4 | CJ142: 11.96611718 | CK142: 86.30 | CL142: 172.60 | CM142: 41.78840889
C143: 16 | D143: 0.75 | E143: 1.50 | F143: 34.62 | G143: 34.62 | H143: 47.62 | J143: 45.00 | K143: 50.00 | L143: 30.00 | M143: 75.00 | N143: 71.43 | O143: 23.08 | P143: 30.00 | Q143: 75.00 | R143: 60.00 | S143: 100.00 | T143: 0 | V143: 55.38 | W143: 5.64 | X143: (55.38) | Y143: (5.64) | Z143: 4.62 | AA143: 94.36 | CG143: 53.78560805 | CH143: 13.8 | CI143: 27.6 | CJ143: 12.03594146 | CK143: 86.20 | CL143: 172.40 | CM143: 41.74966659
C144: 17 | D144: 0.80 | E144: 1.60 | F144: 36.92 | G144: 36.92 | H144: 44.64 | J144: 48.00 | K144: 50.00 | L144: 30.00 | M144: 80.00 | N144: 71.43 | O144: 23.08 | P144: 30.00 | Q144: 80.00 | R144: 60.00 | S144: 100.00 | T144: 0 | V144: 59.08 | W144: 4.36 | X144: (59.08) | Y144: (4.36) | Z144: 0.92 | AA144: 95.64 | CG144: 53.81657992 | CH144: 13.9 | CI144: 27.8 | CJ144: 12.10566462 | CK144: 86.10 | CL144: 172.20 | CM144: 41.71091531
C145: 18 | D145: 0.85 | E145: 1.70 | F145: 39.23 | G145: 39.23 | H145: 42.02 | J145: 51.00 | K145: 50.00 | L145: 30.00 | M145: 85.00 | N145: 71.43 | O145: 23.08 | P145: 30.00 | Q145: 85.00 | R145: 60.00 | S145: 100.00 | T145: 0 | V145: 62.77 | W145: 3.42 | X145: (62.77) | Y145: (3.42) | Z145: (2.77) | AA145: 96.58 | CG145: 53.84744254 | CH145: 14 | CI145: 28 | CJ145: 12.17528753 | CK145: 86.00 | CL145: 172.00 | CM145: 41.67215502
C146: 19 | D146: 0.90 | E146: 1.80 | F146: 41.54 | G146: 41.54 | H146: 39.68 | J146: 54.00 | K146: 50.00 | L146: 30.00 | M146: 90.00 | N146: 71.43 | O146: 23.08 | P146: 30.00 | Q146: 90.00 | R146: 60.00 | S146: 100.00 | T146: 0 | V146: 66.46 | W146: 2.72 | X146: (66.46) | Y146: (2.72) | Z146: (6.46) | AA146: 97.28 | CG146: 53.87819675 | CH146: 14.1 | CI146: 28.2 | CJ146: 12.24481104 | CK146: 85.90 | CL146: 171.80 | CM146: 41.63338571
C147: 20 | D147: 0.95 | E147: 1.90 | F147: 43.85 | G147: 43.85 | H147: 37.59 | J147: 57.00 | K147: 50.00 | L147: 30.00 | M147: 95.00 | N147: 71.43 | O147: 23.08 | P147: 30.00 | Q147: 95.00 | R147: 60.00 | S147: 100.00 | T147: 0 | V147: 70.15 | W147: 2.19 | X147: (70.15) | Y147: (2.19) | Z147: (10.15) | AA147: 97.81 | CG147: 53.90884339 | CH147: 14.2 | CI147: 28.4 | CJ147: 12.31423602 | CK147: 85.80 | CL147: 171.60 | CM147: 41.59460738
C148: 21 | D148: 1.00 | E148: 3.33 | F148: 60.00 | G148: 60.00 | H148: 27.47 | J148: 60.00 | K148: 50.00 | L148: 30.00 | M148: 100.00 | N148: 71.43 | O148: 23.08 | P148: 30.00 | Q148: 100.00 | R148: 60.00 | S148: 100.00 | T148: 0 | V148: 123.08 | W148: 0.23 | X148: (123.08) | Y148: (0.23) | Z148: (63.08) | AA148: 99.77 | CG148: 53.93938328 | CH148: 14.3 | CI148: 28.6 | CJ148: 12.38356327 | CK148: 85.70 | CL148: 171.40 | CM148: 41.55582001
C149: original | I149: original | N149: original | S149: original | W149: =E155+(E154*E165) -> 40.50 | X149: original | Y149: =D155+(D154*E166) -> 142.86 | CG149: 53.96981722 | CH149: 14.4 | CI149: 28.8 | CJ149: 12.45279364 | CK149: 85.60 | CL149: 171.20 | CM149: 41.51702358
D150: Individuo A | E150: Individuo B | F150: Total | J150: Individuo A | K150: Individuo B | L150: Total | O150: Individuo A | P150: Individuo B | Q150: Total | T150: Individuo A | U150: Individuo B | V150: Total | Y150: Individuo A | Z150: Individuo B | AA150: Total | CG150: 54.000146 | CH150: 14.5 | CI150: 29 | CJ150: 12.52192792 | CK150: 85.50 | CL150: 171.00 | CM150: 41.47821809
C151: Dotación Bien 1 | D151: ='Demandas Netas EGP'!C10 -> 30 | E151: ='Demandas Netas EGP'!D10 -> 30 | F151: =E151+D151 -> 60 | G151: =(D160*((D152/D151)^(D161)))/(D161*((D151/D152)^(D160))) -> 1.666666667 | I151: Dotación Bien 1 | J151: =D151*0.3 -> 9 | K151: =L151-J151 -> 51 | L151: =F151 -> 60 | M151: =(J160*((J152/J151)^(J161)))/(J161*((J151/J152)^(J160))) -> 1.666666667 | N151: Dotación Bien 1 | O151: =D151*0.7 -> 21 | P151: =Q151-O151 -> 39 | Q151: =L151 -> 60 | R151: =(O160*((O152/O151)^(O161)))/(O161*((O151/O152)^(O160))) -> 1.666666667 | S151: Dotación Bien 1 | T151: =D151+(E151*0.3) -> 39 | U151: =V151-T151 -> 21 | V151: =Q151 -> 60 | W151: =(T160*((T152/T151)^(T161)))/(T161*((T151/T152)^(T160))) -> 1.666666667 | X151: Dotación Bien 1 | Y151: =D151+(E151*0.7) -> 51 | Z151: =AA151-Y151 -> 9 | AA151: =V151 -> 60 | AB151: =(Y160*((Y152/Y151)^(Y161)))/(Y161*((Y151/Y152)^(Y160))) -> 1.666666667 | CG151: 54.03037042 | CH151: 14.6 | CI151: 29.2 | CJ151: 12.5909669 | CK151: 85.40 | CL151: 170.80 | CM151: 41.43940352
C152: Dotación Bien 2 | D152: ='Demandas Netas EGP'!C11 -> 50 | E152: ='Demandas Netas EGP'!D11 -> 50 | F152: =E152+D152 -> 100 | G152: =(E162*((E152/E151)^(E163)))/(E163*((E151/E152)^(E162))) -> 6.666666667 | I152: Dotación Bien 2 | J152: =D152*0.3 -> 15 | K152: =L152-J152 -> 85 | L152: =F152 -> 100 | M152: =(K162*((K152/K151)^(K163)))/(K163*((K151/K152)^(K162))) -> 6.666666667 | N152: Dotación Bien 2 | O152: =D152*0.7 -> 35.00 | P152: =Q152-O152 -> 65 | Q152: =L152 -> 100 | R152: =(P162*((P152/P151)^(P163)))/(P163*((P151/P152)^(P162))) -> 6.666666667 | S152: Dotación Bien 2 | T152: =D152+(E152*0.3) -> 65 | U152: =V152-T152 -> 35 | V152: =Q152 -> 100 | W152: =(U162*((U152/U151)^(U163)))/(U163*((U151/U152)^(U162))) -> 6.666666667 | X152: Dotación Bien 2 | Y152: =D152+(E152*0.7) -> 85 | Z152: =AA152-Y152 -> 15 | AA152: =V152 -> 100 | AB152: =(Z162*((Z152/Z151)^(Z163)))/(Z163*((Z151/Z152)^(Z162))) -> 6.666666667 | CG152: 54.06049123 | CH152: 14.7 | CI152: 29.4 | CJ152: 12.65991137 | CK152: 85.30 | CL152: 170.60 | CM152: 41.40057986
D153: =D151^(D160)*D152^(D161) -> 38.72983346 | E153: =E151^(E162)*E152^(E163) -> 33.2269903 | CG153: 54.0905092 | CH153: 14.8 | CI153: 29.6 | CJ153: 12.72876211 | CK153: 85.20 | CL153: 170.40 | CM153: 41.36174709
C154: Demanda Bruta Bien 1 | D154: =(D160*D151)+(E165*D152*D160) -> 23.07692308 | E154: =(E162*E151)+(E162*E165*E152) -> 36.92307692 | F154: =E154+D154 -> 60 | G154: =(D160*((D155/D154)^(D161)))/(D161*((D154/D155)^(D160))) -> 3.095238095 | I154: Demanda Bruta Bien 1 | J154: =(J160*J151)+(K165*J152*J160) -> 5.960264901 | K154: =(K162*K151)+(K162*K165*K152) -> 54.0397351 | L154: =K154+J154 -> 60 | M154: =(J160*((J155/J154)^(J161)))/(J161*((J154/J155)^(J160))) -> 5.136054422 | N154: Demanda Bruta Bien 1 | O154: =(O160*O151)+(P165*O152*O160) -> 15.10791367 | P154: =(P162*P151)+(P162*P165*P152) -> 44.89208633 | Q154: =P154+O154 -> 60 | R154: =(O160*((O155/O154)^(O161)))/(O161*((O154/O155)^(O160))) -> 3.797814208 | S154: Demanda Bruta Bien 1 | T154: =(T160*T151)+(U165*T152*T160) -> 32.23140496 | U154: =(U162*U151)+(U162*U165*U152) -> 27.76859504 | V154: =U154+T154 -> 60 | W154: =(T160*((T155/T154)^(T161)))/(T161*((T154/T155)^(T160))) -> 2.552742616 | X154: Demanda Bruta Bien 1 | Y154: =(Y160*Y151)+(Z165*Y152*Y160) -> 46.78899083 | Z154: =(Z162*Z151)+(Z162*Z165*Z152) -> 13.21100917 | AA154: =Z154+Y154 -> 60 | AB154: =(Y160*((Y155/Y154)^(Y161)))/(Y161*((Y154/Y155)^(Y160))) -> 1.996336996 | CG154: 54.12042507 | CH154: 14.9 | CI154: 29.8 | CJ154: 12.79751986 | CK154: 85.10 | CL154: 170.20 | CM154: 41.32290521
C155: Demanda Bruta Bien 2 | D155: =(D161*E166*D151)+(D161*D152) -> 71.42857143 | E155: =(E163*E166*E151)+(E163*E152) -> 28.57142857 | F155: =E155+D155 -> 100 | G155: =(E162*((E155/E154)^(E163)))/(E163*((E154/E155)^(E162))) -> 3.095238095 | I155: Demanda Bruta Bien 2 | J155: =(J161*K166*J151)+(J161*J152) -> 30.6122449 | K155: =(K163*K166*K151)+(K163*K152) -> 69.3877551 | L155: =K155+J155 -> 100 | M155: =(K162*((K155/K154)^(K163)))/(K163*((K154/K155)^(K162))) -> 5.136054422 | N155: Demanda Bruta Bien 2 | O155: =(O161*P166*O151)+(O161*O152) -> 57.37704918 | P155: =(P163*P166*P151)+(P163*P152) -> 42.62295082 | Q155: =P155+O155 -> 100 | R155: =(P162*((P155/P154)^(P163)))/(P163*((P154/P155)^(P162))) -> 3.797814208 | S155: Demanda Bruta Bien 2 | T155: =(T161*U166*T151)+(T161*T152) -> 82.27848101 | U155: =(U163*U166*U151)+(U163*U152) -> 17.72151899 | V155: =U155+T155 -> 100 | W155: =(U162*((U155/U154)^(U163)))/(U163*((U154/U155)^(U162))) -> 2.552742616 | X155: Demanda Bruta Bien 2 | Y155: =(Y161*Z166*Y151)+(Y161*Y152) -> 93.40659341 | Z155: =(Z163*Z166*Z151)+(Z163*Z152) -> 6.593406593 | AA155: =Z155+Y155 -> 100 | AB155: =(Z162*((Z155/Z154)^(Z163)))/(Z163*((Z154/Z155)^(Z162))) -> 1.996336996 | CG155: 54.15023959 | CH155: 15 | CI155: 30 | CJ155: 12.86618539 | CK155: 85.00 | CL155: 170.00 | CM155: 41.2840542
D156: =D154^(D160)*D155^(D161) -> 40.59989715 | E156: =E154^(E162)*E155^(E163) -> 35.07718225 | CG156: 54.17995346 | CH156: 15.1 | CI156: 30.2 | CJ156: 12.93475942 | CK156: 84.90 | CL156: 169.80 | CM156: 41.24519404
C157: Demanda Neta Bien 1 | D157: =D154-D151 -> -6.923076923 | E157: =E154-E151 -> 6.923076923 | I157: Demanda Neta Bien 1 | J157: =J154-J151 -> -3.039735099 | K157: =J155-J152 -> 15.6122449 | N157: Demanda Neta Bien 1 | O157: =O154-O151 -> -5.892086331 | P157: =O155-O152 -> 22.37704918 | S157: Demanda Neta Bien 1 | T157: =T154-T151 -> -6.768595041 | U157: =T155-T152 -> 17.27848101 | X157: Demanda Neta Bien 1 | Y157: =Y154-Y151 -> -4.211009174 | Z157: =Y155-Y152 -> 8.406593407 | CG157: 54.20956742 | CH157: 15.2 | CI157: 30.4 | CJ157: 13.00324268 | CK157: 84.80 | CL157: 169.60 | CM157: 41.20632474
C158: Demanda Neta Bien 2 | D158: =D155-D152 -> 21.42857143 | E158: =E155-E152 -> -21.42857143 | I158: Demanda Neta Bien 2 | J158: =K154-K151 -> 3.039735099 | K158: =K155-K152 -> -15.6122449 | N158: Demanda Neta Bien 2 | O158: =P154-P151 -> 5.892086331 | P158: =P155-P152 -> -22.37704918 | S158: Demanda Neta Bien 2 | T158: =U154-U151 -> 6.768595041 | U158: =U155-U152 -> -17.27848101 | X158: Demanda Neta Bien 2 | Y158: =Z154-Z151 -> 4.211009174 | Z158: =Z155-Z152 -> -8.406593407 | CG158: 54.23908215 | CH158: 15.3 | CI158: 30.6 | CJ158: 13.07163589 | CK158: 84.70 | CL158: 169.40 | CM158: 41.16744626
CG159: 54.26849836 | CH159: 15.4 | CI159: 30.8 | CJ159: 13.13993976 | CK159: 84.60 | CL159: 169.20 | CM159: 41.1285586
C160: a | D160: ='Demandas Netas EGP'!C25 -> 0.5 | I160: a | J160: =D160 -> 0.5 | N160: a | O160: =J160 -> 0.5 | S160: a | T160: =O160 -> 0.5 | X160: a | Y160: =T160 -> 0.5 | CG160: 54.29781672 | CH160: 15.5 | CI160: 31 | CJ160: 13.20815498 | CK160: 84.50 | CL160: 169.00 | CM160: 41.08966175
C161: 1-a | D161: =1-D160 -> 0.5 | G161: =D154^(D160)*D155^(D161) -> 40.59989715 | I161: 1-a | J161: =1-J160 -> 0.5 | N161: 1-a | O161: =1-O160 -> 0.5 | S161: 1-a | T161: =1-T160 -> 0.5 | X161: 1-a | Y161: =1-Y160 -> 0.5 | CG161: 54.32703792 | CH161: 15.6 | CI161: 31.2 | CJ161: 13.27628223 | CK161: 84.40 | CL161: 168.80 | CM161: 41.05075568
C162: b | E162: ='Demandas Netas EGP'!D27 -> 0.8 | G162: =E154^(E162)*E155^(E163) -> 35.07718225 | I162: b | K162: =E162 -> 0.8 | N162: b | P162: =K162 -> 0.8 | S162: b | U162: =P162 -> 0.8 | X162: b | Z162: =U162 -> 0.8 | CG162: 54.3561626 | CH162: 15.7 | CI162: 31.4 | CJ162: 13.3443222 | CK162: 84.30 | CL162: 168.60 | CM162: 41.0118404
C163: 1-b | E163: =1-E162 -> 0.2 | I163: 1-b | K163: =1-K162 -> 0.2 | N163: 1-b | P163: =1-P162 -> 0.2 | S163: 1-b | U163: =1-U162 -> 0.2 | X163: 1-b | Z163: =1-Z162 -> 0.2 | CG163: 54.38519143 | CH163: 15.8 | CI163: 31.6 | CJ163: 13.41227555 | CK163: 84.20 | CL163: 168.40 | CM163: 40.97291589
CG164: 54.41412506 | CH164: 15.9 | CI164: 31.8 | CJ164: 13.48014293 | CK164: 84.10 | CL164: 168.20 | CM164: 40.93398213
C165: P2/P1 | E165: =((D161*D151)+(E163*E151))/((D160*D152)+(E162*E152)) -> 0.3230769231 | F165: k inicial | I165: P2/P1 | K165: =((J161*J151)+(K163*K151))/((J160*J152)+(K162*K152)) -> 0.1947019868 | L165: k inicial | N165: P2/P1 | P165: =((O161*O151)+(P163*P151))/((O160*O152)+(P162*P152)) -> 0.2633093525 | Q165: k inicial | S165: P2/P1 | U165: =((T161*T151)+(U163*U151))/((T160*T152)+(U162*U152)) -> 0.3917355372 | V165: k inicial | X165: P2/P1 | Z165: =((Y161*Y151)+(Z163*Z151))/((Y160*Y152)+(Z162*Z152)) -> 0.5009174312 | AA165: k inicial | CG165: 54.4429641 | CH165: 16 | CI165: 32 | CJ165: 13.547925 | CK165: 84.00 | CL165: 168.00 | CM165: 40.8950391
C166: P1/P2 | E166: =1/E165 -> 3.095238095 | F166: =(D154^(D160))*(D155^(D161)) -> 40.59989715 | I166: P1/P2 | K166: =1/K165 -> 5.136054422 | L166: =(J154^(J160))*(J155^(J161)) -> 13.50766778 | N166: P1/P2 | P166: =1/P165 -> 3.797814208 | Q166: =(O154^(O160))*(O155^(O161)) -> 29.44227412 | S166: P1/P2 | U166: =1/U165 -> 2.552742616 | V166: =(T154^(T160))*(T155^(T161)) -> 51.4970974 | X166: P1/P2 | Z166: =1/Z165 -> 1.996336996 | AA166: =(Y154^(Y160))*(Y155^(Y161)) -> 66.10900273 | CG166: 54.4717092 | CH166: 16.1 | CI166: 32.2 | CJ166: 13.61562239 | CK166: 83.90 | CL166: 167.80 | CM166: 40.85608681
CG167: 54.50036097 | CH167: 16.2 | CI167: 32.4 | CJ167: 13.68323574 | CK167: 83.80 | CL167: 167.60 | CM167: 40.81712523
CG168: 54.52892001 | CH168: 16.3 | CI168: 32.6 | CJ168: 13.75076567 | CK168: 83.70 | CL168: 167.40 | CM168: 40.77815435
CG169: 54.55738694 | CH169: 16.4 | CI169: 32.8 | CJ169: 13.81821278 | CK169: 83.60 | CL169: 167.20 | CM169: 40.73917415
CG170: 54.58576233 | CH170: 16.5 | CI170: 33 | CJ170: 13.8855777 | CK170: 83.50 | CL170: 167.00 | CM170: 40.70018463
D171: curva de tranasformación | E171: Inicio | F171: menos 2 | G171: menos 1 | H171: original | I171: más 1 | J171: más 2 | K171: final | CG171: 54.61404678 | CH171: 16.6 | CI171: 33.2 | CJ171: 13.95286101 | CK171: 83.40 | CL171: 166.80 | CM171: 40.66118577
D172: x1 | E172: 0 | F172: =J154 -> 5.960264901 | G172: =O154 -> 15.10791367 | H172: =D154 -> 23.07692308 | I172: =T154 -> 32.23140496 | J172: =Y154 -> 46.78899083 | K172: =F151 -> 60 | CG172: 54.64224086 | CH172: 16.7 | CI172: 33.4 | CJ172: 14.0200633 | CK172: 83.30 | CL172: 166.60 | CM172: 40.62217756
D173: x2 | E173: 0 | F173: =J155 -> 30.6122449 | G173: =O155 -> 57.37704918 | H173: =D155 -> 71.42857143 | I173: =T155 -> 82.27848101 | J173: =Y155 -> 93.40659341 | K173: =F152 -> 100 | CG173: 54.67034513 | CH173: 16.8 | CI173: 33.6 | CJ173: 14.08718516 | CK173: 83.20 | CL173: 166.40 | CM173: 40.58315997
CG174: 54.69836017 | CH174: 16.9 | CI174: 33.8 | CJ174: 14.15422716 | CK174: 83.10 | CL174: 166.20 | CM174: 40.54413301
D175: DEMANDAS NETAS DE LOS BIENES 1 Y 2, CORRESPONDIENTES A LOS AGENTES A Y B | CG175: 54.72628652 | CH175: 17 | CI175: 34 | CJ175: 14.22118987 | CK175: 83.00 | CL175: 166.00 | CM175: 40.50509666
D176: 0 | E176: =$D$151+($D$157*D176) -> 30 | F176: =$D$152 -> 50 | G176: =$D$154 -> 23.07692308 | H176: =$D$152+($D$158*D176) -> 50 | I176: =$D$155 -> 71.42857143 | J176: =$D$151 -> 30 | CG176: 54.75412473 | CH176: 17.1 | CI176: 34.2 | CJ176: 14.28807384 | CK176: 82.90 | CL176: 165.80 | CM176: 40.46605089
D177: 0.2 | E177: 28.61538462 | F177: 50 | G177: 23.07692308 | H177: 54.28571429 | I177: 71.42857143 | J177: 30 | CG177: 54.78187534 | CH177: 17.2 | CI177: 34.4 | CJ177: 14.35487963 | CK177: 82.80 | CL177: 165.60 | CM177: 40.42699571
D178: 0.4 | E178: 27.23076923 | F178: 50 | G178: 23.07692308 | H178: 58.57142857 | I178: 71.42857143 | J178: 30 | CG178: 54.80953887 | CH178: 17.3 | CI178: 34.6 | CJ178: 14.42160778 | CK178: 82.70 | CL178: 165.40 | CM178: 40.38793109
D179: 0.6 | E179: 25.84615385 | F179: 50 | G179: 23.07692308 | H179: 62.85714286 | I179: 71.42857143 | J179: 30 | CG179: 54.83711586 | CH179: 17.4 | CI179: 34.8 | CJ179: 14.48825884 | CK179: 82.60 | CL179: 165.20 | CM179: 40.34885702
D180: 0.8 | E180: 24.46153846 | F180: 50 | G180: 23.07692308 | H180: 67.14285714 | I180: 71.42857143 | J180: 30 | CG180: 54.86460682 | CH180: 17.5 | CI180: 35 | CJ180: 14.55483333 | CK180: 82.50 | CL180: 165.00 | CM180: 40.30977349
D181: 1 | E181: 23.07692308 | F181: 50 | G181: 23.07692308 | H181: 71.42857143 | I181: 71.42857143 | J181: 30 | CG181: 54.89201226 | CH181: 17.6 | CI181: 35.2 | CJ181: 14.62133177 | CK181: 82.40 | CL181: 164.80 | CM181: 40.27068049
CG182: 54.91933269 | CH182: 17.7 | CI182: 35.4 | CJ182: 14.6877547 | CK182: 82.30 | CL182: 164.60 | CM182: 40.23157799
CG183: 54.9465686 | CH183: 17.8 | CI183: 35.6 | CJ183: 14.75410261 | CK183: 82.20 | CL183: 164.40 | CM183: 40.19246599
CG184: 54.97372049 | CH184: 17.9 | CI184: 35.8 | CJ184: 14.82037601 | CK184: 82.10 | CL184: 164.20 | CM184: 40.15334448
C185: FRONTERA DE POSIBILIDADES DE PRODUCCIÓN | CG185: 55.00078884 | CH185: 18 | CI185: 36 | CJ185: 14.88657541 | CK185: 82.00 | CL185: 164.00 | CM185: 40.11421343
G186: =POWER((F242/(F228^D237)),1/D236) -> 10.76555024 | H186: =($F$242/($G186^($D$236)))^(1/$D$237) -> 90 | I186: =POWER((K234/(K228^D237)),1/D236) -> 2.8125 | J186: =($K$234/($I186^($D$236)))^(1/$D$237) -> 90 | K186: =POWER((K245/(K239^D237)),1/D236) -> 7.002528691 | L186: =($K$245/($K186^($D$236)))^(1/$D$237) -> 90 | M186: =POWER((Q234/(Q228^D237)),1/D236) -> 25.31852718 | N186: =($Q$234/($M186^($D$236)))^(1/$D$237) -> 90 | O186: =POWER((Q245/(Q239^D237)),1/D236) -> 52.05890944 | P186: =($Q$245/($O186^($D$236)))^(1/$D$237) -> 90 | Q186: =POWER((D229/(F228^D237)),1/D236) -> 10 | R186: =($D$229/($Q186^($D$236)))^(1/$D$237) -> 90 | AA186: ORIGINAL | AH186: MENOS 2 | AO186: MENOS 1 | AW186: MAS 1 | BD186: MAS 2 | BK186: DOTACIÓN | CG186: 55.02777413 | CH186: 18.1 | CI186: 36.2 | CJ186: 14.95270129 | CK186: 81.90 | CL186: 163.80 | CM186: 40.07507284
A187: Original | B187: Original | F187: Original | H187: Original | I187: menos 2 | J187: menos 2 | K187: menos 1 | L187: menos 1 | M187: mas 1 | N187: mas 1 | O187: masn2 | P187: masn2 | T187: DOTACIÓN | X187: OPTIMO | AB187: CAJA | AF187: ORIGINAL | AG187: ORIGINAL | AH187: NEGATIVO | AI187: NEGATIVO | AJ187: TRANSFORMADA | AM187: ORIGINAL | AN187: ORIGINAL | AO187: NEGATIVO | AP187: NEGATIVO | AQ187: TRANSFORMADA | AT187: ORIGINAL | AU187: ORIGINAL | AV187: NEGATIVO | AW187: NEGATIVO | AX187: TRANSFORMADA | BB187: ORIGINAL | BC187: ORIGINAL | BD187: NEGATIVO | BE187: NEGATIVO | BF187: TRANSFORMADA | BI187: ORIGINAL | BJ187: ORIGINAL | BK187: NEGATIVO | BL187: NEGATIVO | BM187: TRANSFORMADA | BP187: ORIGINAL | BQ187: ORIGINAL | BR187: NEGATIVO | BS187: NEGATIVO | BT187: TRANSFORMADA | CG187: 55.05467683 | CH187: 18.2 | CI187: 36.4 | CJ187: 15.01875414 | CK187: 81.80 | CL187: 163.60 | CM187: 40.03592269
A188: x1 | B188: x2 | C188: Unidades | D188: ponderador | F188: x1 | G188: x1 | H188: x2 | I188: x1 | J188: x2 | K188: x1 | L188: x2 | M188: x1 | N188: x2 | O188: x1 | P188: x2 | Q188: DOTA | R188: DOTA | T188: < | V188: x2line | X188: x1linedotación | Z188: x2line | AF188: x1 | AG188: x2 | AH188: MENOS X1 | AI188: MENOS X2 | AJ188: x1 | AK188: x2 | AM188: x1 | AN188: x2 | AO188: MENOS X1 | AP188: MENOS X2 | AQ188: x1 | AR188: x2 | AT188: x1 | AU188: x2 | AV188: MENOS X1 | AW188: MENOS X2 | AX188: x1 | AY188: x2 | BB188: x1 | BC188: x2 | BD188: MENOS X1 | BE188: MENOS X2 | BF188: x1 | BG188: x2 | BI188: x1 | BJ188: x2 | BK188: MENOS X1 | BL188: MENOS X2 | BM188: x1 | BN188: x2 | BP188: x1 | BQ188: x2 | BR188: MENOS X1 | BS188: MENOS X2 | BT188: x1 | BU188: x2 | CG188: 55.08149741 | CH188: 18.3 | CI188: 36.6 | CJ188: 15.08473445 | CK188: 81.70 | CL188: 163.40 | CM188: 39.99676296
A189: =$D$230*E189 -> 0.24 | B189: =($F$242/($A189^($D$236)))^(1/$D$237) -> 4,090.91 | C189: 1 | D189: 0 | E189: 0.01 | F189: =IF($D$230*E189>$F$227,$F$227,$D$230*E189) -> 0.24 | G189: =IF(($F$242/($F189^($D$236)))^(1/$D$237)>$F$228,$G$186,$F189) -> 10.77 | H189: =($F$242/($G189^($D$236)))^(1/$D$237) -> 90.00 | I189: =IF(($K$234/($F189^($D$236)))^(1/$D$237)>$F$228,$I$186,F189) -> 2.81 | J189: =($K$234/($I189^($D$236)))^(1/$D$237) -> 90.00 | K189: =IF(($K$245/($F189^($D$236)))^(1/$D$237)>$F$228,$K$186,F189) -> 7.00 | L189: =($K$245/($K189^($D$236)))^(1/$D$237) -> 90.00 | M189: =IF(($Q$234/($F189^($D$236)))^(1/$D$237)>$F$228,$M$186,F189) -> 25.32 | N189: =($Q$234/($M189^($D$236)))^(1/$D$237) -> 90.00 | O189: =IF(($Q$245/($F189^($D$236)))^(1/$D$237)>$F$228,$O$186,F189) -> 52.06 | P189: =($Q$245/($O189^($D$236)))^(1/$D$237) -> 90.00 | Q189: =IF(($D$229/($F189^($D$236)))^(1/$D$237)>$F$228,$Q$186,F189) -> 10 | R189: =($D$229/($Q189^($D$236)))^(1/$D$237) -> 90.00 | S189: =IF(B189>$F$228,1,0) -> 1 | T189: =D189*$F$227 -> 0 | U189: =$D$228 -> 30.00 | V189: =$D$227 -> 30.00 | W189: =$F$228*D189 -> 0 | X189: =$D$231 -> 40.91 | Y189: =$D$230 -> 23.68 | Z189: =$D$227 -> 30.00 | AA189: =$F$228*J189 -> 8,100.00 | AB189: =$F$227 -> 90.00 | AC189: =$F$228 -> 90.00 | AD189: 0 | AF189: =$E189*$E$230 -> 0.66 | AG189: =(($E$232)/(AF189^($E$238)))^(1/$E$239) -> 2,278,598.15 | AH189: =AF189*-1 -> (0.66) | AI189: =AG189*-1 -> (2,278,598.15) | AJ189: =AH189+($AF$199*2)+($D$230-$E$230) -> 89.34 | AK189: =AI189+($E$231*2)+($D$231-$E$231) -> (2,278,508.15) | AM189: =$E189*$AM$232 -> 0.79 | AN189: =(($AM$234)/(AM189^($E$238)))^(1/$E$239) -> 3,133,072.46 | AO189: =AM189*-1 -> (0.79) | AP189: =AN189*-1 -> (3,133,072.46) | AQ189: =AO189+($AM$199*2)+($AL$232-$AM$232) -> 89.21 | AR189: =AP189+($AN$199*2)+($AL$233-$AM$233) -> (3,132,982.46) | AT189: =$E189*$AM$243 -> 0.71 | AU189: =(($AM$245)/(AT189^($E$238)))^(1/$E$239) -> 2,601,041.29 | AV189: =AT189*-1 -> (0.71) | AW189: =AU189*-1 -> (2,601,041.29) | AX189: =AV189+($AT$199*2)+($AL$243-$AM$243) -> 89.29 | AY189: =AW189+($AU$199*2)+($AL$244-$AM$244) -> (2,600,951.29) | BB189: =$E189*$BC$232 -> 0.51 | BC189: =(($BC$234)/(BB189^($E$238)))^(1/$E$239) -> 1,486,881.85 | BD189: =BB189*-1 -> (0.51) | BE189: =BC189*-1 -> (1,486,881.85) | BF189: =BD189+($BB$199*2)+($BB$232-$BC$232) -> 89.49 | BG189: =BE189+($BC$199*2)+($BB$233-$BC$233) -> (1,486,791.85) | BI189: =$E189*$BC$243 -> 0.28 | BJ189: =(($BC$245)/(BI189^($E$238)))^(1/$E$239) -> 674,815.61 | BK189: =BI189*-1 -> (0.28) | BL189: =BJ189*-1 -> (674,815.61) | BM189: =BK189+($BI$199*2)+($BB$243-$BC$243) -> 89.72 | BN189: =BL189+($BJ$199*2)+($BB$244-$BC$244) -> (674,725.61) | BP189: =$E189*$BL$230 -> 0.60 | BQ189: =(($BL$232)/(BP189^($E$238)))^(1/$E$239) -> 2,784,953.30 | BR189: =BP189*-1 -> (0.60) | BS189: =BQ189*-1 -> (2,784,953.30) | BT189: =BR189+($BP$199*2)+($BK$230-$BL$230) -> 89.40 | BU189: =BS189+($BQ$199*2)+($BK$231-$BL$231) -> (2,784,863.30) | CG189: =CJ189+CM189 -> 55.10823634 | CH189: 18.4 | CI189: 36.8 | CJ189: 15.15064269 | CK189: 81.60 | CL189: 163.20 | CM189: 39.95759365
A190: =$D$230*E190 -> 2.37 | B190: =($F$242/($A190^($D$236)))^(1/$D$237) -> 409.09 | C190: 2 | D190: 0.01 | E190: 0.10 | F190: =IF($D$230*E190>$F$227,$F$227,$D$230*E190) -> 2.37 | G190: =IF(($F$242/($F190^($D$236)))^(1/$D$237)>$F$228,$G$186,$F190) -> 10.77 | H190: =($F$242/($G190^($D$236)))^(1/$D$237) -> 90.00 | I190: =IF(($K$234/($F190^($D$236)))^(1/$D$237)>$F$228,$I$186,F190) -> 2.81 | J190: =($K$234/($I190^($D$236)))^(1/$D$237) -> 90.00 | K190: =IF(($K$245/($F190^($D$236)))^(1/$D$237)>$F$228,$K$186,F190) -> 7.00 | L190: =($K$245/($K190^($D$236)))^(1/$D$237) -> 90.00 | M190: =IF(($Q$234/($F190^($D$236)))^(1/$D$237)>$F$228,$M$186,F190) -> 25.32 | N190: =($Q$234/($M190^($D$236)))^(1/$D$237) -> 90.00 | O190: =IF(($Q$245/($F190^($D$236)))^(1/$D$237)>$F$228,$O$186,F190) -> 52.06 | P190: =($Q$245/($O190^($D$236)))^(1/$D$237) -> 90.00 | Q190: =IF(($D$229/($F190^($D$236)))^(1/$D$237)>$F$228,$Q$186,F190) -> 10 | R190: =($D$229/($Q190^($D$236)))^(1/$D$237) -> 90.00 | S190: =IF(B190>$F$228,1,0) -> 1 | T190: =D190*$F$227 -> 0.90 | U190: =$D$228 -> 30.00 | V190: =$D$227 -> 30.00 | W190: =$F$228*D190 -> 0.90 | X190: =$D$231 -> 40.91 | Y190: =$D$230 -> 23.68 | Z190: =$D$227 -> 30.00 | AA190: =$F$228*J190 -> 8,100.00 | AB190: =$F$227 -> 90.00 | AC190: =$F$228 -> 90.00 | AD190: 0 | AF190: =$E190*$E$230 -> 6.63 | AG190: =(($E$232)/(AF190^($E$238)))^(1/$E$239) -> 10,576.32 | AH190: =AF190*-1 -> (6.63) | AI190: =AG190*-1 -> (10,576.32) | AJ190: =AH190+($AF$199*2)+($D$230-$E$230) -> 83.37 | AK190: =AI190+($E$231*2)+($D$231-$E$231) -> (10,486.32) | AM190: =$E190*$AM$232 -> 7.88 | AN190: =(($AM$234)/(AM190^($E$238)))^(1/$E$239) -> 14,542.43 | AO190: =AM190*-1 -> (7.88) | AP190: =AN190*-1 -> (14,542.43) | AQ190: =AO190+($AM$199*2)+($AL$232-$AM$232) -> 82.13 | AR190: =AP190+($AN$199*2)+($AL$233-$AM$233) -> (14,452.43) | AT190: =$E190*$AM$243 -> 7.14 | AU190: =(($AM$245)/(AT190^($E$238)))^(1/$E$239) -> 12,072.96 | AV190: =AT190*-1 -> (7.14) | AW190: =AU190*-1 -> (12,072.96) | AX190: =AV190+($AT$199*2)+($AL$243-$AM$243) -> 82.86 | AY190: =AW190+($AU$199*2)+($AL$244-$AM$244) -> (11,982.96) | BB190: =$E190*$BC$232 -> 5.07 | BC190: =(($BC$234)/(BB190^($E$238)))^(1/$E$239) -> 6,901.49 | BD190: =BB190*-1 -> (5.07) | BE190: =BC190*-1 -> (6,901.49) | BF190: =BD190+($BB$199*2)+($BB$232-$BC$232) -> 84.93 | BG190: =BE190+($BC$199*2)+($BB$233-$BC$233) -> (6,811.49) | BI190: =$E190*$BC$243 -> 2.79 | BJ190: =(($BC$245)/(BI190^($E$238)))^(1/$E$239) -> 3,132.22 | BK190: =BI190*-1 -> (2.79) | BL190: =BJ190*-1 -> (3,132.22) | BM190: =BK190+($BI$199*2)+($BB$243-$BC$243) -> 87.21 | BN190: =BL190+($BJ$199*2)+($BB$244-$BC$244) -> (3,042.22) | BP190: =$E190*$BL$230 -> 6.00 | BQ190: =(($BL$232)/(BP190^($E$238)))^(1/$E$239) -> 12,926.61 | BR190: =BP190*-1 -> (6.00) | BS190: =BQ190*-1 -> (12,926.61) | BT190: =BR190+($BP$199*2)+($BK$230-$BL$230) -> 84.00 | BU190: =BS190+($BQ$199*2)+($BK$231-$BL$231) -> (12,836.61) | CG190: 55.13489406 | CH190: 18.5 | CI190: 37 | CJ190: 15.21647933 | CK190: 81.50 | CL190: 163.00 | CM190: 39.91841473
A191: 4.74 | B191: 204.55 | C191: 3 | D191: 0.10 | E191: 0.20 | F191: 4.74 | G191: 10.77 | H191: 90.00 | I191: 4.74 | J191: 53.44 | K191: 7.00 | L191: 90.00 | M191: 25.32 | N191: 90.00 | O191: 52.06 | P191: 90.00 | Q191: 10 | R191: 90.00 | S191: 1 | T191: 9.00 | U191: 30.00 | V191: 30.00 | W191: 9.00 | X191: 40.91 | Y191: 23.68 | Z191: 30.00 | AA191: 4,809.38 | AB191: 90.00 | AC191: 90.00 | AD191: 0 | AF191: 13.26 | AG191: 2,098.61 | AH191: (13.26) | AI191: (2,098.61) | AJ191: 76.74 | AK191: (2,008.61) | AM191: 15.75 | AN191: 2,885.58 | AO191: (15.75) | AP191: (2,885.58) | AQ191: 74.25 | AR191: (2,795.58) | AT191: 14.29 | AU191: 2,395.58 | AV191: (14.29) | AW191: (2,395.58) | AX191: 75.71 | AY191: (2,305.58) | BB191: 10.14 | BC191: 1,369.43 | BD191: (10.14) | BE191: (1,369.43) | BF191: 79.86 | BG191: (1,279.43) | BI191: 5.58 | BJ191: 621.51 | BK191: (5.58) | BL191: (621.51) | BM191: 84.42 | BN191: (531.51) | BP191: 12.00 | BQ191: 2,564.96 | BR191: (12.00) | BS191: (2,564.96) | BT191: 78.00 | BU191: (2,474.96) | CG191: 55.16147103 | CH191: 18.6 | CI191: 37.2 | CJ191: 15.28224483 | CK191: 81.40 | CL191: 162.80 | CM191: 39.8792262
A192: 7.11 | B192: 136.36 | C192: 4 | D192: 0.15 | E192: 0.30 | F192: 7.11 | G192: 10.77 | H192: 90.00 | I192: 7.11 | J192: 35.63 | K192: 7.11 | L192: 88.70 | M192: 25.32 | N192: 90.00 | O192: 52.06 | P192: 90.00 | Q192: 10 | R192: 90.00 | S192: 1 | T192: 13.50 | U192: 30.00 | V192: 30.00 | W192: 13.50 | X192: 40.91 | Y192: 23.68 | Z192: 30.00 | AA192: 3,206.25 | AB192: 90.00 | AC192: 90.00 | AD192: 0 | AF192: 19.89 | AG192: 814.80 | AH192: (19.89) | AI192: (814.80) | AJ192: 70.11 | AK192: (724.80) | AM192: 23.63 | AN192: 1,120.35 | AO192: (23.63) | AP192: (1,120.35) | AQ192: 66.38 | AR192: (1,030.35) | AT192: 21.43 | AU192: 930.10 | AV192: (21.43) | AW192: (930.10) | AX192: 68.57 | AY192: (840.10) | BB192: 15.21 | BC192: 531.69 | BD192: (15.21) | BE192: (531.69) | BF192: 74.79 | BG192: (441.69) | BI192: 8.37 | BJ192: 241.31 | BK192: (8.37) | BL192: (241.31) | BM192: 81.63 | BN192: (151.31) | BP192: 18.00 | BQ192: 995.87 | BR192: (18.00) | BS192: (995.87) | BT192: 72.00 | BU192: (905.87) | CG192: 55.18796769 | CH192: 18.7 | CI192: 37.4 | CJ192: 15.34793965 | CK192: 81.30 | CL192: 162.60 | CM192: 39.84002804
A193: 9.47 | B193: 102.27 | C193: 5 | D193: 0.20 | E193: 0.40 | F193: 9.47 | G193: 10.77 | H193: 90.00 | I193: 9.47 | J193: 26.72 | K193: 9.47 | L193: 66.52 | M193: 25.32 | N193: 90.00 | O193: 52.06 | P193: 90.00 | Q193: 10 | R193: 90.00 | S193: 1 | T193: 18.00 | U193: 30.00 | V193: 30.00 | W193: 18.00 | X193: 40.91 | Y193: 23.68 | Z193: 30.00 | AA193: 2,404.69 | AB193: 90.00 | AC193: 90.00 | AD193: 0 | AF193: 26.53 | AG193: 416.42 | AH193: (26.53) | AI193: (416.42) | AJ193: 63.47 | AK193: (326.42) | AM193: 31.50 | AN193: 572.57 | AO193: (31.50) | AP193: (572.57) | AQ193: 58.50 | AR193: (482.57) | AT193: 28.58 | AU193: 475.34 | AV193: (28.58) | AW193: (475.34) | AX193: 61.42 | AY193: (385.34) | BB193: 20.28 | BC193: 271.73 | BD193: (20.28) | BE193: (271.73) | BF193: 69.72 | BG193: (181.73) | BI193: 11.16 | BJ193: 123.32 | BK193: (11.16) | BL193: (123.32) | BM193: 78.84 | BN193: (33.32) | BP193: 24.00 | BQ193: 508.95 | BR193: (24.00) | BS193: (508.95) | BT193: 66.00 | BU193: (418.95) | CG193: 55.21438448 | CH193: 18.8 | CI193: 37.6 | CJ193: 15.41356425 | CK193: 81.20 | CL193: 162.40 | CM193: 39.80082024
A194: 11.84 | B194: 81.82 | C194: 6 | D194: 0.25 | E194: 0.50 | F194: 11.84 | G194: 11.84 | H194: 81.82 | I194: 11.84 | J194: 21.38 | K194: 11.84 | L194: 53.22 | M194: 25.32 | N194: 90.00 | O194: 52.06 | P194: 90.00 | Q194: 11.84210526 | R194: 76.00 | S194: =IF(B194>$F$228,1,0) -> 0 | T194: 22.50 | U194: 30.00 | V194: 30.00 | W194: 22.50 | X194: 40.91 | Y194: 23.68 | Z194: 30.00 | AA194: 1,923.75 | AB194: 90.00 | AC194: 90.00 | AD194: 0 | AF194: 33.16 | AG194: 247.40 | AH194: (33.16) | AI194: (247.40) | AJ194: 56.84 | AK194: (157.40) | AM194: 39.38 | AN194: 340.18 | AO194: (39.38) | AP194: (340.18) | AQ194: 50.63 | AR194: (250.18) | AT194: 35.72 | AU194: 282.41 | AV194: (35.72) | AW194: (282.41) | AX194: 54.28 | AY194: (192.41) | BB194: 25.34 | BC194: 161.44 | BD194: (25.34) | BE194: (161.44) | BF194: 64.66 | BG194: (71.44) | BI194: 13.96 | BJ194: 73.27 | BK194: (13.96) | BL194: (73.27) | BM194: 76.04 | BN194: 16.73 | BP194: 30.00 | BQ194: 302.38 | BR194: (30.00) | BS194: (302.38) | BT194: 60.00 | BU194: (212.38) | CG194: 55.24072184 | CH194: 18.9 | CI194: 37.8 | CJ194: 15.47911907 | CK194: 81.10 | CL194: 162.20 | CM194: 39.76160278
A195: 14.21 | B195: 68.18 | C195: 7 | D195: 0.30 | E195: 0.60 | F195: 14.21 | G195: 14.21 | H195: 68.18 | I195: 14.21 | J195: 17.81 | K195: 14.21 | L195: 44.35 | M195: 25.32 | N195: 90.00 | O195: 52.06 | P195: 90.00 | Q195: 14.21052632 | R195: 63.33 | S195: 0 | T195: 27.00 | U195: 30.00 | V195: 30.00 | W195: 27.00 | X195: 40.91 | Y195: 23.68 | Z195: 30.00 | AA195: 1,603.13 | AB195: 90.00 | AC195: 90.00 | AD195: 0 | AF195: 39.79 | AG195: 161.68 | AH195: (39.79) | AI195: (161.68) | AJ195: 50.21 | AK195: (71.68) | AM195: 47.25 | AN195: 222.31 | AO195: (47.25) | AP195: (222.31) | AQ195: 42.75 | AR195: (132.31) | AT195: 42.87 | AU195: 184.56 | AV195: (42.87) | AW195: (184.56) | AX195: 47.13 | AY195: (94.56) | BB195: 30.41 | BC195: 105.50 | BD195: (30.41) | BE195: (105.50) | BF195: 59.59 | BG195: (15.50) | BI195: 16.75 | BJ195: 47.88 | BK195: (16.75) | BL195: (47.88) | BM195: 73.25 | BN195: 42.12 | BP195: 36.00 | BQ195: 197.61 | BR195: (36.00) | BS195: (197.61) | BT195: 54.00 | BU195: (107.61) | CG195: 55.2669802 | CH195: 19 | CI195: 38 | CJ195: 15.54460455 | CK195: 81.00 | CL195: 162.00 | CM195: 39.72237564
A196: 16.58 | B196: 58.44 | C196: 8 | D196: 0.35 | E196: 0.70 | F196: 16.58 | G196: 16.58 | H196: 58.44 | I196: 16.58 | J196: 15.27 | K196: 16.58 | L196: 38.01 | M196: 25.32 | N196: 90.00 | O196: 52.06 | P196: 90.00 | Q196: 16.57894737 | R196: 54.29 | S196: 0 | T196: 31.50 | U196: 30.00 | V196: 30.00 | W196: 31.50 | X196: 40.91 | Y196: 23.68 | Z196: 30.00 | AA196: 1,374.11 | AB196: 90.00 | AC196: 90.00 | AD196: 0 | AF196: 46.42 | AG196: 112.83 | AH196: (46.42) | AI196: (112.83) | AJ196: 43.58 | AK196: (22.83) | AM196: 55.13 | AN196: 155.15 | AO196: (55.13) | AP196: (155.15) | AQ196: 34.88 | AR196: (65.15) | AT196: 50.01 | AU196: 128.80 | AV196: (50.01) | AW196: (128.80) | AX196: 39.99 | AY196: (38.80) | BB196: 35.48 | BC196: 73.63 | BD196: (35.48) | BE196: (73.63) | BF196: 54.52 | BG196: 16.37 | BI196: 19.54 | BJ196: 33.42 | BK196: (19.54) | BL196: (33.42) | BM196: 70.46 | BN196: 56.58 | BP196: 42.00 | BQ196: 137.91 | BR196: (42.00) | BS196: (137.91) | BT196: 48.00 | BU196: (47.91) | CG196: 55.29315996 | CH196: 19.1 | CI196: 38.2 | CJ196: 15.61002115 | CK196: 80.90 | CL196: 161.80 | CM196: 39.68313882
A197: 18.95 | B197: 51.14 | C197: 9 | D197: 0.40 | E197: 0.80 | F197: 18.95 | G197: 18.95 | H197: 51.14 | I197: 18.95 | J197: 13.36 | K197: 18.95 | L197: 33.26 | M197: 25.32 | N197: 90.00 | O197: 52.06 | P197: 90.00 | Q197: 18.94736842 | R197: 47.50 | S197: 0 | T197: 36.00 | U197: 30.00 | V197: 30.00 | W197: 36.00 | X197: 40.91 | Y197: 23.68 | Z197: 30.00 | AA197: 1,202.34 | AB197: 90.00 | AC197: 90.00 | AD197: 0 | AF197: 53.05 | AG197: 82.63 | AH197: (53.05) | AI197: (82.63) | AJ197: 36.95 | AK197: 7.37 | AM197: 63.00 | AN197: 113.61 | AO197: (63.00) | AP197: (113.61) | AQ197: 27.00 | AR197: (23.61) | AT197: 57.15 | AU197: 94.32 | AV197: (57.15) | AW197: (94.32) | AX197: 32.85 | AY197: (4.32) | BB197: 40.55 | BC197: 53.92 | BD197: (40.55) | BE197: (53.92) | BF197: 49.45 | BG197: 36.08 | BI197: 22.33 | BJ197: 24.47 | BK197: (22.33) | BL197: (24.47) | BM197: 67.67 | BN197: 65.53 | BP197: 48.00 | BQ197: 100.99 | BR197: (48.00) | BS197: (100.99) | BT197: 42.00 | BU197: (10.99) | CG197: 55.31926157 | CH197: 19.2 | CI197: 38.4 | CJ197: 15.67536927 | CK197: 80.80 | CL197: 161.60 | CM197: 39.6438923
A198: 21.32 | B198: 45.45 | C198: 10 | D198: 0.45 | E198: 0.90 | F198: 21.32 | G198: 21.32 | H198: 45.45 | I198: 21.32 | J198: 11.88 | K198: 21.32 | L198: 29.57 | M198: 25.32 | N198: 90.00 | O198: 52.06 | P198: 90.00 | Q198: 21.31578947 | R198: 42.22 | S198: 0 | T198: 40.50 | U198: 30.00 | V198: 30.00 | W198: 40.50 | X198: 40.91 | Y198: 23.68 | Z198: 30.00 | AA198: 1,068.75 | AB198: 90.00 | AC198: 90.00 | AD198: 0 | AF198: 59.68 | AG198: 62.77 | AH198: (59.68) | AI198: (62.77) | AJ198: 30.32 | AK198: 27.23 | AM198: 70.88 | AN198: 86.31 | AO198: (70.88) | AP198: (86.31) | AQ198: 19.13 | AR198: 3.69 | AT198: 64.30 | AU198: 71.66 | AV198: (64.30) | AW198: (71.66) | AX198: 25.70 | AY198: 18.34 | BB198: 45.62 | BC198: 40.96 | BD198: (45.62) | BE198: (40.96) | BF198: 44.38 | BG198: 49.04 | BI198: 25.12 | BJ198: 18.59 | BK198: (25.12) | BL198: (18.59) | BM198: 64.88 | BN198: 71.41 | BP198: 54.00 | BQ198: 76.72 | BR198: (54.00) | BS198: (76.72) | BT198: 36.00 | BU198: 13.28 | CG198: 55.34528542 | CH198: 19.3 | CI198: 38.6 | CJ198: =(CH198^$BZ$7)*(CI198^$BZ$8) -> 15.74064936 | CK198: =$CA$10-CH198 -> 80.70 | CL198: =$CA$11-CI198 -> 161.40 | CM198: =(CK198^$CD$7)*(CL198^$CD$8) -> 39.60463606
A199: 23.68 | B199: =($F$242/($F199^($D$236)))^(1/$D$237) -> 40.91 | C199: 11 | D199: 0.50 | E199: 1.00 | F199: 23.68 | G199: 23.68 | H199: 40.91 | I199: 23.68 | J199: 10.69 | K199: 23.68 | L199: 26.61 | M199: 25.32 | N199: 90.00 | O199: 52.06 | P199: 90.00 | Q199: 23.68421053 | R199: 38.00 | T199: 45.00 | U199: 30.00 | V199: 30.00 | W199: 45.00 | X199: 40.91 | Y199: 23.68 | Z199: 30.00 | AA199: 961.88 | AB199: 90.00 | AC199: 90.00 | AD199: 0 | AF199: 66.32 | AG199: 49.09 | AH199: (66.32) | AI199: (49.09) | AJ199: 23.68 | AK199: 40.91 | AM199: 78.75 | AN199: 67.50 | AO199: (78.75) | AP199: (67.50) | AQ199: 11.25 | AR199: 22.50 | AT199: 71.44 | AU199: 56.04 | AV199: (71.44) | AW199: (56.04) | AX199: 18.56 | AY199: 33.96 | BB199: 50.69 | BC199: 32.03 | BD199: (50.69) | BE199: (32.03) | BF199: 39.31 | BG199: 57.97 | BI199: 27.91 | BJ199: 14.54 | BK199: (27.91) | BL199: (14.54) | BM199: 62.09 | BN199: 75.46 | BP199: 60.00 | BQ199: 60.00 | BR199: (60.00) | BS199: (60.00) | BT199: 30.00 | BU199: 30.00 | CG199: 55.37123193 | CH199: =CH198+$CD$10 -> 19.4 | CI199: =CI198+$CD$11 -> 38.8 | CJ199: 15.80586184 | CK199: 80.60 | CL199: 161.20 | CM199: 39.56537009
A200: 26.05 | B200: 37.19 | C200: 12 | D200: 0.55 | E200: 1.10 | F200: 26.05 | G200: 26.05 | H200: 37.19 | I200: 26.05 | J200: 9.72 | K200: 26.05 | L200: 24.19 | M200: 26.05 | N200: 87.46 | O200: 52.06 | P200: 90.00 | Q200: 26.05263158 | R200: 34.55 | T200: 49.50 | U200: 30.00 | V200: 30.00 | W200: 49.50 | X200: 40.91 | Y200: 23.68 | Z200: 30.00 | AA200: 874.43 | AB200: 90.00 | AC200: 90.00 | AD200: 0 | AF200: 72.95 | AG200: 39.30 | AH200: (72.95) | AI200: (39.30) | AJ200: 17.05 | AK200: 50.70 | AM200: 86.63 | AN200: 54.04 | AO200: (86.63) | AP200: (54.04) | AQ200: 3.38 | AR200: 35.96 | AT200: 78.59 | AU200: 44.86 | AV200: (78.59) | AW200: (44.86) | AX200: 11.41 | AY200: 45.14 | BB200: 55.76 | BC200: 25.65 | BD200: (55.76) | BE200: (25.65) | BF200: 34.24 | BG200: 64.35 | BI200: 30.70 | BJ200: 11.64 | BK200: (30.70) | BL200: (11.64) | BM200: 59.30 | BN200: 78.36 | BP200: 66.00 | BQ200: 48.04 | BR200: (66.00) | BS200: (48.04) | BT200: 24.00 | BU200: 41.96 | CG200: 55.3971015 | CH200: 19.5 | CI200: 39 | CJ200: 15.87100713 | CK200: 80.50 | CL200: 161.00 | CM200: 39.52609437
... 806 more rows
